TRANS.No,Service Area Categorisation,Service Division Categorisation,Responsible Unit,Unit Code,Expenses Type,Expenses Sub Type,Expense Code,Narrative,Amount,Invoice Date,Capital/Revenue,Supplier Name 
1,Central Services,Corporate Mangmt not separated,Chief Exec's Office,A01001,Supplies & Services           ,Services                      ,DF03,Consultants                             ,3000,10/10/2013,REV,HEALTH CARE AUDIT             
1,Central Services,Land Charges,Land Charges,E10283,Supplies & Services           ,Expenses                      ,DH16,Compensation Payments                   ,804.89,27/02/2014,REV,TINKLER SOLICITORS            
2,Central Services,Corporate Mangmt not separated,Chief Exec's Office,A01001,Supplies & Services           ,Services                      ,DF03,Consultants                             ,10000,25/11/2013,REV,HEALTH CARE AUDIT             
2,Central Services,Land Charges,Land Charges,E10283,Supplies & Services           ,Expenses                      ,DH16,Compensation Payments                   ,662.6,19/02/2014,REV,TINKLER SOLICITORS            
3,Central Services,SupS Chief Execs,Local Involvement Network,A01039,Third Party Payments          ,Private Contractors           ,EH10,Contract Payments                       ,10787.08,03/02/2014,REV,MERTON VOLUNTARY SERV COUNCIL 
3,Central Services,Land Charges,Land Charges,E10283,Supplies & Services           ,Expenses                      ,DH16,Compensation Payments                   ,27690.9,19/02/2014,REV,TINKLER SOLICITORS            
4,Central Services,Registration of electors,Electoral Registration,E10285,Employees                     ,Direct Employee Expenses      ,AA17,Agency Staff & Casual Paymts            ,2728,19/02/2014,REV,REDACTED
4,Cultural Env Reg&Plan Services,Comm Safety (Crime Reduction),Prolific & Priority Offenders,A01105,Third Party Payments          ,Private Contractors           ,EH02,Miscellaneous Hired Services            ,3500,30/10/2013,REV,MERTON CHAMBER OF COMMERCE    
5,Cultural Env Reg&Plan Services,Comm Safety (Crime Reduction),Prolific & Priority Offenders,A01105,Third Party Payments          ,Private Contractors           ,EH02,Miscellaneous Hired Services            ,9950,29/01/2014,REV,GLENCOT LIMITED               
5,Central Services,Registration of electors,Electoral Registration,E10285,Supplies & Services           ,Comms and Computing           ,DG04,Postage - General                       ,3464.18,11/11/2013,REV,ROYAL MAIL GROUP LTD          
6,Cultural Env Reg&Plan Services,Comm Safety (Crime Reduction),CCTV,A01200,Supplies & Services           ,Equip Furniture/Materials     ,DA01,Equipment - R & M                       ,1150,09/10/2013,REV,EUROVIA INFRASTRUCTURE LTD    
6,Central Services,Registration of electors,Electoral Registration,E10285,Supplies & Services           ,Comms and Computing           ,DG04,Postage - General                       ,4305.06,04/11/2013,REV,ROYAL MAIL GROUP LTD          
7,Cultural Env Reg&Plan Services,Comm Safety (Crime Reduction),CCTV,A01200,Supplies & Services           ,Equip Furniture/Materials     ,DA01,Equipment - R & M                       ,542.22,20/10/2013,REV,EUROVIA INFRASTRUCTURE LTD    
7,Central Services,SupS Legal,Shared Legal Service,E10288,Supplies & Services           ,Equip Furniture/Materials     ,DA80,Books                                   ,5195.46,23/12/2013,REV,THOMSON REUTERS               
8,Cultural Env Reg&Plan Services,Comm Safety (Crime Reduction),CCTV,A01200,Supplies & Services           ,Services                      ,DF57,Consulting Engineers Fees               ,836.32,22/08/2013,REV,GOODWILL ASSOCIATES LIMITED   
8,Central Services,SupS Legal,Shared Legal Service,E10288,Supplies & Services           ,Equip Furniture/Materials     ,DA80,Books                                   ,752,18/12/2013,REV,THOMSON REUTERS               
9,Cultural Env Reg&Plan Services,Comm Safety (Crime Reduction),CCTV,A01200,Supplies & Services           ,Services                      ,DF57,Consulting Engineers Fees               ,581,28/10/2013,REV,GOODWILL ASSOCIATES LIMITED   
9,Central Services,SupS Legal,Shared Legal Service,E10288,Supplies & Services           ,Equip Furniture/Materials     ,DA80,Books                                   ,693,01/02/2014,REV,THOMSON REUTERS               
10,Central Services,SupS Legal,Shared Legal Service,E10288,Supplies & Services           ,Equip Furniture/Materials     ,DA80,Books                                   ,-859,24/01/2014,REV,THOMSON REUTERS               
10,Cultural Env Reg&Plan Services,Comm Safety (Crime Reduction),CCTV,A01200,Supplies & Services           ,Comms and Computing           ,DG15,Network Maintenance                     ,1246.99,01/12/2013,REV,VIRGIN MEDIA PAYMENTS LTD     
11,Cultural Env Reg&Plan Services,Comm Safety (Crime Reduction),CCTV,A01200,Supplies & Services           ,Comms and Computing           ,DG15,Network Maintenance                     ,11104.25,05/02/2014,REV,BT REDCARE                    
11,Central Services,SupS Legal,Shared Legal Service,E10288,Supplies & Services           ,Services                      ,DF09,Miscellaneous Fees                      ,662.95,31/01/2014,REV,WINCANTON RECORDS MANAGEMENT  
12,Cultural Env Reg&Plan Services,Comm Safety (Crime Reduction),CCTV,A01200,Supplies & Services           ,Comms and Computing           ,DG15,Network Maintenance                     ,10148.2,02/01/2014,REV,BT REDCARE                    
12,Central Services,SupS Legal,Richmond Legal,E10289,Supplies & Services           ,Services                      ,DF11,Counsel's Fees                          ,2850,31/01/2014,REV,REDACTED
13,Adult Social Care,Substance Abuse (Addictions),DAAT Commissioning,A01300,Third Party Payments          ,Private Contractors           ,EH02,Miscellaneous Hired Services            ,2000,25/01/2014,REV,OTTAWAY STRATEGIC MANAGEMENT  
13,Central Services,SupS Legal,Richmond Legal,E10289,Supplies & Services           ,Services                      ,DF11,Counsel's Fees                          ,1550,02/01/2014,REV,REDACTED
14,Central Services,SupS Chief Execs,NON-STATUTORY MARKETING & COMM,A02019,Supplies & Services           ,Prntng Stnry Gen Off Exp      ,DE22,Marketing                               ,1500,14/01/2014,REV,GINGER NUT MEDIA LTD          
14,Central Services,SupS Legal,Richmond Legal,E10289,Supplies & Services           ,Services                      ,DF11,Counsel's Fees                          ,3000,18/02/2014,REV,REDACTED
15,Central Services,SupS Chief Execs,NON-STATUTORY MARKETING & COMM,A02019,Supplies & Services           ,Prntng Stnry Gen Off Exp      ,DE22,Marketing                               ,3940.65,20/12/2013,REV,LONDON LETTERBOX MARKETING    
15,Central Services,SupS Legal,Richmond Legal,E10289,Supplies & Services           ,Services                      ,DF11,Counsel's Fees                          ,1000,11/12/2013,REV,REDACTED
16,Central Services,SupS Chief Execs,NON-STATUTORY MARKETING & COMM,A02019,Supplies & Services           ,Prntng Stnry Gen Off Exp      ,DE22,Marketing                               ,516.05,30/01/2014,REV,RECOGNITION EXPRESS           
16,Central Services,SupS Legal,Richmond Legal,E10289,Supplies & Services           ,Services                      ,DF11,Counsel's Fees                          ,3100,15/01/2014,REV,REDACTED
17,Central Services,SupS Chief Execs,NON-STATUTORY MARKETING & COMM,A02019,Supplies & Services           ,Services                      ,DF02,Misc Advertising/Publicity              ,500,03/02/2014,REV,ARCHANT LIFE                  
17,Central Services,SupS Legal,Richmond Legal,E10289,Supplies & Services           ,Services                      ,DF11,Counsel's Fees                          ,1550,29/01/2014,REV,REDACTED
18,Central Services,SupS Legal,Richmond Legal,E10289,Supplies & Services           ,Services                      ,DF11,Counsel's Fees                          ,3500,23/01/2014,REV,REDACTED
18,Central Services,SupS Chief Execs,NON-STATUTORY MARKETING & COMM,A02019,Supplies & Services           ,Services                      ,DF02,Misc Advertising/Publicity              ,1515,01/11/2013,REV,TIME & LEISURE                
19,Central Services,SupS Chief Execs,NON-STATUTORY MARKETING & COMM,A02019,Supplies & Services           ,Services                      ,DF02,Misc Advertising/Publicity              ,537.5,22/01/2014,REV,JCDECAUX UNITED KINGDOM       
19,Central Services,SupS Legal,Richmond Legal,E10289,Supplies & Services           ,Services                      ,DF11,Counsel's Fees                          ,500,15/01/2014,REV,REDACTED
20,Central Services,SupS Chief Execs,NON-STATUTORY MARKETING & COMM,A02019,Supplies & Services           ,Services                      ,DF02,Misc Advertising/Publicity              ,500,31/01/2014,REV,PREMIER CHRISTIAN MEDIA       
20,Central Services,SupS Legal,Richmond Legal,E10289,Supplies & Services           ,Services                      ,DF11,Counsel's Fees                          ,520,28/01/2014,REV,REDACTED
21,Central Services,SupS Legal,Richmond Legal,E10289,Supplies & Services           ,Services                      ,DF11,Counsel's Fees                          ,1037,13/01/2014,REV,REDACTED
21,Central Services,SupS Chief Execs,NON-STATUTORY MARKETING & COMM,A02019,Supplies & Services           ,Comms and Computing           ,DG04,Postage - General                       ,3328.49,27/01/2014,REV,ROYAL MAIL GROUP LTD          
22,Central Services,SupS Chief Execs,Democratic Services,A02023,Transport Related Expenditure ,Direct Transport Costs        ,CA50,Mayoral Exps Car                        ,1894.86,09/01/2014,REV,COOPER CROYDON                
22,Central Services,SupS Legal,Richmond Legal,E10289,Supplies & Services           ,Services                      ,DF11,Counsel's Fees                          ,585,08/01/2014,REV,REDACTED
23,Central Services,SupS Chief Execs,Democratic Services,A02023,Supplies & Services           ,Comms and Computing           ,DG50,Other IT Expenditure                    ,12604.5,06/02/2014,REV,PUBLIC-I GROUP LTD            
23,Central Services,SupS Legal,Richmond Legal,E10289,Supplies & Services           ,Services                      ,DF11,Counsel's Fees                          ,500,22/01/2014,REV,REDACTED
24,Central Services,SupS Legal,Richmond Legal,E10289,Supplies & Services           ,Services                      ,DF95,Services from Provider                  ,1177.9,31/12/2013,REV,SHARPE PRITCHARD SOLICITORS   
24,Central Services,SupS Chief Execs,Press and Public Relations.,A02026,Supplies & Services           ,Services                      ,DF36,Photography                             ,1150,11/12/2013,REV,SIXPENCE IMAGES               
25,Central Services,SupS Chief Execs,Press and Public Relations.,A02026,Supplies & Services           ,Comms and Computing           ,DG09,Computer Purchases - Misc               ,690,31/01/2014,REV,VIGLEN LIMITED                
25,Central Services,SupS Legal,Richmond Legal,E10289,Supplies & Services           ,Services                      ,DF95,Services from Provider                  ,3928.33,23/01/2014,REV,WARD HADAWAY                  
26,Central Services,SupS Legal,4 Borough Legal Service                 ,E10290,Supplies & Services           ,Services                      ,DF03,Consultants                             ,16085.16,23/12/2013,REV,LEXIS NEXIS                   
26,Central Services,SupS Chief Execs,Press and Public Relations.,A02026,Supplies & Services           ,Expenses                      ,DH21,Christma Lights                         ,2752,17/01/2014,REV,MAY GURNEY LTD T/A CARTLEDGE  
27,Central Services,SupS Chief Execs,Press and Public Relations.,A02026,Supplies & Services           ,Expenses                      ,DH21,Christma Lights                         ,7396.47,17/01/2014,REV,MAY GURNEY LTD T/A CARTLEDGE  
27,Central Services,SupS Legal,Kingston Legal                          ,E10292,Supplies & Services           ,Services                      ,DF11,Counsel's Fees                          ,2400,22/01/2014,REV,REDACTED
28,Central Services,SupS Chief Execs,Press and Public Relations.,A02026,Supplies & Services           ,Expenses                      ,DH21,Christma Lights                         ,19624,02/01/2014,REV,MAY GURNEY LTD T/A CARTLEDGE  
28,Central Services,SupS Legal,Kingston Legal                          ,E10292,Supplies & Services           ,Services                      ,DF11,Counsel's Fees                          ,2175,31/01/2014,REV,REDACTED
29,Central Services,SupS Legal,Kingston Legal                          ,E10292,Supplies & Services           ,Services                      ,DF11,Counsel's Fees                          ,617.5,13/01/2014,REV,REDACTED
29,CS -Oth Operating Inc & Expend,T/A Corporate Services,Prtng Jobs - Ext Agncy,A03041,Supplies & Services           ,Prntng Stnry Gen Off Exp      ,DE01,External Printing                       ,8508,28/01/2014,REV,ULTIMATE INVOICE FINANCE LTD  
30,Central Services,SupS Legal,Kingston Legal                          ,E10292,Supplies & Services           ,Services                      ,DF11,Counsel's Fees                          ,1175,21/01/2014,REV,REDACTED
30,CS -Oth Operating Inc & Expend,T/A Corporate Services,Prtng Jobs - Ext Agncy,A03041,Supplies & Services           ,Prntng Stnry Gen Off Exp      ,DE01,External Printing                       ,805,11/02/2014,REV,TAURUS PRINT & DESIGN LTD     
31,CS -Oth Operating Inc & Expend,T/A Corporate Services,Prtng Jobs - Ext Agncy,A03041,Supplies & Services           ,Prntng Stnry Gen Off Exp      ,DE01,External Printing                       ,788,31/01/2014,REV,IMPRESS PRINT SERVICES LTD    
31,Sutton Legal                            ,SupS Legal,Sutton Legal                            ,E10293,Supplies & Services           ,Services                      ,DF11,Counsel's Fees                          ,825,15/01/2014,REV,REDACTED
32,Sutton Legal                            ,SupS Legal,Sutton Legal                            ,E10293,Supplies & Services           ,Services                      ,DF11,Counsel's Fees                          ,665,03/12/2013,REV,REDACTED
32,CS -Oth Operating Inc & Expend,T/A Corporate Services,Prtng Jobs - Ext Agncy,A03041,Supplies & Services           ,Prntng Stnry Gen Off Exp      ,DE01,External Printing                       ,934.2,11/02/2014,REV,TAURUS PRINT & DESIGN LTD     
33,CS -Oth Operating Inc & Expend,T/A Corporate Services,Prtng Jobs - Ext Agncy,A03041,Supplies & Services           ,Prntng Stnry Gen Off Exp      ,DE01,External Printing                       ,1068,19/02/2014,REV,BELMONT PRESS LIMITED         
33,Sutton Legal                            ,SupS Legal,Sutton Legal                            ,E10293,Supplies & Services           ,Services                      ,DF11,Counsel's Fees                          ,900,06/02/2014,REV,REDACTED
34,CS -Oth Operating Inc & Expend,T/A Corporate Services,PrintUnit-HighVolPhtcopying,A03042,Supplies & Services           ,Prntng Stnry Gen Off Exp      ,DE01,External Printing                       ,694,21/02/2014,REV,RECOGNITION EXPRESS           
34,Sutton Legal                            ,SupS Legal,Sutton Legal                            ,E10293,Supplies & Services           ,Services                      ,DF11,Counsel's Fees                          ,1000,23/12/2013,REV,REDACTED
35,Sutton Legal                            ,SupS Legal,Sutton Legal                            ,E10293,Supplies & Services           ,Services                      ,DF11,Counsel's Fees                          ,712.5,17/01/2014,REV,REDACTED
35,CS -Oth Operating Inc & Expend,T/A Corporate Services,PrintUnit-HighVolPhtcopying,A03042,Supplies & Services           ,Prntng Stnry Gen Off Exp      ,DE01,External Printing                       ,575,10/02/2014,REV,THE PRINTED BAG SHOP LTD      
36,CS -Oth Operating Inc & Expend,T/A Corporate Services,PrintUnit-HighVolPhtcopying,A03042,Supplies & Services           ,Prntng Stnry Gen Off Exp      ,DE01,External Printing                       ,524,24/02/2014,REV,RECOGNITION EXPRESS           
36,Sutton Legal                            ,SupS Legal,Sutton Legal                            ,E10293,Supplies & Services           ,Services                      ,DF11,Counsel's Fees                          ,1147.5,27/01/2014,REV,REDACTED
37,CS -Oth Operating Inc & Expend,T/A Corporate Services,Translation Services,A04060,Supplies & Services           ,Services                      ,DF45,Payment of Sessional Workers            ,567,12/02/2014,REV,REDACTED
37,Sutton Legal                            ,SupS Legal,Sutton Legal                            ,E10293,Supplies & Services           ,Services                      ,DF11,Counsel's Fees                          ,1425,17/01/2014,REV,REDACTED
38,CS -Oth Operating Inc & Expend,T/A Corporate Services,Translation Services,A04060,Supplies & Services           ,Services                      ,DF45,Payment of Sessional Workers            ,1220,30/11/2013,REV,COSMIC EUROPE LIMTED          
38,Sutton Legal                            ,SupS Legal,Sutton Legal                            ,E10293,Supplies & Services           ,Services                      ,DF11,Counsel's Fees                          ,1995,06/02/2014,REV,REDACTED
39,CS -Oth Operating Inc & Expend,T/A Corporate Services,Translation Services,A04060,Supplies & Services           ,Services                      ,DF45,Payment of Sessional Workers            ,513,12/02/2014,REV,REDACTED
39,Sutton Legal                            ,SupS Legal,Sutton Legal                            ,E10293,Supplies & Services           ,Services                      ,DF11,Counsel's Fees                          ,1858,06/02/2014,REV,REDACTED
40,CS -Oth Operating Inc & Expend,T/A Corporate Services,Translation Services,A04060,Supplies & Services           ,Services                      ,DF45,Payment of Sessional Workers            ,600,31/01/2014,REV,COSMIC EUROPE LIMTED          
40,Sutton Legal                            ,SupS Legal,Sutton Legal                            ,E10293,Supplies & Services           ,Services                      ,DF11,Counsel's Fees                          ,500,28/01/2014,REV,REDACTED
41,CS -Oth Operating Inc & Expend,T/A Corporate Services,Translation Services,A04060,Supplies & Services           ,Services                      ,DF45,Payment of Sessional Workers            ,2055,31/01/2014,REV,COSMIC EUROPE LIMTED          
41,Sutton Legal                            ,SupS Legal,Sutton Legal                            ,E10293,Supplies & Services           ,Services                      ,DF11,Counsel's Fees                          ,1435,28/01/2014,REV,REDACTED
42,Central Services,SupS Comm and Member Services,PROGRAMME OFFICE,A04068,Supplies & Services           ,Services                      ,DF03,Consultants                             ,6370.51,04/02/2014,REV,SANDERSON RECRUITMENT PLC     
42,Sutton Legal                            ,SupS Legal,Sutton Legal                            ,E10293,Supplies & Services           ,Services                      ,DF14,Doctors and Other Fees                  ,720,29/11/2013,REV,TRICHOTEST                    
43,Central Services,SupS Best Value,Merton Link,A04070,Supplies & Services           ,Comms and Computing           ,DG15,Network Maintenance                     ,649.48,03/02/2014,REV,NORTHGATE  INFORMATION SOLUT. 
43,Sutton Legal                            ,SupS Legal,Sutton Legal                            ,E10293,Supplies & Services           ,Services                      ,DF14,Doctors and Other Fees                  ,816.6,05/02/2014,REV,SECECETRA EXPERT SERVICES     
44,Central Services,SupS Payroll,Coroners Courts,E11300,Third Party Payments          ,Joint Authorities             ,EC11,SW Inner London Coroners Crt C          ,58133,14/01/2014,REV,CITY OF WESTMINSTER           
44,Central Services,Grants - Voluntary Groups,VOLUNTARY SECTOR COORDINATION,A04082,Supplies & Services           ,Grants and Subscriptions      ,DJ01,Grants                                  ,72000,15/01/2014,REV,MERTON VOLUNTARY SERV COUNCIL 
45,Central Services,Grants - Voluntary Groups,VOLUNTARY SECTOR COORDINATION,A04082,Supplies & Services           ,Grants and Subscriptions      ,DJ04,Subscriptions                           ,54987.75,16/12/2013,REV,LONDON COUNCILS               
45,Central Services,SupS IT,BI IT Projects,E14360,Employees                     ,Direct Employee Expenses      ,AA17,Agency Staff & Casual Paymts            ,7583.31,03/02/2014,REV,SMARTSOURCING PLC             
46,Central Services,SupS IT,AD I&T,E14363,Employees                     ,Direct Employee Expenses      ,AA17,Agency Staff & Casual Paymts            ,1875,29/01/2014,REV,REDACTED
46,Central Services,SupS Comm and Member Services,COMMERICIAL SERVICES,A04085,Employees                     ,Direct Employee Expenses      ,AA17,Agency Staff & Casual Paymts            ,2034,08/01/2014,REV,REDACTED
47,Central Services,SupS Health & Safety,Learning and Development,B06146,Employees                     ,Indirect Employee Expenses    ,AB56,Internal Training Costs                 ,7200,04/12/2013,REV,AIE LTD                       
47,Central Services,SupS IT,AD I&T,E14363,Employees                     ,Direct Employee Expenses      ,AA17,Agency Staff & Casual Paymts            ,1875,04/02/2014,REV,REDACTED
48,Central Services,SupS Health & Safety,Learning and Development,B06146,Employees                     ,Indirect Employee Expenses    ,AB56,Internal Training Costs                 ,2230,05/12/2013,REV,ACAS                          
48,Central Services,SupS IT,AD I&T,E14363,Employees                     ,Direct Employee Expenses      ,AA17,Agency Staff & Casual Paymts            ,2062.5,05/02/2014,REV,REDACTED
49,Central Services,SupS Health & Safety,Learning and Development,B06146,Employees                     ,Indirect Employee Expenses    ,AB56,Internal Training Costs                 ,835,03/02/2014,REV,ACAS                          
49,Central Services,SupS IT,AD I&T,E14363,Employees                     ,Direct Employee Expenses      ,AA17,Agency Staff & Casual Paymts            ,11400,27/01/2014,REV,GATENBY SANDERSON             
50,Central Services,SupS IT,AD I&T,E14363,Employees                     ,Direct Employee Expenses      ,AA17,Agency Staff & Casual Paymts            ,2062.5,22/01/2014,REV,REDACTED
50,Central Services,SupS Health & Safety,Learning and Development,B06146,Employees                     ,Indirect Employee Expenses    ,AB57,EXTERNAL TRAINING COSTS                 ,1330,31/01/2014,REV,LONDON SCHOOL OF FIRST AID    
51,Central Services,SupS IT,AD I&T,E14363,Employees                     ,Direct Employee Expenses      ,AA17,Agency Staff & Casual Paymts            ,2062.5,28/01/2014,REV,REDACTED
51,Central Services,SupS Health & Safety,Learning and Development,B06146,Employees                     ,Indirect Employee Expenses    ,AB57,EXTERNAL TRAINING COSTS                 ,1042,16/12/2013,REV,THE PRESCRIPTION TRAINING COMP
52,Central Services,SupS IT,Systems & Projects,E14366,Supplies & Services           ,Services                      ,DF03,Consultants                             ,1237.5,17/01/2014,REV,ASHTON CONSULTING (UK) LTD    
52,Central Services,SupS Health & Safety,Learning and Development,B06146,Employees                     ,Indirect Employee Expenses    ,AB57,EXTERNAL TRAINING COSTS                 ,719.15,06/12/2013,REV,PLANET TRAINING               
53,Central Services,SupS IT,Systems & Projects,E14366,Supplies & Services           ,Services                      ,DF03,Consultants                             ,1237.5,31/01/2014,REV,ASHTON CONSULTING (UK) LTD    
53,Central Services,SupS Health & Safety,Learning and Development,B06146,Employees                     ,Indirect Employee Expenses    ,AB57,EXTERNAL TRAINING COSTS                 ,2000,11/02/2014,REV,CHILLISAUCE LTD               
54,Central Services,SupS IT,Systems & Projects,E14366,Supplies & Services           ,Services                      ,DF03,Consultants                             ,990,03/01/2014,REV,ASHTON CONSULTING (UK) LTD    
54,Central Services,SupS Health & Safety,Learning and Development,B06146,Employees                     ,Indirect Employee Expenses    ,AB57,EXTERNAL TRAINING COSTS                 ,1572,10/02/2014,REV,LONDON SCHOOL OF FIRST AID    
55,Central Services,SupS IT,Systems & Projects,E14366,Supplies & Services           ,Services                      ,DF03,Consultants                             ,1237.5,07/02/2014,REV,ASHTON CONSULTING (UK) LTD    
55,Central Services,SupS Health & Safety,Learning and Development,B06146,Employees                     ,Indirect Employee Expenses    ,AB57,EXTERNAL TRAINING COSTS                 ,720,14/01/2014,REV,KRUGER ASSOCIATES             
56,Central Services,SupS IT,Systems & Projects,E14366,Supplies & Services           ,Services                      ,DF03,Consultants                             ,1237.5,24/01/2014,REV,ASHTON CONSULTING (UK) LTD    
56,Central Services,SupS Health & Safety,Learning and Development,B06146,Employees                     ,Indirect Employee Expenses    ,AB57,EXTERNAL TRAINING COSTS                 ,1050,07/02/2014,REV,PM SOCIAL CARE LTD            
57,Central Services,SupS IT,Systems & Projects,E14366,Supplies & Services           ,Services                      ,DF03,Consultants                             ,1237.5,10/01/2014,REV,ASHTON CONSULTING (UK) LTD    
57,Central Services,SupS Health & Safety,Learning and Development,B06146,Supplies & Services           ,Services                      ,DF03,Consultants                             ,7940.67,30/01/2014,REV,SOLACE ENTERPRISE LIMITED     
58,Central Services,SupS IT,Systems & Projects,E14366,Supplies & Services           ,Comms and Computing           ,DG02,Software Licences                       ,1219.9,01/01/2014,REV,GEOPLAN                       
58,Central Services,SupS Health & Safety,Learning and Development,B06146,Supplies & Services           ,Services                      ,DF03,Consultants                             ,1730,19/12/2013,REV,SOLACE ENTERPRISE LIMITED     
59,Central Services,SupS IT,Systems & Projects,E14366,Supplies & Services           ,Comms and Computing           ,DG02,Software Licences                       ,10500,23/01/2014,REV,ME LEARNING                   
59,Central Services,SupS Health & Safety,Learning and Development,B06146,Supplies & Services           ,Grants and Subscriptions      ,DJ04,Subscriptions                           ,2285,14/09/2013,REV,WOLTERS KLUWER (UK) LTD       
60,Central Services,SupS Health & Safety,Learning and Development,B06146,Supplies & Services           ,Grants and Subscriptions      ,DJ04,Subscriptions                           ,3200,23/01/2014,REV,EMPLOYER'S FORUM ON DISABILIT 
60,Central Services,SupS IT,Operations & Telecomms,E14367,Employees                     ,Direct Employee Expenses      ,AA17,Agency Staff & Casual Paymts            ,5040,31/01/2014,REV,REDACTED
61,Central Services,SupS IT,Operations & Telecomms,E14367,Employees                     ,Direct Employee Expenses      ,AA17,Agency Staff & Casual Paymts            ,3360,02/01/2014,REV,REDACTED
62,Central Services,SupS IT,Operations & Telecomms,E14367,Premises Related Expenditure  ,RepairsAlterations&MtceOfBldgs,BA05,DDM - Electrical                        ,1101.3,24/02/2014,REV,DATA TECHNIQUES               
63,Central Services,SupS IT,Operations & Telecomms,E14367,Premises Related Expenditure  ,RepairsAlterations&MtceOfBldgs,BA05,DDM - Electrical                        ,813.06,24/02/2014,REV,DATA TECHNIQUES               
64,Central Services,SupS IT,Operations & Telecomms,E14367,Supplies & Services           ,Comms and Computing           ,DG15,Network Maintenance                     ,591.67,31/12/2013,REV,CISILION LTD                  
65,Central Services,SupS IT,Operations & Telecomms,E14367,Supplies & Services           ,Comms and Computing           ,DG15,Network Maintenance                     ,5114,12/02/2014,REV,NETFORT TECHNOLOGIES LTD      
66,Central Services,SupS IT,Operations & Telecomms,E14367,Supplies & Services           ,Comms and Computing           ,DG15,Network Maintenance                     ,7997.5,02/03/2014,REV,NITRO                         
67,Central Services,SupS IT,Operations & Telecomms,E14367,Supplies & Services           ,Comms and Computing           ,DG15,Network Maintenance                     ,2300,12/02/2014,REV,NETFORT TECHNOLOGIES LTD      
68,Central Services,SupS IT,Operations & Telecomms,E14367,Supplies & Services           ,Comms and Computing           ,DG15,Network Maintenance                     ,6011.25,01/01/2014,REV,NEW NET TECHNOLOGIES          
69,Central Services,SupS IT,Operations & Telecomms,E14367,Supplies & Services           ,Comms and Computing           ,DG15,Network Maintenance                     ,4305,02/01/2014,REV,BT REDCARE                    
70,Central Services,SupS IT,Operations & Telecomms,E14367,Supplies & Services           ,Comms and Computing           ,DG54,Corporate Telephones                    ,1066.68,29/01/2014,REV,O2 (UK) LIMITED               
71,Central Services,SupS IT,Operations & Telecomms,E14367,Supplies & Services           ,Comms and Computing           ,DG54,Corporate Telephones                    ,-1660,23/01/2014,REV,EVERYTHING EVERYWHERE         
72,Central Services,SupS IT,Operations & Telecomms,E14367,Supplies & Services           ,Comms and Computing           ,DG54,Corporate Telephones                    ,9719.05,17/01/2014,REV,ORANGE P'MENT PRO'SING AIRTIME
73,Central Services,SupS IT,Operations & Telecomms,E14367,Supplies & Services           ,Comms and Computing           ,DG54,Corporate Telephones                    ,2709.9,02/02/2014,REV,COLT TELECOMMUNICATIONS       
74,Central Services,SupS IT,Operations & Telecomms,E14367,Supplies & Services           ,Comms and Computing           ,DG54,Corporate Telephones                    ,9677.09,04/02/2014,REV,T MOBILE (UK)                 
75,Central Services,SupS IT,Operations & Telecomms,E14367,Supplies & Services           ,Comms and Computing           ,DG54,Corporate Telephones                    ,761.26,12/02/2014,REV,T MOBILE (UK)                 
76,Central Services,SupS IT,Operations & Telecomms,E14367,Supplies & Services           ,Comms and Computing           ,DG54,Corporate Telephones                    ,8318.76,02/12/2013,REV,COLT TELECOMMUNICATIONS       
77,Central Services,SupS IT,Operations & Telecomms,E14367,Supplies & Services           ,Comms and Computing           ,DG54,Corporate Telephones                    ,-875,23/01/2014,REV,EVERYTHING EVERYWHERE         
78,Central Services,SupS IT,Operations & Telecomms,E14367,Supplies & Services           ,Comms and Computing           ,DG54,Corporate Telephones                    ,-900,15/01/2014,REV,EVERYTHING EVERYWHERE         
79,Central Services,SupS IT,Distributed Services,E14368,Supplies & Services           ,Comms and Computing           ,DG16,Distributed & Network Purchase          ,6456,20/01/2014,REV,FORDWAY LTD                   
80,Central Services,SupS IT,Distributed Services,E14368,Supplies & Services           ,Comms and Computing           ,DG63,Software Licences - Data                ,999,25/02/2014,REV,NU NETWORK PRODUCTS LTD       
81,Central Services,SupS IT,Distributed Services,E14368,Supplies & Services           ,Comms and Computing           ,DG63,Software Licences - Data                ,589,25/02/2014,REV,V-SUB SOLUTIONS               
82,Central Services,SupS IT,Distributed Services,E14368,Supplies & Services           ,Comms and Computing           ,DG63,Software Licences - Data                ,2031,25/02/2014,REV,NU NETWORK PRODUCTS LTD       
83,Central Services,SupS IT,Corp Saving-IT Consolidation,E14370,Premises Related Expenditure  ,RepairsAlterations&MtceOfBldgs,BA01,DDM - General Building                  ,1656,20/01/2014,REV,COBSEN-DAVIES ROOFING (LOND)LT
84,Central Services,SupS IT,Corp Saving-IT Consolidation,E14370,Premises Related Expenditure  ,RepairsAlterations&MtceOfBldgs,BA01,DDM - General Building                  ,11450,12/02/2014,REV,SALTASH ENTERPRISES LTD       
85,Central Services,SupS IT,Corp Saving-IT Consolidation,E14370,Premises Related Expenditure  ,RepairsAlterations&MtceOfBldgs,BA01,DDM - General Building                  ,59825,26/02/2014,REV,SALTASH ENTERPRISES LTD       
86,Central Services,SupS IT,Corp Saving-IT Consolidation,E14370,Premises Related Expenditure  ,RepairsAlterations&MtceOfBldgs,BA01,DDM - General Building                  ,3662.75,17/02/2014,REV,SALTASH ENTERPRISES LTD       
87,Central Services,SupS IT,Corp Saving-IT Consolidation,E14370,Premises Related Expenditure  ,RepairsAlterations&MtceOfBldgs,BA01,DDM - General Building                  ,5393,28/01/2014,REV,M & G CONSTRUCTION LTD        
88,Central Services,SupS IT,No longer used,E14371,Employees                     ,Direct Employee Expenses      ,AA17,Agency Staff & Casual Paymts            ,5333.4,04/02/2014,REV,SMARTSOURCING PLC             
89,Central Services,SupS IT,No longer used,E14371,Employees                     ,Direct Employee Expenses      ,AA17,Agency Staff & Casual Paymts            ,7542.92,18/12/2013,REV,REDACTED
90,Central Services,SupS IT,No longer used,E14371,Employees                     ,Direct Employee Expenses      ,AA17,Agency Staff & Casual Paymts            ,1198,03/02/2014,REV,REDACTED
91,Central Services,SupS IT,No longer used,E14371,Employees                     ,Direct Employee Expenses      ,AA17,Agency Staff & Casual Paymts            ,1797,03/02/2014,REV,REDACTED
92,Central Services,SupS IT,No longer used,E14371,Employees                     ,Direct Employee Expenses      ,AA17,Agency Staff & Casual Paymts            ,2995,22/01/2014,REV,REDACTED
93,Central Services,SupS IT,No longer used,E14371,Employees                     ,Direct Employee Expenses      ,AA17,Agency Staff & Casual Paymts            ,2995,30/01/2014,REV,REDACTED
94,Central Services,SupS IT,No longer used,E14371,Supplies & Services           ,Services                      ,DF03,Consultants                             ,5100,31/01/2014,REV,REDQUADRANT LTD               
95,Central Services,SupS IT,No longer used,E14371,Supplies & Services           ,Services                      ,DF03,Consultants                             ,16850,29/11/2013,REV,REDQUADRANT LTD               
96,Central Services,SupS IT,Business Systems - Deptl Supt,E14377,Supplies & Services           ,Comms and Computing           ,DG05,Telephones - Gen-Creditors              ,1095,09/01/2014,REV,CISILION LTD                  
97,Central Services,SupS IT,Business Systems - Deptl Supt,E14377,Supplies & Services           ,Comms and Computing           ,DG07,Computer Software                       ,22058.04,09/01/2014,REV,CISILION LTD                  
98,,,8 Wilton Road                           ,CC017AA,New Construction Conversion and Renovation,,B2,Site Surveys D&S Structure              ,695,20/01/2014,CAP,ARBORHELP                     
98,Central Services,SupS IT,Business Systems - Deptl Supt,E14377,Supplies & Services           ,Comms and Computing           ,DG15,Network Maintenance                     ,10752.24,10/12/2013,REV,SPECIALIST COMPUTER CENT. PLC 
99,,,8 Wilton Road                           ,CC017AA,New Construction Conversion and Renovation,,B4,Contractor - Site works                 ,600,16/12/2013,CAP,CLARKE CONSULTANCY            
99,Central Services,SupS IT,Business Systems - Deptl Supt,E14377,Supplies & Services           ,Comms and Computing           ,DG15,Network Maintenance                     ,8191.08,10/12/2013,REV,SPECIALIST COMPUTER CENT. PLC 
100,,,Laptops for Other Staff                 ,CC018EB,Vehicles Plant Equipment and Machinery,,D3,Equipment                               ,1403.1,07/01/2014,CAP,SPECIALIST COMPUTER CENT. PLC 
100,Central Services,SupS IT,Business Systems - Deptl Supt,E14377,Supplies & Services           ,Comms and Computing           ,DG15,Network Maintenance                     ,4409.55,10/12/2013,REV,SPECIALIST COMPUTER CENT. PLC 
101,Central Services,SupS IT,Business Systems - Deptl Supt,E14377,Supplies & Services           ,Comms and Computing           ,DG57,Licences Microsoft Select               ,35809.41,27/01/2014,REV,DATA TECHNIQUES               
101,,,Laptops for Other Staff                 ,CC018EB,Vehicles Plant Equipment and Machinery,,D3,Equipment                               ,605.98,19/02/2014,CAP,MISCO                         
102,Cultural Env Reg&Plan Services,Housing Standards,Shared Regulatory Service Proj          ,G00091,Supplies & Services           ,Services                      ,DF03,Consultants                             ,12600,31/01/2014,REV,GATENBYSANDERSON LIMITED      
102,,,Merton Dementia Hub                     ,CC021AA,New Construction Conversion and Renovation,,B4,Contractor - Site works                 ,11625,31/01/2014,CAP,MILLANE CONTRACT SERVICES LTD 
103,,,Merton Dementia Hub                     ,CC021AA,New Construction Conversion and Renovation,,B4,Contractor - Site works                 ,3285.94,24/02/2014,CAP,DATA TECHNIQUES               
103,Cultural Env Reg&Plan Services,Housing Standards,Shared Regulatory Service Proj          ,G00091,Supplies & Services           ,Services                      ,DF03,Consultants                             ,1741.5,03/02/2014,REV,LGG                           
104,Cultural Env Reg&Plan Services,Mgt & Support (Env),Senior Mgt. - E.S.C.,G00100,Supplies & Services           ,Comms and Computing           ,DG07,Computer Software                       ,985,19/02/2014,REV,CIVICA SERVICES LTD           
104,,,Merton Dementia Hub                     ,CC021AA,New Construction Conversion and Renovation,,B4,Contractor - Site works                 ,74921.5,31/01/2014,CAP,MILLANE CONTRACT SERVICES LTD 
105,,,Merton Dementia Hub                     ,CC021AA,New Construction Conversion and Renovation,,B4,Contractor - Site works                 ,692.94,24/02/2014,CAP,DATA TECHNIQUES               
105,Highways & Transport Services,Hwys/Rds (struct) not split,Surf Water Drainage,G00123,Third Party Payments          ,Private Contractors           ,EH56,Carriageway/Fway Maint                  ,1875,31/01/2014,REV,STILLWATER ASSOCIATES         
106,Highways & Transport Services,Repair prin/oth rds not split,Walk Sheets,G00127,Third Party Payments          ,Private Contractors           ,EH56,Carriageway/Fway Maint                  ,710.31,11/02/2014,REV,FM CONWAY LTD                 
106,,,Disabled Facilities Grant DCLG          ,CE004RA,Other Capital Expenditure,,E1,Grants                                  ,2250.25,19/02/2014,CAP,WEALDEN REHAB                 
107,Highways & Transport Services,Repair prin/oth rds not split,Walk Sheets,G00127,Third Party Payments          ,Private Contractors           ,EH56,Carriageway/Fway Maint                  ,1204.69,11/02/2014,REV,FM CONWAY LTD                 
107,,,Disabled Facilities Grant DCLG          ,CE004RA,Other Capital Expenditure,,E1,Grants                                  ,6018.4,03/02/2014,CAP,REDACTED
108,Highways & Transport Services,Repair prin/oth rds not split,Walk Sheets,G00127,Third Party Payments          ,Private Contractors           ,EH56,Carriageway/Fway Maint                  ,11140.36,11/02/2014,REV,FM CONWAY LTD                 
108,,,Disabled Facilities Grant DCLG          ,CE004RA,Other Capital Expenditure,,E1,Grants                                  ,668.04,03/02/2014,CAP,REDACTED
109,Highways & Transport Services,Repair prin/oth rds not split,Walk Sheets,G00127,Third Party Payments          ,Private Contractors           ,EH56,Carriageway/Fway Maint                  ,2564.19,26/02/2014,REV,FM CONWAY LTD                 
109,,,Disabled Facilities Grant DCLG          ,CE004RA,Other Capital Expenditure,,E1,Grants                                  ,768,03/02/2014,CAP,SUTTON STAYING PUT            
110,Highways & Transport Services,Winter Maintenance.,Winter Maintenance,G00150,Third Party Payments          ,Private Contractors           ,EH56,Carriageway/Fway Maint                  ,1839,11/02/2014,REV,FM CONWAY LTD                 
110,,,Disabled Facilities Grant DCLG          ,CE004RA,Other Capital Expenditure,,E1,Grants                                  ,704.8,27/02/2014,CAP,STAYING FIRST                 
111,,,Disabled Facilities Grant DCLG          ,CE004RA,Other Capital Expenditure,,E1,Grants                                  ,14353.5,20/02/2014,CAP,GARVEY BROS BUILDERS          
111,Highways & Transport Services,Winter Maintenance.,Winter Maintenance,G00150,Third Party Payments          ,Private Contractors           ,EH56,Carriageway/Fway Maint                  ,4860,30/01/2014,REV,MET OFFICE                    
112,Highways & Transport Services,TRAF & HWYS CAPITAL PROJECTS,TRAF & HWYS CAPITAL PROJECTS,G00210,Supplies & Services           ,Services                      ,DF05,Surveys (General)                       ,5850,23/01/2014,REV,JACOBS UK LIMITED             
112,,,Disabled Facilities Grant DCLG          ,CE004RA,Other Capital Expenditure,,E1,Grants                                  ,537,28/02/2014,CAP,STAYING FIRST                 
113,,,Disabled Facilities Grant DCLG          ,CE004RA,Other Capital Expenditure,,E1,Grants                                  ,1072.76,27/02/2014,CAP,ABLE 2 OCCUP.THERAPY SERV.LTD 
113,Highways & Transport Services,TRAF & HWYS CAPITAL PROJECTS,TRAF & HWYS CAPITAL PROJECTS,G00210,Supplies & Services           ,Services                      ,DF05,Surveys (General)                       ,4500,23/01/2014,REV,JACOBS UK LIMITED             
114,,,Disabled Facilities Grant DCLG          ,CE004RA,Other Capital Expenditure,,E1,Grants                                  ,961.85,28/02/2014,CAP,ABLE 2 OCCUP.THERAPY SERV.LTD 
114,Highways & Transport Services,Transport Plg/Policy/Strategy,CPZ implementation & Consultat,G00211,Third Party Payments          ,Private Contractors           ,EH56,Carriageway/Fway Maint                  ,1208.35,11/02/2014,REV,FM CONWAY LTD                 
115,,,Disabled Facilities Grant DCLG          ,CE004RA,Other Capital Expenditure,,E1,Grants                                  ,552.5,27/02/2014,CAP,ABLE 2 OCCUP.THERAPY SERV.LTD 
115,Highways & Transport Services,Transport Plg/Policy/Strategy,CPZ implementation & Consultat,G00211,Third Party Payments          ,Private Contractors           ,EH56,Carriageway/Fway Maint                  ,571.65,31/01/2014,REV,MAY GURNEY LTD T/A CARTLEDGE  
116,,,Disabled Facilities Grant DCLG          ,CE004RA,Other Capital Expenditure,,E1,Grants                                  ,774.4,27/02/2014,CAP,ABLE 2 OCCUP.THERAPY SERV.LTD 
116,Highways & Transport Services,Transport Plg/Policy/Strategy,CPZ implementation & Consultat,G00211,Third Party Payments          ,Private Contractors           ,EH56,Carriageway/Fway Maint                  ,3964.96,26/02/2014,REV,FM CONWAY LTD                 
117,Highways & Transport Services,Traffic Management,Tr Man & Accid Sch,G00220,Supplies & Services           ,Services                      ,DF02,Misc Advertising/Publicity              ,946.14,20/01/2014,REV,NEWSQUEST (LONDON)LTD         
117,,,Disabled Facilities Grant DCLG          ,CE004RA,Other Capital Expenditure,,E1,Grants                                  ,623.41,19/02/2014,CAP,SUTTON STAYING PUT            
118,,,Disabled Facilities Grant DCLG          ,CE004RA,Other Capital Expenditure,,E1,Grants                                  ,6995,27/02/2014,CAP,AQUANEED LIMITED              
118,Highways & Transport Services,Traffic Management,Tr Man & Accid Sch,G00220,Supplies & Services           ,Services                      ,DF02,Misc Advertising/Publicity              ,873.36,24/01/2014,REV,NEWSQUEST (LONDON)LTD         
119,,,Disabled Facilities Grant DCLG          ,CE004RA,Other Capital Expenditure,,E1,Grants                                  ,5325,27/02/2014,CAP,ASCENDIT LIFTS LTD            
119,Highways & Transport Services,Street Lighting.,Street Lighting .,G00260,Premises Related Expenditure  ,Energy Costs                  ,BB02,Electricity                             ,49252.77,03/02/2014,REV,SCOTTISHPOWER                 
120,Highways & Transport Services,Street Lighting.,Street Lighting .,G00260,Third Party Payments          ,Private Contractors           ,EH01,Miscellaneous Agency Services           ,-6322.31,02/10/2013,REV,MAY GURNEY LTD T/A CARTLEDGE  
120,,,Disabled Facilities Grant DCLG          ,CE004RA,Other Capital Expenditure,,E1,Grants                                  ,528.4,27/02/2014,CAP,REDACTED
121,,,Disabled Facilities Grant DCLG          ,CE004RA,Other Capital Expenditure,,E1,Grants                                  ,2349.6,19/02/2014,CAP,EFFECTABLE LTD.               
121,Highways & Transport Services,Street Lighting.,Street Lighting .,G00260,Third Party Payments          ,Private Contractors           ,EH01,Miscellaneous Agency Services           ,752.36,03/02/2014,REV,MAY GURNEY LTD T/A CARTLEDGE  
122,Highways & Transport Services,Street Lighting.,Street Lighting .,G00260,Third Party Payments          ,Private Contractors           ,EH01,Miscellaneous Agency Services           ,3254.76,31/01/2014,REV,MAY GURNEY LTD T/A CARTLEDGE  
122,,,Small Repairs Grant                     ,CE005RA,Other Capital Expenditure,,E1,Grants                                  ,3600,24/02/2014,CAP,PARAGON GLASS SERVICES LTD    
123,,,Small Repairs Grant                     ,CE005RA,Other Capital Expenditure,,E1,Grants                                  ,4000,10/02/2014,CAP,LIFESTYLE WINDOW SYSTEMS      
123,Highways & Transport Services,Street Lighting.,Street Lighting .,G00260,Third Party Payments          ,Private Contractors           ,EH01,Miscellaneous Agency Services           ,1344,07/02/2014,REV,UK POWER NETWORKS (OPERATIONS)
124,Highways & Transport Services,Street Lighting.,Street Lighting .,G00260,Third Party Payments          ,Private Contractors           ,EH01,Miscellaneous Agency Services           ,13947.98,31/01/2014,REV,MAY GURNEY LTD T/A CARTLEDGE  
124,,,Mitcham - Outer London Fund             ,CE006FC,New Construction Conversion and Renovation,,B3,Other Expenses D&S Structure            ,2100,31/01/2014,CAP,STUDIO WEAVE LTD              
125,Highways & Transport Services,Street Lighting.,Street Lighting .,G00260,Third Party Payments          ,Private Contractors           ,EH01,Miscellaneous Agency Services           ,25585.71,26/02/2014,REV,MAY GURNEY LTD T/A CARTLEDGE  
125,,,Mitcham - Outer London Fund             ,CE006FC,New Construction Conversion and Renovation,,B3,Other Expenses D&S Structure            ,4425,31/01/2014,CAP,STUDIO WEAVE LTD              
126,,,B488 Landscape Dundonald Rec G          ,CE016CA,New Construction Conversion and Renovation,,B4,Contractor - Site works                 ,2050,01/02/2014,CAP,REDACTED
126,Highways & Transport Services,Street Lighting.,Street Lighting .,G00260,Third Party Payments          ,Private Contractors           ,EH01,Miscellaneous Agency Services           ,642,19/02/2014,REV,UK POWER NETWORKS (OPERATIONS)
127,,,Borough Roads Maintenance               ,CE026FA,New Construction Conversion and Renovation,,B4,Contractor - Site works                 ,30708.89,11/02/2014,CAP,FM CONWAY LTD                 
127,Highways & Transport Services,Street Lighting.,Street Lighting .,G00260,Third Party Payments          ,Private Contractors           ,EH01,Miscellaneous Agency Services           ,1590.18,31/01/2014,REV,MAY GURNEY LTD T/A CARTLEDGE  
128,,,Borough Roads Maintenance               ,CE026FA,New Construction Conversion and Renovation,,B4,Contractor - Site works                 ,35326.11,11/02/2014,CAP,FM CONWAY LTD                 
128,Highways & Transport Services,Street Lighting.,Street Lighting .,G00260,Third Party Payments          ,Private Contractors           ,EH01,Miscellaneous Agency Services           ,14693.32,26/02/2014,REV,MAY GURNEY LTD T/A CARTLEDGE  
129,,,Homezones                               ,CE026FC,New Construction Conversion and Renovation,,B4,Contractor - Site works                 ,60000,11/02/2014,CAP,FM CONWAY LTD                 
129,Highways & Transport Services,Street Lighting.,Street Lighting .,G00260,Third Party Payments          ,Private Contractors           ,EH01,Miscellaneous Agency Services           ,1888.53,31/01/2014,REV,MAY GURNEY LTD T/A CARTLEDGE  
130,,,Maintain AntiSkid and Coloured          ,CE027FA,New Construction Conversion and Renovation,,B4,Contractor - Site works                 ,1380,26/02/2014,CAP,FM CONWAY LTD                 
130,Highways & Transport Services,Off-street parking,St. Georges Car Park EAST,G00300,Premises Related Expenditure  ,Rents                         ,BC01,Miscellaneous Rents                     ,824.39,12/02/2014,REV,LLOYDS BANK SF NOMINEES LTD   
131,,,Repairs to Footways                     ,CE029FA,New Construction Conversion and Renovation,,B4,Contractor - Site works                 ,50000,11/02/2014,CAP,FM CONWAY LTD                 
131,Highways & Transport Services,Off-street parking,St. Georges Car Park WEST M/S,G00302,Premises Related Expenditure  ,Energy Costs                  ,BB02,Electricity                             ,791.94,17/02/2014,REV,SCOTTISHPOWER                 
132,,,Repairs to Footways                     ,CE029FA,New Construction Conversion and Renovation,,B4,Contractor - Site works                 ,56777.75,11/02/2014,CAP,FM CONWAY LTD                 
132,Highways & Transport Services,Off-street parking,St. Georges Car Park WEST M/S,G00302,Premises Related Expenditure  ,Energy Costs                  ,BB02,Electricity                             ,1632.12,31/01/2014,REV,SCOTTISHPOWER                 
133,,,Repairs to Footways                     ,CE029FA,New Construction Conversion and Renovation,,B4,Contractor - Site works                 ,20034.47,11/02/2014,CAP,FM CONWAY LTD                 
133,Highways & Transport Services,Parking Enforcement not split,Civil Enforcement Officers,G00330,Supplies & Services           ,Equip Furniture/Materials     ,DA09,Equip-Purchases                         ,2400,05/02/2014,REV,LONDON BOROUGH OF CROYDON     
134,,,Repairs to Footways                     ,CE029FA,New Construction Conversion and Renovation,,B4,Contractor - Site works                 ,30000,11/02/2014,CAP,FM CONWAY LTD                 
134,Highways & Transport Services,Parking Enforcement not split,Operational Running Costs,G00331,Supplies & Services           ,Equip Furniture/Materials     ,DA09,Equip-Purchases                         ,10735,05/02/2014,REV,PARKEON LTD                   
135,Highways & Transport Services,Parking Enforcement not split,Operational Running Costs,G00331,Supplies & Services           ,Equip Furniture/Materials     ,DA09,Equip-Purchases                         ,1461.1,28/01/2014,REV,MAGRATH SECURITY              
135,,,Leisure Centre Plant & Machine          ,CE038MA,New Construction Conversion and Renovation,,B4,Contractor - Site works                 ,51497,04/02/2014,CAP,SALTASH ENTERPRISES LTD       
136,Highways & Transport Services,Parking Enforcement not split,Operational Running Costs,G00331,Supplies & Services           ,Equip Furniture/Materials     ,DA09,Equip-Purchases                         ,1800,17/02/2014,REV,PARKEON LTD                   
136,,,Boiler and flue                         ,CE046AA,New Construction Conversion and Renovation,,B4,Contractor - Site works                 ,20203.2,13/02/2014,CAP,SALTASH ENTERPRISES LTD       
137,Highways & Transport Services,Parking Enforcement not split,Operational Running Costs,G00331,Supplies & Services           ,Prntng Stnry Gen Off Exp      ,DE01,External Printing                       ,2838,30/01/2014,REV,NAGELS UK LTD                 
137,,,Boiler and flue                         ,CE046AA,New Construction Conversion and Renovation,,B4,Contractor - Site works                 ,5083,13/02/2014,CAP,SALTASH ENTERPRISES LTD       
138,Highways & Transport Services,Parking Enforcement not split,Operational Running Costs,G00331,Supplies & Services           ,Expenses                      ,DH02,Conferences                             ,850,29/01/2014,REV,DODS PARLIAMENTRY COMM LTD    
138,,,Boiler and flue                         ,CE046AA,New Construction Conversion and Renovation,,B4,Contractor - Site works                 ,1495,13/02/2014,CAP,PJ HARVEY & CO LTD            
139,Highways & Transport Services,Parking Enforcement not split,Operational Running Costs,G00331,Supplies & Services           ,Grants and Subscriptions      ,DJ54,Contributions                           ,1066,14/02/2014,REV,BRITISH PARKING ASSOCIATION   
139,,,Improve markings & road signs           ,CE066EA,New Construction Conversion and Renovation,,B4,Contractor - Site works                 ,3779.26,17/02/2014,CAP,MAY GURNEY LTD T/A CARTLEDGE  
140,Highways & Transport Services,Parking Enforcement not split,Operational Running Costs,G00331,Third Party Payments          ,Other Agencies                ,EJ58,Parking Cttee for London                ,10000,27/02/2014,REV,HMCTS                         
140,,,Improve markings & road signs           ,CE066EA,New Construction Conversion and Renovation,,B6,Other Costs - Site works                ,563,20/02/2014,CAP,UK POWER NETWORKS (OPERATIONS)
141,,,Improve markings & road signs           ,CE066EA,New Construction Conversion and Renovation,,B6,Other Costs - Site works                ,6225,24/02/2014,CAP,R.J.H.WELDING                 
141,Highways & Transport Services,Repair prin/oth rds not split,Flood Risk Management,G00350,Supplies & Services           ,Services                      ,DF03,Consultants                             ,3501.26,10/02/2014,REV,URS INFRASTRUCTURE & ENV UK LT
142,,,Street Lighting Replacement Pr          ,CE068FA,New Construction Conversion and Renovation,,B4,Contractor - Site works                 ,32356.28,31/01/2014,CAP,MAY GURNEY LTD T/A CARTLEDGE  
142,Highways & Transport Services,Repair prin/oth rds not split,Flood Risk Management,G00350,Supplies & Services           ,Services                      ,DF03,Consultants                             ,14321.6,18/02/2014,REV,URS INFRASTRUCTURE & ENV UK LT
143,,,Street Lighting Replacement Pr          ,CE068FA,New Construction Conversion and Renovation,,B4,Contractor - Site works                 ,-1028.35,02/10/2013,CAP,MAY GURNEY LTD T/A CARTLEDGE  
143,Highways & Transport Services,Repair prin/oth rds not split,Flood Risk Management,G00350,Supplies & Services           ,Services                      ,DF03,Consultants                             ,6830,21/01/2014,REV,URS INFRASTRUCTURE & ENV UK LT
144,Highways & Transport Services,Repair prin/oth rds not split,Flood Risk Management,G00350,Third Party Payments          ,Private Contractors           ,EH56,Carriageway/Fway Maint                  ,4284.64,26/02/2014,REV,FM CONWAY LTD                 
144,,,Street Lighting Replacement Pr          ,CE068FA,New Construction Conversion and Renovation,,B4,Contractor - Site works                 ,535.1,31/01/2014,CAP,MAY GURNEY LTD T/A CARTLEDGE  
145,Highways & Transport Services,Hwys/Rds (struct) not split,Footpath Crossings.,G00390,Third Party Payments          ,Private Contractors           ,EH56,Carriageway/Fway Maint                  ,7910.47,11/02/2014,REV,FM CONWAY LTD                 
145,,,Street Lighting Replacement Pr          ,CE068FA,New Construction Conversion and Renovation,,B6,Other Costs - Site works                ,659,06/02/2014,CAP,UK POWER NETWORKS (OPERATIONS)
146,Highways & Transport Services,Hwys/Rds (struct) not split,Footpath Crossings.,G00390,Third Party Payments          ,Private Contractors           ,EH56,Carriageway/Fway Maint                  ,11911.18,26/02/2014,REV,FM CONWAY LTD                 
146,,,Street Lighting Replacement Pr          ,CE068FA,New Construction Conversion and Renovation,,B6,Other Costs - Site works                ,642,20/02/2014,CAP,UK POWER NETWORKS (OPERATIONS)
147,Cultural Env Reg&Plan Services,Street Clean - Not highways,Street Cleansing (Inc. Gully),G00492,Employees                     ,Direct Employee Expenses      ,AA17,Agency Staff & Casual Paymts            ,7665.43,27/01/2014,REV,REDACTED
147,,,Wimbledon Area Traffic Study            ,CE077FA,New Construction Conversion and Renovation,,B4,Contractor - Site works                 ,12799.69,31/01/2014,CAP,MAY GURNEY LTD T/A CARTLEDGE  
148,Cultural Env Reg&Plan Services,Street Clean - Not highways,Street Cleansing (Inc. Gully),G00492,Supplies & Services           ,Equip Furniture/Materials     ,DA31,Waste Sacks & Bags                      ,783,27/01/2014,REV,CROMWELL POLYTHENE            
148,,,Wimbledon Area Traffic Study            ,CE077FA,New Construction Conversion and Renovation,,B4,Contractor - Site works                 ,1487.31,31/01/2014,CAP,MAY GURNEY LTD T/A CARTLEDGE  
149,Cultural Env Reg&Plan Services,Street Clean - Not highways,Street Cleansing (Inc. Gully),G00492,Supplies & Services           ,Comms and Computing           ,DG14,Telephones - Mobile                     ,630,12/04/2013,REV,EVERYTHING EVERYWHERE         
149,,,Kingston/Hartfield Rd StratCor          ,CE104FC,New Construction Conversion and Renovation,,B4,Contractor - Site works                 ,50000,11/02/2014,CAP,FM CONWAY LTD                 
150,Cultural Env Reg&Plan Services,Waste Disposal (not separated),Waste Disposal .,G00550,Third Party Payments          ,Private Contractors           ,EH01,Dog Bin Disposal - Biffa                ,4086,11/01/2014,REV,BRITANNIA CREST RECYCLING LTD 
150,,,Accesibility Programme                  ,CE104FD,New Construction Conversion and Renovation,,B4,Contractor - Site works                 ,10000,11/02/2014,CAP,FM CONWAY LTD                 
151,Cultural Env Reg&Plan Services,Waste Disposal (not separated),Waste Disposal .,G00550,Third Party Payments          ,Private Contractors           ,EH01,Dog Bin Disposal - Biffa                ,889.64,18/01/2014,REV,BRITANNIA CREST RECYCLING LTD 
151,,,Morden Town Centre                      ,CE104FK,New Construction Conversion and Renovation,,B6,Other Costs - Site works                ,26000,23/01/2014,CAP,TRANSPORT FOR LONDON          
152,Cultural Env Reg&Plan Services,Waste Disposal (not separated),Waste Disposal .,G00550,Third Party Payments          ,Private Contractors           ,EH01,Dog Bin Disposal - Biffa                ,597.42,18/01/2014,REV,BRITANNIA CREST RECYCLING LTD 
152,,,Victoria Rd Bus Access Impr             ,CE104FL,New Construction Conversion and Renovation,,B4,Contractor - Site works                 ,30000,11/02/2014,CAP,FM CONWAY LTD                 
153,Cultural Env Reg&Plan Services,Waste Disposal (not separated),Waste Disposal .,G00550,Third Party Payments          ,Private Contractors           ,EH01,Dog Bin Disposal - Biffa                ,967.52,31/01/2014,REV,BRITANNIA CREST RECYCLING LTD 
153,,,Casualty Reduction & Schools            ,CE104RA,New Construction Conversion and Renovation,,B4,Contractor - Site works                 ,20000,11/02/2014,CAP,FM CONWAY LTD                 
154,Cultural Env Reg&Plan Services,Waste Disposal (not separated),Waste Disposal .,G00550,Third Party Payments          ,Private Contractors           ,EH01,Dog Bin Disposal - Biffa                ,1282.42,18/01/2014,REV,BRITANNIA CREST RECYCLING LTD 
154,,,Casualty Reduction & Schools            ,CE104RA,New Construction Conversion and Renovation,,B4,Contractor - Site works                 ,700,26/02/2014,CAP,FM CONWAY LTD                 
155,Cultural Env Reg&Plan Services,Waste Disposal (not separated),Waste Disposal .,G00550,Third Party Payments          ,Private Contractors           ,EH01,Dog Bin Disposal - Biffa                ,595.59,17/01/2014,REV,BIFFA WASTE SERVICES LTD      
155,,,Casualty Reduction & Schools            ,CE104RA,New Construction Conversion and Renovation,,C3,Public Notices - Structure              ,790.56,17/01/2014,CAP,NEWSQUEST (LONDON)LTD         
156,Cultural Env Reg&Plan Services,Waste Disposal (not separated),Waste Disposal .,G00550,Third Party Payments          ,Private Contractors           ,EH01,Dog Bin Disposal - Biffa                ,737.88,11/01/2014,REV,BRITANNIA CREST RECYCLING LTD 
156,,,School & Road Safety Campaigns          ,CE104RC,New Construction Conversion and Renovation,,B2,Site Surveys D&S Structure              ,42275.18,17/01/2014,CAP,REDACTED
157,Cultural Env Reg&Plan Services,Waste Disposal (not separated),Waste Disposal .,G00550,Third Party Payments          ,Private Contractors           ,EH01,Dog Bin Disposal - Biffa                ,2885.6,25/01/2014,REV,BRITANNIA CREST RECYCLING LTD 
157,,,School & Road Safety Campaigns          ,CE104RC,Other Capital Expenditure,,E3,Miscellaneous Capital Expendit          ,740,22/01/2014,CAP,ROOM 9 MEDIA LTD              
158,,,Cycle Improvements                      ,CE104RM,New Construction Conversion and Renovation,,B4,Contractor - Site works                 ,911.74,11/02/2014,CAP,FM CONWAY LTD                 
158,Cultural Env Reg&Plan Services,Waste Disposal (not separated),Waste Disposal .,G00550,Third Party Payments          ,Private Contractors           ,EH04,C1 Viridor SLWP Landfill Contract       ,339550.89,29/01/2014,REV,KINGSTON CORPORATION          
159,,,Wim TC Accessibility & Streets          ,CE106FA,New Construction Conversion and Renovation,,B4,Contractor - Site works                 ,30000,11/02/2014,CAP,FM CONWAY LTD                 
159,Cultural Env Reg&Plan Services,Waste Disposal (not separated),Waste Disposal .,G00550,Third Party Payments          ,Private Contractors           ,EH10,SLWP C1 HAULAGE DRY RECYCLABLES         ,33412.69,29/01/2014,REV,KINGSTON CORPORATION          
160,,,King George Rec Play Area               ,CE110CB,New Construction Conversion and Renovation,,B4,Contractor - Site works                 ,1812,24/01/2014,CAP,CPLC WATER LIMITED            
160,Cultural Env Reg&Plan Services,Waste Disposal (not separated),Waste Disposal .,G00550,Third Party Payments          ,Private Contractors           ,EH11,SLWP PROCUREMENT COSTS                  ,110000,24/01/2014,REV,KINGSTON CORPORATION          
161,Cultural Env Reg&Plan Services,Waste Disposal (not separated),Waste Disposal .,G00550,Third Party Payments          ,Private Contractors           ,EH91,Disposal of Asbestos                    ,1500,22/01/2014,REV,CITY OF LONDON CORPORATION    
161,,,Tamworth Rec Interactive Water          ,CE110CD,New Construction Conversion and Renovation,,B4,Contractor - Site works                 ,3980,01/02/2014,CAP,REDACTED
162,Cultural Env Reg&Plan Services,Waste Disposal (not separated),Waste Disposal .,G00550,Third Party Payments          ,Private Contractors           ,EH91,Disposal of Asbestos                    ,574.64,22/01/2014,REV,CITY OF LONDON CORPORATION    
162,,,Tamworth Rec Interactive Water          ,CE110CD,New Construction Conversion and Renovation,,B4,Contractor - Site works                 ,43057,28/01/2014,CAP,USTIGATE LTD                  
163,Cultural Env Reg&Plan Services,Waste Disposal (not separated),Waste Disposal .,G00550,Third Party Payments          ,Private Contractors           ,EH91,Disposal of Asbestos                    ,1448.65,22/01/2014,REV,CITY OF LONDON CORPORATION    
163,,,BCP Cycle Parking                       ,CE128FB,New Construction Conversion and Renovation,,B4,Contractor - Site works                 ,6000,11/02/2014,CAP,FM CONWAY LTD                 
164,,,Wimb Park Hall                          ,CE146BA,New Construction Conversion and Renovation,,B4,Contractor - Site works                 ,29326.04,03/02/2014,CAP,MIZEN DESIGN BUILD LIMITED    
164,Cultural Env Reg&Plan Services,Civic Amenity Sites,Garth Road Site,G00580,Premises Related Expenditure  ,RepairsAlterations&MtceOfBldgs,BA70,Maintenance of Weighbridge              ,553,31/01/2014,REV,PRECIA MOLEN                  
165,Cultural Env Reg&Plan Services,Civic Amenity Sites,Garth Road Site,G00580,Supplies & Services           ,Services                      ,DF09,Miscellaneous Fees                      ,735,26/01/2014,REV,MATT UK                       
165,,,Wimb Park Hall                          ,CE146BA,New Construction Conversion and Renovation,,B4,Contractor - Site works                 ,965.37,03/02/2014,CAP,MIZEN DESIGN BUILD LIMITED    
166,Cultural Env Reg&Plan Services,Civic Amenity Sites,Garth Road Site,G00580,Third Party Payments          ,Private Contractors           ,EH01,MISCELLANEOUS AGENCY SERVICES           ,217949.76,28/01/2014,REV,KINGSTON CORPORATION          
166,,,Wimb Park Hall                          ,CE146BA,New Construction Conversion and Renovation,,B4,Contractor - Site works                 ,2640.94,03/02/2014,CAP,MIZEN DESIGN BUILD LIMITED    
167,Highways & Transport Services,Hwys/Rds (struct) not split,Grass Cut/Tr Mtce,G00600,Premises Related Expenditure  ,Ground Maintenance Costs      ,BL03,Maintenance of Grounds                  ,1939.13,26/02/2014,REV,FM CONWAY LTD                 
167,,,Wimb Park Hall                          ,CE146BA,New Construction Conversion and Renovation,,B4,Contractor - Site works                 ,3767.15,03/02/2014,CAP,MIZEN DESIGN BUILD LIMITED    
168,,,Wimb Park Hall                          ,CE146BA,New Construction Conversion and Renovation,,B4,Contractor - Site works                 ,713,31/01/2014,CAP,FIRST CHOICE FACILITIES PLC   
168,Cultural Env Reg&Plan Services,Public Health,Dog Control.,G00620,Third Party Payments          ,Private Contractors           ,EH02,Miscellaneous Hired Services            ,2761.5,07/02/2014,REV,NOAH'S ARK ENVIRONMENTAL SERV.
169,Cultural Env Reg&Plan Services,Recycling (Collection),Recycling Activities,G00640,Third Party Payments          ,Private Contractors           ,EH03,C3 DRY RECYCLING GATE FEE               ,43890.12,29/01/2014,REV,KINGSTON CORPORATION          
169,,,Wimb Park Hall                          ,CE146BA,New Construction Conversion and Renovation,,B4,Contractor - Site works                 ,1329,19/11/2013,CAP,NINGBO MANUFACTURING          
170,Cultural Env Reg&Plan Services,Recycling (Collection),Recycling Activities,G00640,Third Party Payments          ,Private Contractors           ,EH10,SLWP C1 EFW HAULAGE                     ,7257.99,29/01/2014,REV,KINGSTON CORPORATION          
170,,,Wimb Park Hall                          ,CE146BA,New Construction Conversion and Renovation,,B4,Contractor - Site works                 ,697.5,03/02/2014,CAP,MIZEN DESIGN BUILD LIMITED    
171,Cultural Env Reg&Plan Services,Recycling (Collection),Recycling Activities,G00640,Third Party Payments          ,Private Contractors           ,EH18,C3 FOOD WASTE GATE FEE                  ,19452.37,29/01/2014,REV,KINGSTON CORPORATION          
171,,,Wimb Park Hall                          ,CE146BA,New Construction Conversion and Renovation,,B4,Contractor - Site works                 ,826.21,03/02/2014,CAP,MIZEN DESIGN BUILD LIMITED    
172,Cultural Env Reg&Plan Services,Recycling (Collection),Recycling Activities,G00640,Third Party Payments          ,Private Contractors           ,EH19,C1 EFW ACCEPTANCE & BULK                ,2245.83,29/01/2014,REV,KINGSTON CORPORATION          
172,,,Wimb Park Hall                          ,CE146BA,New Construction Conversion and Renovation,,B4,Contractor - Site works                 ,2441.25,03/02/2014,CAP,MIZEN DESIGN BUILD LIMITED    
173,,,Wimb Park Hall                          ,CE146BA,New Construction Conversion and Renovation,,B4,Contractor - Site works                 ,57950.75,03/02/2014,CAP,MIZEN DESIGN BUILD LIMITED    
173,Cultural Env Reg&Plan Services,Recycling (Collection),Recycling Activities,G00640,Third Party Payments          ,Private Contractors           ,EH61,Green Waste Disposal                    ,5514.19,31/01/2014,REV,VIRIDOR WASTE KENT LTD        
174,Cultural Env Reg&Plan Services,Recycling (Collection),Recycling Activities,G00640,Third Party Payments          ,Private Contractors           ,EH63,EFW C3 GATE FEES                        ,22344.17,29/01/2014,REV,KINGSTON CORPORATION          
174,,,Wimb Park Hall                          ,CE146BA,New Construction Conversion and Renovation,,B4,Contractor - Site works                 ,1543.11,03/02/2014,CAP,MIZEN DESIGN BUILD LIMITED    
175,Cultural Env Reg&Plan Services,Recycling (Collection),Recycling Activities,G00640,Third Party Payments          ,Private Contractors           ,EH90,ADDITIONAL EFW UNDER SUFFOLK SCHEME     ,106776.83,29/01/2014,REV,KINGSTON CORPORATION          
175,,,Wimb Park Hall                          ,CE146BA,New Construction Conversion and Renovation,,B4,Contractor - Site works                 ,3260.13,03/02/2014,CAP,MIZEN DESIGN BUILD LIMITED    
176,Cultural Env Reg&Plan Services,Recycling (Collection),Recycling Activities,G00640,Third Party Payments          ,Private Contractors           ,EH94,C1 DRY RECYCLING ACCEPTANCE & BULK      ,6970.75,29/01/2014,REV,KINGSTON CORPORATION          
176,,,Wimb Park Hall                          ,CE146BA,New Construction Conversion and Renovation,,B4,Contractor - Site works                 ,10912.5,03/02/2014,CAP,MIZEN DESIGN BUILD LIMITED    
177,,,Wimb Park Hall                          ,CE146BA,New Construction Conversion and Renovation,,B4,Contractor - Site works                 ,697.5,03/02/2014,CAP,MIZEN DESIGN BUILD LIMITED    
177,Cultural Env Reg&Plan Services,Recycling (Collection),Food Waste Service,G00648,Supplies & Services           ,Equip Furniture/Materials     ,DA31,Waste Sacks & Bags                      ,987.78,10/01/2014,REV,SPHERE PROFFESSIONAL          
178,,,Wimb Park Hall                          ,CE146BA,New Construction Conversion and Renovation,,B4,Contractor - Site works                 ,813.36,03/02/2014,CAP,MIZEN DESIGN BUILD LIMITED    
178,Cultural Env Reg&Plan Services,Household Waste Collection,Refuse Collection (Operations),G00661,Employees                     ,Indirect Employee Expenses    ,AB57,External Training Costs                 ,2202.5,10/01/2014,REV,PRACTICAL HEALTH & SAFETY SER.
179,,,Wimb Park Hall                          ,CE146BA,New Construction Conversion and Renovation,,B4,Contractor - Site works                 ,1888.58,03/02/2014,CAP,MIZEN DESIGN BUILD LIMITED    
179,Cultural Env Reg&Plan Services,Housing Standards,Housing/Env,G00730,Supplies & Services           ,Equip Furniture/Materials     ,DA09,Equip-Purchases                         ,2720.07,29/01/2014,REV,SUPPORTING U LTD              
180,,,Wimb Park Hall                          ,CE146BA,New Construction Conversion and Renovation,,B4,Contractor - Site works                 ,616.5,03/02/2014,CAP,MIZEN DESIGN BUILD LIMITED    
180,Central Services,Grants - Voluntary Groups,Vestry Hall,G19290,Employees                     ,Direct Employee Expenses      ,AA17,Agency Staff & Casual Paymts            ,5023.47,10/02/2014,REV,REDACTED
181,Central Services,Grants - Voluntary Groups,Vestry Hall,G19290,Premises Related Expenditure  ,Energy Costs                  ,BB03,Gas (incl. Butane)                      ,1656.35,05/02/2014,REV,GAZPROM MARKETING&TRADING LTD 
181,,,Wimb Park Hall                          ,CE146BA,New Construction Conversion and Renovation,,B4,Contractor - Site works                 ,1239.8,06/02/2014,CAP,TRENT POTTERY & FURNITURE LTD 
182,,,19th Wimbledon Scouts                   ,CE147RA,Other Capital Expenditure,,E1,Grants                                  ,60000,31/01/2014,CAP,19TH WIMBLEDON SCOUT GROUP    
182,Central Services,Grants - Voluntary Groups,Vestry Hall,G19290,Premises Related Expenditure  ,Water Services                ,BE01,Use of Water (Metered)                  ,811.14,31/01/2014,REV,THAMES WATER UTILITIES LTD    
183,Central Services,Grants - Voluntary Groups,Vestry Hall,G19290,Premises Related Expenditure  ,Cleaning and Domestic Supplies,BH03,Cleaning Services                       ,1357.76,31/01/2014,REV,BIRKIN CLEANING SERVICES LTD  
183,,,Civic Centre Windows                    ,CF001AK,New Construction Conversion and Renovation,,B4,Contractor - Site works                 ,538.81,20/02/2014,CAP,SALTASH ENTERPRISES LTD       
184,,,Civic Centre Windows                    ,CF001AK,New Construction Conversion and Renovation,,B4,Contractor - Site works                 ,3940.97,17/01/2014,CAP,NETWORK BLINDS LIMITED        
184,Highways & Transport Services,Transport Plg/Policy/Strategy,Developing the Tram                     ,H01081,Supplies & Services           ,Services                      ,DF03,Consultants                             ,562.5,31/01/2014,REV,STUDIO WEAVE LTD              
185,Highways & Transport Services,Safe routes inc schl x patrol,School & Road Safety TFL                ,H01083,Supplies & Services           ,Services                      ,DF30,Activities Programme                    ,850,17/02/2014,REV,BLAKES DRIVER TRAINING        
185,,,Civic Centre Windows                    ,CF001AK,New Construction Conversion and Renovation,,B4,Contractor - Site works                 ,2876.41,31/01/2014,CAP,NETWORK BLINDS LIMITED        
186,Highways & Transport Services,Safe routes inc schl x patrol,School & Road Safety TFL                ,H01083,Supplies & Services           ,Services                      ,DF30,Activities Programme                    ,650,17/02/2014,REV,BLAKES DRIVER TRAINING        
186,,,Civic Centre Windows                    ,CF001AK,New Construction Conversion and Renovation,,B4,Contractor - Site works                 ,265100,04/02/2014,CAP,HAZLEMERE WINDOW CO LIMITED   
187,Highways & Transport Services,Safe routes inc schl x patrol,School & Road Safety TFL                ,H01083,Supplies & Services           ,Services                      ,DF30,Activities Programme                    ,1750,20/02/2014,REV,BIKEWIZE MOTORCYCLE TRAINING  
187,,,Civic Centre Windows                    ,CF001AK,New Construction Conversion and Renovation,,B4,Contractor - Site works                 ,995.66,24/01/2014,CAP,DMA SIGNS LTD                 
188,Cultural Env Reg&Plan Services,DC Advice Apps & Reg not split,Development Control,H01130,Supplies & Services           ,Services                      ,DF02,Misc Advertising/Publicity              ,505.08,20/01/2014,REV,NEWSQUEST (LONDON)LTD         
188,,,Civic Centre Windows                    ,CF001AK,New Construction Conversion and Renovation,,B4,Contractor - Site works                 ,1516.58,20/02/2014,CAP,SALTASH ENTERPRISES LTD       
189,,,Civic Centre Windows                    ,CF001AK,New Construction Conversion and Renovation,,B4,Contractor - Site works                 ,2920,31/01/2014,CAP,NETWORK BLINDS LIMITED        
189,Cultural Env Reg&Plan Services,DC Advice Apps & Reg not split,Development Control,H01130,Supplies & Services           ,Comms and Computing           ,DG09,Computer Purchases - Misc               ,7500,21/01/2014,REV,NORTHGATE INFORMATION SOLUTION
190,,,Civic Centre Windows                    ,CF001AK,New Construction Conversion and Renovation,,B4,Contractor - Site works                 ,1380,27/01/2014,CAP,PW INDUSTRIAL SVCE/S LTD      
190,Cultural Env Reg&Plan Services,DC Advice Apps & Reg not split,Development Control,H01130,Supplies & Services           ,Grants and Subscriptions      ,DJ04,Subscriptions                           ,1297,02/12/2013,REV,THOMSON REUTERS               
191,,,Civic Centre Windows                    ,CF001AK,New Construction Conversion and Renovation,,B4,Contractor - Site works                 ,2007.22,07/02/2014,CAP,NETWORK BLINDS LIMITED        
191,Cultural Env Reg&Plan Services,Planning Policy not split,Spatial Policy,H01173,Third Party Payments          ,Private Contractors           ,EH10,Contract Payments                       ,1345,05/02/2014,REV,REDACTED
192,,,Repair and Maintenance                  ,CF004SA,New Construction Conversion and Renovation,,B4,Contractor - Site works                 ,1083.18,05/02/2014,CAP,ACCESS ASSURED                
192,Cultural Env Reg&Plan Services,Planning Policy not split,Spatial Policy,H01173,Third Party Payments          ,Private Contractors           ,EH10,Contract Payments                       ,1695,05/02/2014,REV,REDACTED
193,,,Repair and Maintenance                  ,CF004SA,New Construction Conversion and Renovation,,B4,Contractor - Site works                 ,749,30/10/2013,CAP,ACCESS ASSURED                
193,Cultural Env Reg&Plan Services,Planning Policy not split,REGENERATION & INVESTMENT,H01174,Employees                     ,Indirect Employee Expenses    ,AB57,External Training Costs                 ,4950,11/12/2013,REV,FUTURE OF LONDON              
194,,,Repair and Maintenance                  ,CF004SA,New Construction Conversion and Renovation,,B4,Contractor - Site works                 ,814,30/10/2013,CAP,ACCESS ASSURED                
194,Cultural Env Reg&Plan Services,Planning Policy not split,HPDG - Physical Regeneration,H01178,Supplies & Services           ,Expenses                      ,DH14,Prizes and Awards                       ,8500,28/01/2014,REV,EVENTS AND PR LIMITED         
195,,,Roadway-Chapl Orchrd&Worsfld H          ,CF006AB,New Construction Conversion and Renovation,,B4,Contractor - Site works                 ,5750,07/01/2014,CAP,DATA TECHNIQUES               
195,Cultural Env Reg&Plan Services,Economic Dev (Not separated),(LABGI)-BUSINESS SUPPORT,H01210,Supplies & Services           ,Services                      ,DF03,Consultants                             ,2500,31/01/2014,REV,STUDIO WEAVE LTD              
196,Cultural Env Reg&Plan Services,Economic Dev (Not separated),LABGI-MERTON CHAMBER(CORE FUND,H01218,Third Party Payments          ,Private Contractors           ,EH02,Miscellaneous Hired Services            ,1840,04/02/2014,REV,GRAFFITI MANAGEMENT LTD       
196,,,Bishop Gilpin new classroom             ,CS003RA,New Construction Conversion and Renovation,,B4,Contractor - Site works                 ,5530.98,27/01/2014,CAP,P R FREDDI LTD                
197,Cultural Env Reg&Plan Services,Economic Dev (Not separated),GO GREEN PLUS (S106),H01225,Supplies & Services           ,Grants and Subscriptions      ,DJ54,Contributions                           ,2566.87,25/02/2014,REV,MERTON CHAMBER OF COMMERCE    
197,,,Aragon expansion                        ,CS008AA,New Construction Conversion and Renovation,,B1,Consultants Fees D&S Structure          ,708.75,12/02/2014,CAP,REDACTED
198,,,Aragon expansion                        ,CS008AA,New Construction Conversion and Renovation,,B2,Site Surveys D&S Structure              ,913.75,14/02/2014,CAP,JENKINS & POTTER LTD          
198,Cultural Env Reg&Plan Services,Economic Dev (Not separated),Mitcham Means Business,H01230,Third Party Payments          ,Private Contractors           ,EH10,Contract Payments                       ,4500,31/01/2014,REV,STUDIO WEAVE LTD              
199,CS -Oth Operating Inc & Expend,T/A Vehicle Maintenance etc,Transport-Contract Hire,J01374,Premises Related Expenditure  ,Energy Costs                  ,BB03,Gas (incl. Butane)                      ,644.81,05/02/2014,REV,GAZPROM MARKETING&TRADING LTD 
199,,,St Mary's expansion                     ,CS008RA,New Construction Conversion and Renovation,,B1,Consultants Fees D&S Structure          ,4933,31/01/2014,CAP,NPS PROPERTY CONSULTANTS LTD  
200,CS -Oth Operating Inc & Expend,T/A Vehicle Maintenance etc,Transport-Contract Hire,J01374,Transport Related Expenditure ,Direct Transport Costs        ,CA01,Petrol Derv & Oil                       ,38751.88,31/01/2014,REV,HARVEST ENERGY LIMITED        
200,,,St Mary's expansion                     ,CS008RA,New Construction Conversion and Renovation,,B4,Contractor - Site works                 ,60708.13,27/01/2014,CAP,MANSELL CONSTRUCTION SERVICES 
201,CS -Oth Operating Inc & Expend,T/A Vehicle Maintenance etc,Transport-Contract Hire,J01374,Transport Related Expenditure ,Direct Transport Costs        ,CA01,Petrol Derv & Oil                       ,38885.04,20/02/2014,REV,HARVEST ENERGY LIMITED        
201,,,Cranmer expansion                       ,CS010AA,New Construction Conversion and Renovation,,B4,Contractor - Site works                 ,233063,10/02/2014,CAP,WILLMOTT DIXON CONSTRUCT'N LTD
202,,,Hollymount Permanent Expansion          ,CS011AA,New Construction Conversion and Renovation,,B1,Consultants Fees D&S Structure          ,3093,21/02/2014,CAP,HAVERSTOCK ASSOCIATES LLP     
202,CS -Oth Operating Inc & Expend,T/A Vehicle Maintenance etc,Transport-Contract Hire,J01374,Transport Related Expenditure ,Direct Transport Costs        ,CA02,Tyres                                   ,1950,04/02/2014,REV,MORDEN TYRE SERVICES LTD      
203,,,William Morris PCP                      ,CS016AA,New Construction Conversion and Renovation,,B4,Contractor - Site works                 ,5982.1,30/01/2014,CAP,MANSELL CONSTRUCTION SERVICES 
203,CS -Oth Operating Inc & Expend,T/A Vehicle Maintenance etc,Transport-Contract Hire,J01374,Transport Related Expenditure ,Direct Transport Costs        ,CA02,Tyres                                   ,1130,21/02/2014,REV,MORDEN TYRE SERVICES LTD      
204,CS -Oth Operating Inc & Expend,T/A Vehicle Maintenance etc,Transport-Contract Hire,J01374,Transport Related Expenditure ,Direct Transport Costs        ,CA55,Specialist Maint. (Off Site)            ,1567.43,20/12/2013,REV,REDACTED
204,,,Hillcross School Expansion              ,CS020AC,New Construction Conversion and Renovation,,B1,Consultants Fees D&S Structure          ,3850,27/01/2014,CAP,STACE LLP                     
205,CS -Oth Operating Inc & Expend,T/A Vehicle Maintenance etc,Transport-Contract Hire,J01374,Transport Related Expenditure ,Direct Transport Costs        ,CA55,Specialist Maint. (Off Site)            ,599.56,31/01/2014,REV,KINGSLEY COMM COMPONENTS LTD  
205,,,Hillcross School Expansion              ,CS020AC,New Construction Conversion and Renovation,,B1,Consultants Fees D&S Structure          ,925,31/01/2014,CAP,STACE LLP                     
206,CS -Oth Operating Inc & Expend,T/A Vehicle Maintenance etc,Transport-Contract Hire,J01374,Transport Related Expenditure ,Direct Transport Costs        ,CA55,Specialist Maint. (Off Site)            ,599.56,31/01/2014,REV,KINGSLEY COMM COMPONENTS LTD  
206,,,Hillcross School Expansion              ,CS020AC,New Construction Conversion and Renovation,,B4,Contractor - Site works                 ,59354.85,30/01/2014,CAP,MANSELL CONSTRUCTION SERVICES 
207,,,Merton Abbey Temp Accomodation          ,CS022AC,New Construction Conversion and Renovation,,B1,Consultants Fees D&S Structure          ,625,31/01/2014,CAP,EIGHT ASSOCIATES              
207,CS -Oth Operating Inc & Expend,T/A Vehicle Maintenance etc,Transport-Contract Hire,J01374,Transport Related Expenditure ,Direct Transport Costs        ,CA55,Specialist Maint. (Off Site)            ,599.31,27/01/2014,REV,KINGSLEY COMM COMPONENTS LTD  
208,,,Merton Abbey Temp Accomodation          ,CS022AC,New Construction Conversion and Renovation,,B1,Consultants Fees D&S Structure          ,750,31/01/2014,CAP,STACE LLP                     
208,CS -Oth Operating Inc & Expend,T/A Vehicle Maintenance etc,Transport-Contract Hire,J01374,Transport Related Expenditure ,Direct Transport Costs        ,CA55,Specialist Maint. (Off Site)            ,502.16,17/01/2014,REV,TENSID UK PLC                 
209,CS -Oth Operating Inc & Expend,T/A Vehicle Maintenance etc,Transport-Contract Hire,J01374,Transport Related Expenditure ,Direct Transport Costs        ,CA55,Specialist Maint. (Off Site)            ,539.47,31/01/2014,REV,DAGENHAM MOTORS               
209,,,Merton Abbey Temp Accomodation          ,CS022AC,New Construction Conversion and Renovation,,B1,Consultants Fees D&S Structure          ,33829.75,31/01/2014,CAP,PELLINGS LLP                  
210,CS -Oth Operating Inc & Expend,T/A Vehicle Maintenance etc,Transport-Contract Hire,J01374,Transport Related Expenditure ,Direct Transport Costs        ,CA56,Specialist Maint. (On Site)             ,1500,06/02/2014,REV,GVS HIRE LTD                  
210,,,Merton Abbey Temp Accomodation          ,CS022AC,New Construction Conversion and Renovation,,B2,Site Surveys D&S Structure              ,1025,31/01/2014,CAP,KEEGANS LIMITED               
211,CS -Oth Operating Inc & Expend,T/A Vehicle Maintenance etc,Transport-Contract Hire,J01374,Transport Related Expenditure ,Direct Transport Costs        ,CA56,Specialist Maint. (On Site)             ,576.25,02/02/2014,REV,R.J.H.WELDING                 
211,,,Pelham School Expansion                 ,CS023AC,New Construction Conversion and Renovation,,B1,Consultants Fees D&S Structure          ,1025,31/01/2014,CAP,STACE LLP                     
212,,,Pelham School Expansion                 ,CS023AC,New Construction Conversion and Renovation,,B1,Consultants Fees D&S Structure          ,3950,27/01/2014,CAP,STACE LLP                     
212,CS -Oth Operating Inc & Expend,T/A Vehicle Maintenance etc,Transport-Contract Hire,J01374,Transport Related Expenditure ,Direct Transport Costs        ,CA56,Specialist Maint. (On Site)             ,764.85,12/02/2014,REV,TENNANT UK CLEANING SOLUTIONS 
213,,,Dundonald expansion                     ,CS031AC,New Construction Conversion and Renovation,,B1,Consultants Fees D&S Structure          ,28929,29/01/2014,CAP,HAVERSTOCK ASSOCIATES LLP     
213,CS -Oth Operating Inc & Expend,T/A Vehicle Maintenance etc,Transport-Contract Hire,J01374,Transport Related Expenditure ,Direct Transport Costs        ,CA56,Specialist Maint. (On Site)             ,753.04,12/02/2014,REV,TENNANT UK CLEANING SOLUTIONS 
214,,,Dundonald expansion                     ,CS031AC,New Construction Conversion and Renovation,,B1,Consultants Fees D&S Structure          ,31667,24/02/2014,CAP,HAVERSTOCK ASSOCIATES LLP     
214,CS -Oth Operating Inc & Expend,T/A Vehicle Maintenance etc,Transport-Contract Hire,J01374,Transport Related Expenditure ,Direct Transport Costs        ,CA56,Specialist Maint. (On Site)             ,632.5,02/02/2014,REV,R.J.H.WELDING                 
215,,,Dundonald expansion                     ,CS031AC,New Construction Conversion and Renovation,,B1,Consultants Fees D&S Structure          ,2868.75,31/01/2014,CAP,SYNERGY CPC LLP               
215,CS -Oth Operating Inc & Expend,T/A Vehicle Maintenance etc,Transport-Contract Hire,J01374,Transport Related Expenditure ,Direct Transport Costs        ,CA56,Specialist Maint. (On Site)             ,836.23,14/02/2014,REV,TENNANT UK CLEANING SOLUTIONS 
216,,,Dundonald expansion                     ,CS031AC,New Construction Conversion and Renovation,,B1,Consultants Fees D&S Structure          ,5040,03/02/2014,CAP,AREA LANDSCAPE ARCHITECTS     
216,CS -Oth Operating Inc & Expend,T/A Vehicle Maintenance etc,Transport-Contract Hire,J01374,Transport Related Expenditure ,Direct Transport Costs        ,CA56,Specialist Maint. (On Site)             ,550,06/02/2014,REV,GVS HIRE LTD                  
217,,,Dundonald expansion                     ,CS031AC,New Construction Conversion and Renovation,,B2,Site Surveys D&S Structure              ,1040,10/02/2014,CAP,NOISE.CO.UK                   
217,CS -Oth Operating Inc & Expend,T/A Vehicle Maintenance etc,Transport-Contract Hire,J01374,Transport Related Expenditure ,Direct Transport Costs        ,CA56,Specialist Maint. (On Site)             ,562.5,02/02/2014,REV,R.J.H.WELDING                 
218,,,Wimbledon Chase DCSF grant              ,CS033AA,New Construction Conversion and Renovation,,B1,Consultants Fees D&S Structure          ,9236,20/11/2013,CAP,HAVERSTOCK ASSOCIATES LLP     
218,CS -Oth Operating Inc & Expend,T/A Vehicle Maintenance etc,Transport-Contract Hire,J01374,Transport Related Expenditure ,Direct Transport Costs        ,CA56,Specialist Maint. (On Site)             ,929.27,13/02/2014,REV,TENNANT UK CLEANING SOLUTIONS 
219,,,Poplar Permanent Expansion              ,CS034AB,New Construction Conversion and Renovation,,B1,Consultants Fees D&S Structure          ,1000,31/01/2014,CAP,STACE LLP                     
219,CS -Oth Operating Inc & Expend,T/A Vehicle Maintenance etc,Transport-Contract Hire,J01374,Transport Related Expenditure ,Direct Transport Costs        ,CA56,Specialist Maint. (On Site)             ,1071.84,13/02/2014,REV,TENNANT UK CLEANING SOLUTIONS 
220,,,Poplar Permanent Expansion              ,CS034AB,New Construction Conversion and Renovation,,B1,Consultants Fees D&S Structure          ,41545.14,31/01/2014,CAP,PELLINGS LLP                  
220,CS -Oth Operating Inc & Expend,T/A Vehicle Maintenance etc,Transport-Contract Hire,J01374,Transport Related Expenditure ,Direct Transport Costs        ,CA56,Specialist Maint. (On Site)             ,576.25,02/02/2014,REV,R.J.H.WELDING                 
221,,,Poplar Permanent Expansion              ,CS034AB,New Construction Conversion and Renovation,,B1,Consultants Fees D&S Structure          ,635,31/01/2014,CAP,EIGHT ASSOCIATES              
221,CS -Oth Operating Inc & Expend,T/A Vehicle Maintenance etc,Transport-Contract Hire,J01374,Transport Related Expenditure ,Direct Transport Costs        ,CA56,Specialist Maint. (On Site)             ,995.82,12/02/2014,REV,TENNANT UK CLEANING SOLUTIONS 
222,CS -Oth Operating Inc & Expend,T/A Vehicle Maintenance etc,Transport-Contract Hire,J01374,Transport Related Expenditure ,Direct Transport Costs        ,CA72,Vehicle Parts                           ,617.76,18/02/2014,REV,COMMERCIAL & PLANT LTD        
222,,,Poplar Permanent Expansion              ,CS034AB,New Construction Conversion and Renovation,,B2,Site Surveys D&S Structure              ,1234.38,31/01/2014,CAP,KEEGANS LIMITED               
223,CS -Oth Operating Inc & Expend,T/A Vehicle Maintenance etc,Transport-Contract Hire,J01374,Transport Related Expenditure ,Direct Transport Costs        ,CA72,Vehicle Parts                           ,1277.3,17/02/2014,REV,CBOC LUBRICANTS               
223,,,Poplar Permanent Expansion              ,CS034AB,New Construction Conversion and Renovation,,B4,Contractor - Site works                 ,157759.69,23/01/2014,CAP,MANSELL CONSTRUCTION SERVICES 
224,,,Singlegate expansion                    ,CS049AA,New Construction Conversion and Renovation,,B1,Consultants Fees D&S Structure          ,68268.72,31/01/2014,CAP,ATKINS LIMITED                
224,CS -Oth Operating Inc & Expend,T/A Vehicle Maintenance etc,Transport-Contract Hire,J01374,Transport Related Expenditure ,Direct Transport Costs        ,CA72,Vehicle Parts                           ,635.75,30/01/2014,REV,JOHNSTON SWEEPERS LIMITED     
225,CS -Oth Operating Inc & Expend,T/A Vehicle Maintenance etc,Transport-Contract Hire,J01374,Transport Related Expenditure ,Direct Transport Costs        ,CA72,Vehicle Parts                           ,519.5,12/02/2014,REV,SIGNS EXPRESS (CROYDON)       
225,,,Wimbledon Park expansion                ,CS050AA,New Construction Conversion and Renovation,,B1,Consultants Fees D&S Structure          ,1068,31/01/2014,CAP,SYNERGY CPC LLP               
226,CS -Oth Operating Inc & Expend,T/A Vehicle Maintenance etc,Transport-Contract Hire,J01374,Transport Related Expenditure ,Direct Transport Costs        ,CA72,Vehicle Parts                           ,536.18,05/02/2014,REV,JOHNSTON SWEEPERS LIMITED     
226,,,The Sherwood-Boiler&Perim Fnc           ,CS091AF,New Construction Conversion and Renovation,,B4,Contractor - Site works                 ,8900.74,06/02/2014,CAP,T BROWN LTD                   
227,,,Disaster recovery                       ,CT003EA,Vehicles Plant Equipment and Machinery,,D3,Equipment                               ,2844,10/12/2013,CAP,CISILION LTD                  
227,CS -Oth Operating Inc & Expend,T/A Vehicle Maintenance etc,Transport-Contract Hire,J01374,Transport Related Expenditure ,Direct Transport Costs        ,CA72,Vehicle Parts                           ,1195.91,30/01/2014,REV,GEESINK NORBA                 
228,,,Disaster recovery                       ,CT003EA,Vehicles Plant Equipment and Machinery,,D3,Equipment                               ,27089.04,20/12/2013,CAP,CISILION LTD                  
228,CS -Oth Operating Inc & Expend,T/A Vehicle Maintenance etc,Transport-Contract Hire,J01374,Transport Related Expenditure ,Direct Transport Costs        ,CA72,Vehicle Parts                           ,2254.01,06/02/2014,REV,REDACTED
229,CS -Oth Operating Inc & Expend,T/A Vehicle Maintenance etc,Transport-Contract Hire,J01374,Transport Related Expenditure ,Direct Transport Costs        ,CA72,Vehicle Parts                           ,902.97,12/02/2014,REV,GEESINK NORBA                 
229,,,IT Equipment                            ,CT006EA,Vehicles Plant Equipment and Machinery,,D3,Equipment                               ,1571.92,17/12/2013,CAP,SPECIALIST COMPUTER CENT. PLC 
230,,,IT Equipment                            ,CT006EA,Vehicles Plant Equipment and Machinery,,D3,Equipment                               ,1601.76,17/12/2013,CAP,SPECIALIST COMPUTER CENT. PLC 
230,CS -Oth Operating Inc & Expend,T/A Vehicle Maintenance etc,Transport-Contract Hire,J01374,Transport Related Expenditure ,Contract Hire and Op Leasing  ,CC53,Plant Hire for MRCS                     ,610,27/01/2014,REV,ULTIMATE INVOICE FINANCE      
231,CS -Oth Operating Inc & Expend,T/A Vehicle Maintenance etc,Transport-Contract Hire,J01374,Transport Related Expenditure ,Contract Hire and Op Leasing  ,CC53,Plant Hire for MRCS                     ,759,31/01/2014,REV,REDACTED
231,,,IT Equipment                            ,CT006EA,Vehicles Plant Equipment and Machinery,,D3,Equipment                               ,6223.86,17/12/2013,CAP,SPECIALIST COMPUTER CENT. PLC 
232,CS -Oth Operating Inc & Expend,T/A Vehicle Maintenance etc,Transport-Contract Hire,J01374,Transport Related Expenditure ,Contract Hire and Op Leasing  ,CC53,Plant Hire for MRCS                     ,667,31/01/2014,REV,REDACTED
232,,,IT Equipment                            ,CT006EA,Vehicles Plant Equipment and Machinery,,D3,Equipment                               ,1530,17/02/2014,CAP,VIGLEN LIMITED                
233,,,IT Equipment                            ,CT006EA,Vehicles Plant Equipment and Machinery,,D3,Equipment                               ,8402.22,09/01/2014,CAP,CISILION LTD                  
233,CS -Oth Operating Inc & Expend,T/A Vehicle Maintenance etc,Transport-Contract Hire,J01374,Transport Related Expenditure ,Contract Hire and Op Leasing  ,CC53,Plant Hire for MRCS                     ,610,17/02/2014,REV,ULTIMATE INVOICE FINANCE      
234,,,IT Equipment                            ,CT006EA,Vehicles Plant Equipment and Machinery,,D3,Equipment                               ,11616.63,09/01/2014,CAP,CISILION LTD                  
234,CS -Oth Operating Inc & Expend,T/A Vehicle Maintenance etc,Transport-Contract Hire,J01374,Transport Related Expenditure ,Contract Hire and Op Leasing  ,CC53,Plant Hire for MRCS                     ,610,10/02/2014,REV,ULTIMATE INVOICE FINANCE      
235,,,IT Equipment                            ,CT006EA,Vehicles Plant Equipment and Machinery,,D3,Equipment                               ,707.68,17/12/2013,CAP,SPECIALIST COMPUTER CENT. PLC 
235,CS -Oth Operating Inc & Expend,T/A Vehicle Maintenance etc,Transport-Contract Hire,J01374,Transport Related Expenditure ,Contract Hire and Op Leasing  ,CC53,Plant Hire for MRCS                     ,615,23/01/2014,REV,ULTIMATE INVOICE FINANCE      
236,CS -Oth Operating Inc & Expend,T/A Vehicle Maintenance etc,Transport-Contract Hire,J01374,Transport Related Expenditure ,Contract Hire and Op Leasing  ,CC53,Plant Hire for MRCS                     ,1932,31/01/2014,REV,GVS HIRE LTD                  
236,,,IT Equipment                            ,CT006EA,Vehicles Plant Equipment and Machinery,,D3,Equipment                               ,916.28,17/12/2013,CAP,SPECIALIST COMPUTER CENT. PLC 
237,CS -Oth Operating Inc & Expend,T/A Vehicle Maintenance etc,Transport-Contract Hire,J01374,Transport Related Expenditure ,Contract Hire and Op Leasing  ,CC53,Plant Hire for MRCS                     ,1265,31/01/2014,REV,B&T PLANT HIRE LTD            
237,,,IT Equipment                            ,CT006EA,Vehicles Plant Equipment and Machinery,,D3,Equipment                               ,7412.64,17/12/2013,CAP,SPECIALIST COMPUTER CENT. PLC 
238,,,IT Equipment                            ,CT006EA,Vehicles Plant Equipment and Machinery,,D3,Equipment                               ,4677,13/01/2014,CAP,SPECIALIST COMPUTER CENT. PLC 
238,CS -Oth Operating Inc & Expend,T/A Vehicle Maintenance etc,Transport-Contract Hire,J01374,Transport Related Expenditure ,Contract Hire and Op Leasing  ,CC53,Plant Hire for MRCS                     ,610,03/02/2014,REV,ULTIMATE INVOICE FINANCE      
239,CS -Oth Operating Inc & Expend,T/A Vehicle Maintenance etc,Transport-Contract Hire,J01374,Transport Related Expenditure ,Contract Hire and Op Leasing  ,CC56,Plant Hire for Leisure                  ,1755,31/01/2014,REV,REDACTED
239,,,IT Equipment                            ,CT006EA,Vehicles Plant Equipment and Machinery,,D3,Equipment                               ,887.76,17/12/2013,CAP,SPECIALIST COMPUTER CENT. PLC 
240,CS -Oth Operating Inc & Expend,T/A Vehicle Maintenance etc,Transport-Contract Hire,J01374,Transport Related Expenditure ,Contract Hire and Op Leasing  ,CC57,Pland Hire for Housing                  ,940,31/01/2014,REV,REDACTED
240,,,IT Equipment                            ,CT006EA,Vehicles Plant Equipment and Machinery,,D3,Equipment                               ,3111.93,17/12/2013,CAP,SPECIALIST COMPUTER CENT. PLC 
241,CS -Oth Operating Inc & Expend,T/A Vehicle Maintenance etc,Transport-Contract Hire,J01374,Transport Related Expenditure ,Contract Hire and Op Leasing  ,CC59,HIRING TRANSPORT OPERATIONS             ,1518,31/01/2014,REV,BURNT TREE VEHICLE RENTAL     
241,,,IT Equipment                            ,CT006EA,Vehicles Plant Equipment and Machinery,,D3,Equipment                               ,3143.84,17/12/2013,CAP,SPECIALIST COMPUTER CENT. PLC 
242,CS -Oth Operating Inc & Expend,T/A Vehicle Maintenance etc,Transport-Contract Hire,J01374,Transport Related Expenditure ,Contract Hire and Op Leasing  ,CC59,HIRING TRANSPORT OPERATIONS             ,1518,31/01/2014,REV,BURNT TREE VEHICLE RENTAL     
242,,,IT Equipment                            ,CT006EA,Vehicles Plant Equipment and Machinery,,D3,Equipment                               ,4007.28,17/12/2013,CAP,SPECIALIST COMPUTER CENT. PLC 
243,CS -Oth Operating Inc & Expend,T/A Vehicle Maintenance etc,Transport-Contract Hire,J01374,Transport Related Expenditure ,Contract Hire and Op Leasing  ,CC59,HIRING TRANSPORT OPERATIONS             ,1518,31/01/2014,REV,BURNT TREE VEHICLE RENTAL     
243,,,IT Equipment                            ,CT006EA,Vehicles Plant Equipment and Machinery,,D3,Equipment                               ,7931.04,17/12/2013,CAP,SPECIALIST COMPUTER CENT. PLC 
244,CS -Oth Operating Inc & Expend,T/A Vehicle Maintenance etc,Transport-Contract Hire,J01374,Transport Related Expenditure ,Contract Hire and Op Leasing  ,CC59,HIRING TRANSPORT OPERATIONS             ,2238.32,31/01/2014,REV,REDACTED
244,,,IT Equipment                            ,CT006EA,Vehicles Plant Equipment and Machinery,,D3,Equipment                               ,78109.38,17/12/2013,CAP,SPECIALIST COMPUTER CENT. PLC 
245,CS -Oth Operating Inc & Expend,T/A Vehicle Maintenance etc,Transport-Contract Hire,J01374,Transport Related Expenditure ,Contract Hire and Op Leasing  ,CC64,HIRING TRANSPORT SEN CABS               ,950,31/01/2014,REV,SHERWOOD TRANSPORT GROUP      
245,,,IT Equipment                            ,CT006EA,Vehicles Plant Equipment and Machinery,,D3,Equipment                               ,800.88,17/12/2013,CAP,SPECIALIST COMPUTER CENT. PLC 
246,CS -Oth Operating Inc & Expend,T/A Vehicle Maintenance etc,Transport-Contract Hire,J01374,Transport Related Expenditure ,Contract Hire and Op Leasing  ,CC64,HIRING TRANSPORT SEN CABS               ,1880,31/01/2014,REV,CAPITAL CARS                  
246,,,IT Equipment                            ,CT006EA,Vehicles Plant Equipment and Machinery,,D3,Equipment                               ,21457.44,17/12/2013,CAP,SPECIALIST COMPUTER CENT. PLC 
247,CS -Oth Operating Inc & Expend,T/A Vehicle Maintenance etc,Transport-Contract Hire,J01374,Transport Related Expenditure ,Contract Hire and Op Leasing  ,CC64,HIRING TRANSPORT SEN CABS               ,900,31/01/2014,REV,A STAR TRANSPORT LIMITED      
247,,,IT Equipment                            ,CT006EA,Vehicles Plant Equipment and Machinery,,D3,Equipment                               ,24483.6,17/12/2013,CAP,SPECIALIST COMPUTER CENT. PLC 
248,CS -Oth Operating Inc & Expend,T/A Vehicle Maintenance etc,Transport-Contract Hire,J01374,Transport Related Expenditure ,Contract Hire and Op Leasing  ,CC64,HIRING TRANSPORT SEN CABS               ,770,31/01/2014,REV,GALPINS SERVICE               
248,,,IT Equipment                            ,CT006EA,Vehicles Plant Equipment and Machinery,,D3,Equipment                               ,42914.88,17/12/2013,CAP,SPECIALIST COMPUTER CENT. PLC 
249,CS -Oth Operating Inc & Expend,T/A Vehicle Maintenance etc,Transport-Contract Hire,J01374,Transport Related Expenditure ,Contract Hire and Op Leasing  ,CC64,HIRING TRANSPORT SEN CABS               ,2069,31/01/2014,REV,CAPITAL CARS                  
249,,,IT Equipment                            ,CT006EA,Vehicles Plant Equipment and Machinery,,D3,Equipment                               ,2248.23,09/01/2014,CAP,CISILION LTD                  
250,Central Services,Council tax collection,Local Taxation Services,E02100,Supplies & Services           ,Services                      ,DF02,Misc Advertising/Publicity              ,3500,01/11/2013,REV,MEDIA AGENCY GROUP            
250,CS -Oth Operating Inc & Expend,T/A Vehicle Maintenance etc,Transport-Contract Hire,J01374,Transport Related Expenditure ,Contract Hire and Op Leasing  ,CC64,HIRING TRANSPORT SEN CABS               ,1620,31/01/2014,REV,SHERWOOD TRANSPORT GROUP      
251,Central Services,Council tax collection,Local Taxation Services,E02100,Supplies & Services           ,Services                      ,DF11,Counsel's Fees                          ,780,26/11/2013,REV,HL SOLICITORS                 
251,CS -Oth Operating Inc & Expend,T/A Vehicle Maintenance etc,Transport-Contract Hire,J01374,Transport Related Expenditure ,Contract Hire and Op Leasing  ,CC64,HIRING TRANSPORT SEN CABS               ,1200,31/01/2014,REV,SILVERBURN FINANCE (UK) LTD   
252,CS -Oth Operating Inc & Expend,T/A Vehicle Maintenance etc,Transport-Contract Hire,J01374,Transport Related Expenditure ,Contract Hire and Op Leasing  ,CC64,HIRING TRANSPORT SEN CABS               ,1835,31/01/2014,REV,NVCAR HIRE LTD                
252,Central Services,Council tax collection,Local Taxation Services,E02100,Supplies & Services           ,Services                      ,DF11,Counsel's Fees                          ,920,12/02/2014,REV,WELBECK LAW LLP               
253,CS -Oth Operating Inc & Expend,T/A Vehicle Maintenance etc,Transport-Contract Hire,J01374,Transport Related Expenditure ,Contract Hire and Op Leasing  ,CC64,HIRING TRANSPORT SEN CABS               ,2862,31/01/2014,REV,BRUNSWICK CARS LTD            
253,Central Services,Council tax collection,Local Taxation Services,E02100,Supplies & Services           ,Comms and Computing           ,DG09,Computer Purchases - Misc               ,3284.37,07/02/2014,REV,CIVICA UK LIMITED             
254,CS -Oth Operating Inc & Expend,T/A Vehicle Maintenance etc,Transport-Contract Hire,J01374,Transport Related Expenditure ,Contract Hire and Op Leasing  ,CC64,HIRING TRANSPORT SEN CABS               ,1824,31/01/2014,REV,BARCLAYS ASSET & SALES FINANCE
254,Central Services,Council tax collection,Local Taxation Services,E02100,Supplies & Services           ,Comms and Computing           ,DG09,Computer Purchases - Misc               ,12400,25/02/2014,REV,CIVICA UK LIMITED             
255,CS -Oth Operating Inc & Expend,T/A Vehicle Maintenance etc,Transport-Contract Hire,J01374,Transport Related Expenditure ,Contract Hire and Op Leasing  ,CC64,HIRING TRANSPORT SEN CABS               ,646,31/01/2014,REV,BRUNSWICK CARS LTD            
255,Central Services,SupS Payroll,Payroll,E02140,Supplies & Services           ,Services                      ,DF03,Consultants                             ,3225,27/02/2014,REV,MARKS AND SPENCER GIFT VOUCHER
256,Central Services,SupS Payroll,Payroll,E02140,Third Party Payments          ,Private Contractors           ,EH10,Contract Payments                       ,5690.27,12/02/2014,REV,LONDON BOROUGH OF SUTTON      
256,CS -Oth Operating Inc & Expend,T/A Vehicle Maintenance etc,Transport-Contract Hire,J01374,Transport Related Expenditure ,Contract Hire and Op Leasing  ,CC64,HIRING TRANSPORT SEN CABS               ,2544,31/01/2014,REV,SHERWOOD TRANSPORT GROUP      
257,Central Services,SupS Payroll,Payroll,E02140,Third Party Payments          ,Private Contractors           ,EH10,Contract Payments                       ,13086.68,04/02/2014,REV,LONDON BOROUGH OF SUTTON      
257,CS -Oth Operating Inc & Expend,T/A Vehicle Maintenance etc,Transport-Contract Hire,J01374,Transport Related Expenditure ,Contract Hire and Op Leasing  ,CC64,HIRING TRANSPORT SEN CABS               ,1160,31/01/2014,REV,SHERWOOD TRANSPORT GROUP      
258,CS -Oth Operating Inc & Expend,T/A Vehicle Maintenance etc,Transport-Contract Hire,J01374,Transport Related Expenditure ,Contract Hire and Op Leasing  ,CC64,HIRING TRANSPORT SEN CABS               ,2280,31/01/2014,REV,GALPINS SERVICE               
258,Central Services,SupS Payroll,Payroll,E02140,Third Party Payments          ,Private Contractors           ,EH10,Contract Payments                       ,12844.91,18/02/2014,REV,LONDON BOROUGH OF SUTTON      
259,Central Services,SupS Facilities,Security Services,E02221,Employees                     ,Direct Employee Expenses      ,AA17,Agency Staff & Casual Paymts            ,2269.8,01/02/2014,REV,REDACTED
259,CS -Oth Operating Inc & Expend,T/A Vehicle Maintenance etc,Transport-Contract Hire,J01374,Transport Related Expenditure ,Contract Hire and Op Leasing  ,CC64,HIRING TRANSPORT SEN CABS               ,1007,31/01/2014,REV,SHERWOOD TRANSPORT GROUP      
260,CS -Oth Operating Inc & Expend,T/A Vehicle Maintenance etc,Transport-Contract Hire,J01374,Transport Related Expenditure ,Contract Hire and Op Leasing  ,CC64,HIRING TRANSPORT SEN CABS               ,2480,31/01/2014,REV,KINGSTON ACCESSIBILITY TRAN LT
260,Central Services,SupS Facilities,Security Services,E02221,Employees                     ,Direct Employee Expenses      ,AA17,Agency Staff & Casual Paymts            ,2655.9,01/02/2014,REV,REDACTED
261,CS -Oth Operating Inc & Expend,T/A Vehicle Maintenance etc,Transport-Contract Hire,J01374,Transport Related Expenditure ,Contract Hire and Op Leasing  ,CC64,HIRING TRANSPORT SEN CABS               ,1481.62,31/01/2014,REV,KINGSTON ACCESSIBILITY TRAN LT
261,Central Services,SupS Facilities,Security Services,E02221,Employees                     ,Direct Employee Expenses      ,AA17,Agency Staff & Casual Paymts            ,2574,01/02/2014,REV,REDACTED
262,CS -Oth Operating Inc & Expend,T/A Vehicle Maintenance etc,Transport-Contract Hire,J01374,Transport Related Expenditure ,Contract Hire and Op Leasing  ,CC64,HIRING TRANSPORT SEN CABS               ,2774,31/01/2014,REV,KINGSTON ACCESSIBILITY TRAN LT
262,Central Services,SupS Facilities,Civic Centre,E02222,Premises Related Expenditure  ,RepairsAlterations&MtceOfBldgs,BA29,BUILD MAINT MGT FEES                    ,1266.3,18/12/2013,REV,UNIQUE OFFICE SOLUTIONS LTD   
263,CS -Oth Operating Inc & Expend,T/A Vehicle Maintenance etc,Transport-Contract Hire,J01374,Transport Related Expenditure ,Contract Hire and Op Leasing  ,CC64,HIRING TRANSPORT SEN CABS               ,3060,31/01/2014,REV,BARCLAYS ASSET & SALES FINANCE
263,Central Services,SupS Facilities,Civic Centre,E02222,Premises Related Expenditure  ,RepairsAlterations&MtceOfBldgs,BA29,BUILD MAINT MGT FEES                    ,650,19/02/2014,REV,PW INDUSTRIAL SVCE/S LTD      
264,CS -Oth Operating Inc & Expend,T/A Vehicle Maintenance etc,Transport-Contract Hire,J01374,Transport Related Expenditure ,Contract Hire and Op Leasing  ,CC64,HIRING TRANSPORT SEN CABS               ,893,31/01/2014,REV,CAPITAL CARS                  
264,Central Services,SupS Facilities,Civic Centre,E02222,Premises Related Expenditure  ,RepairsAlterations&MtceOfBldgs,BA29,BUILD MAINT MGT FEES                    ,650,19/02/2014,REV,PW INDUSTRIAL SVCE/S LTD      
265,Central Services,SupS Facilities,Civic Centre,E02222,Premises Related Expenditure  ,RepairsAlterations&MtceOfBldgs,BA29,BUILD MAINT MGT FEES                    ,6204.68,06/02/2014,REV,COFELY LIMITED                
265,CS -Oth Operating Inc & Expend,T/A Vehicle Maintenance etc,Transport-Contract Hire,J01374,Transport Related Expenditure ,Contract Hire and Op Leasing  ,CC64,HIRING TRANSPORT SEN CABS               ,832,31/01/2014,REV,NVCAR HIRE LTD                
266,CS -Oth Operating Inc & Expend,T/A Vehicle Maintenance etc,Transport-Contract Hire,J01374,Transport Related Expenditure ,Contract Hire and Op Leasing  ,CC64,HIRING TRANSPORT SEN CABS               ,800,31/01/2014,REV,GALPINS SERVICE               
266,Central Services,SupS Facilities,Civic Centre,E02222,Premises Related Expenditure  ,RepairsAlterations&MtceOfBldgs,BA29,BUILD MAINT MGT FEES                    ,3247.98,20/02/2014,REV,SALTASH ENTERPRISES LTD       
267,CS -Oth Operating Inc & Expend,T/A Vehicle Maintenance etc,Transport-Contract Hire,J01374,Transport Related Expenditure ,Contract Hire and Op Leasing  ,CC64,HIRING TRANSPORT SEN CABS               ,1800,31/01/2014,REV,CAPITAL CARS                  
267,Central Services,SupS Facilities,Civic Centre,E02222,Premises Related Expenditure  ,Cleaning and Domestic Supplies,BH01,Cleaning Materials                      ,571.74,09/12/2013,REV,NERCON LTD                    
268,Central Services,SupS Facilities,Civic Centre,E02222,Premises Related Expenditure  ,Cleaning and Domestic Supplies,BH01,Cleaning Materials                      ,504,27/01/2014,REV,GREENHAM                      
268,CS -Oth Operating Inc & Expend,T/A Vehicle Maintenance etc,Transport-Contract Hire,J01374,Transport Related Expenditure ,Contract Hire and Op Leasing  ,CC64,HIRING TRANSPORT SEN CABS               ,1209,31/01/2014,REV,NVCAR HIRE LTD                
269,CS -Oth Operating Inc & Expend,T/A Vehicle Maintenance etc,Transport-Contract Hire,J01374,Transport Related Expenditure ,Contract Hire and Op Leasing  ,CC64,HIRING TRANSPORT SEN CABS               ,1125,31/01/2014,REV,CAPITAL CARS                  
269,Central Services,SupS Facilities,Civic Centre,E02222,Premises Related Expenditure  ,Cleaning and Domestic Supplies,BH01,Cleaning Materials                      ,659.7,19/02/2014,REV,NERCON LTD                    
270,Central Services,SupS Facilities,Civic Centre,E02222,Premises Related Expenditure  ,Cleaning and Domestic Supplies,BH01,Cleaning Materials                      ,504,13/02/2014,REV,GREENHAM                      
270,CS -Oth Operating Inc & Expend,T/A Vehicle Maintenance etc,Transport-Contract Hire,J01374,Transport Related Expenditure ,Contract Hire and Op Leasing  ,CC64,HIRING TRANSPORT SEN CABS               ,1320,31/01/2014,REV,SILVERBURN FINANCE (UK) LTD   
271,Central Services,SupS Facilities,Civic Centre,E02222,Premises Related Expenditure  ,Cleaning and Domestic Supplies,BH03,Cleaning Services                       ,1395.29,31/01/2014,REV,BIRKIN CLEANING SERVICES LTD  
271,CS -Oth Operating Inc & Expend,T/A Vehicle Maintenance etc,Transport-Contract Hire,J01374,Transport Related Expenditure ,Contract Hire and Op Leasing  ,CC64,HIRING TRANSPORT SEN CABS               ,600,31/01/2014,REV,SHERWOOD TRANSPORT GROUP      
272,Central Services,SupS Facilities,Civic Centre,E02222,Premises Related Expenditure  ,Cleaning and Domestic Supplies,BH03,Cleaning Services                       ,1642.4,31/01/2014,REV,BIRKIN CLEANING SERVICES LTD  
272,CS -Oth Operating Inc & Expend,T/A Vehicle Maintenance etc,Transport-Contract Hire,J01374,Transport Related Expenditure ,Contract Hire and Op Leasing  ,CC64,HIRING TRANSPORT SEN CABS               ,1080,31/01/2014,REV,SILVERBURN FINANCE (UK) LTD   
273,Central Services,SupS Facilities,Civic Centre,E02222,Premises Related Expenditure  ,Cleaning and Domestic Supplies,BH03,Cleaning Services                       ,819.47,31/01/2014,REV,BIRKIN CLEANING SERVICES LTD  
273,CS -Oth Operating Inc & Expend,T/A Vehicle Maintenance etc,Transport-Contract Hire,J01374,Transport Related Expenditure ,Contract Hire and Op Leasing  ,CC64,HIRING TRANSPORT SEN CABS               ,983.66,31/01/2014,REV,GALPINS SERVICE               
274,Central Services,SupS Facilities,Civic Centre,E02222,Premises Related Expenditure  ,Cleaning and Domestic Supplies,BH03,Cleaning Services                       ,1199.41,31/01/2014,REV,BIRKIN CLEANING SERVICES LTD  
274,CS -Oth Operating Inc & Expend,T/A Vehicle Maintenance etc,Transport-Contract Hire,J01374,Transport Related Expenditure ,Contract Hire and Op Leasing  ,CC64,HIRING TRANSPORT SEN CABS               ,950,31/01/2014,REV,NVCAR HIRE LTD                
275,Central Services,SupS Facilities,Civic Centre,E02222,Premises Related Expenditure  ,Cleaning and Domestic Supplies,BH03,Cleaning Services                       ,1215.98,31/01/2014,REV,BIRKIN CLEANING SERVICES LTD  
275,CS -Oth Operating Inc & Expend,T/A Vehicle Maintenance etc,Transport-Contract Hire,J01374,Transport Related Expenditure ,Contract Hire and Op Leasing  ,CC64,HIRING TRANSPORT SEN CABS               ,2595.6,31/01/2014,REV,KINGSTON ACCESSIBILITY TRAN LT
276,Central Services,SupS Facilities,Civic Centre,E02222,Premises Related Expenditure  ,Cleaning and Domestic Supplies,BH03,Cleaning Services                       ,1511.31,31/01/2014,REV,BIRKIN CLEANING SERVICES LTD  
276,CS -Oth Operating Inc & Expend,T/A Vehicle Maintenance etc,Transport-Contract Hire,J01374,Transport Related Expenditure ,Contract Hire and Op Leasing  ,CC64,HIRING TRANSPORT SEN CABS               ,1920,31/01/2014,REV,SILVERBURN FINANCE (UK) LTD   
277,Central Services,SupS Facilities,Civic Centre,E02222,Premises Related Expenditure  ,Cleaning and Domestic Supplies,BH03,Cleaning Services                       ,1464.69,31/01/2014,REV,BIRKIN CLEANING SERVICES LTD  
277,CS -Oth Operating Inc & Expend,T/A Vehicle Maintenance etc,Transport-Contract Hire,J01374,Transport Related Expenditure ,Contract Hire and Op Leasing  ,CC64,HIRING TRANSPORT SEN CABS               ,1980,31/01/2014,REV,SHERWOOD TRANSPORT GROUP      
278,CS -Oth Operating Inc & Expend,T/A Vehicle Maintenance etc,Transport-Contract Hire,J01374,Transport Related Expenditure ,Contract Hire and Op Leasing  ,CC64,HIRING TRANSPORT SEN CABS               ,3116,31/01/2014,REV,BARCLAYS ASSET & SALES FINANCE
278,Central Services,SupS Facilities,Civic Centre,E02222,Premises Related Expenditure  ,Cleaning and Domestic Supplies,BH03,Cleaning Services                       ,3035.93,31/01/2014,REV,BIRKIN CLEANING SERVICES LTD  
279,Central Services,SupS Facilities,Civic Centre,E02222,Premises Related Expenditure  ,Cleaning and Domestic Supplies,BH03,Cleaning Services                       ,1464.69,31/12/2013,REV,BIRKIN CLEANING SERVICES LTD  
279,CS -Oth Operating Inc & Expend,T/A Vehicle Maintenance etc,Transport-Contract Hire,J01374,Transport Related Expenditure ,Contract Hire and Op Leasing  ,CC64,HIRING TRANSPORT SEN CABS               ,1197,31/01/2014,REV,NVCAR HIRE LTD                
280,CS -Oth Operating Inc & Expend,T/A Vehicle Maintenance etc,Transport-Contract Hire,J01374,Transport Related Expenditure ,Contract Hire and Op Leasing  ,CC64,HIRING TRANSPORT SEN CABS               ,1924,31/01/2014,REV,BARCLAYS ASSET & SALES FINANCE
280,Central Services,SupS Facilities,Civic Centre,E02222,Premises Related Expenditure  ,Cleaning and Domestic Supplies,BH03,Cleaning Services                       ,6473.18,31/01/2014,REV,BIRKIN CLEANING SERVICES LTD  
281,CS -Oth Operating Inc & Expend,T/A Vehicle Maintenance etc,Transport-Contract Hire,J01374,Transport Related Expenditure ,Contract Hire and Op Leasing  ,CC64,HIRING TRANSPORT SEN CABS               ,880,31/01/2014,REV,AERIAL CAR SERVICES LTD       
281,Central Services,SupS Facilities,Facilities,E02231,Employees                     ,Direct Employee Expenses      ,AA17,Agency Staff & Casual Paymts            ,728.78,12/02/2014,REV,REDACTED
282,CS -Oth Operating Inc & Expend,T/A Vehicle Maintenance etc,Transport-Contract Hire,J01374,Transport Related Expenditure ,Contract Hire and Op Leasing  ,CC64,HIRING TRANSPORT SEN CABS               ,1190,31/01/2014,REV,KINGSTON ACCESSIBILITY TRAN LT
282,Central Services,SupS Facilities,Facilities,E02231,Employees                     ,Direct Employee Expenses      ,AA17,Agency Staff & Casual Paymts            ,1215.2,29/01/2014,REV,REDACTED
283,CS -Oth Operating Inc & Expend,T/A Vehicle Maintenance etc,Transport-Contract Hire,J01374,Transport Related Expenditure ,Contract Hire and Op Leasing  ,CC64,HIRING TRANSPORT SEN CABS               ,1444,06/02/2014,REV,CAPITAL CARS                  
283,Central Services,SupS Facilities,Facilities,E02231,Employees                     ,Direct Employee Expenses      ,AA17,Agency Staff & Casual Paymts            ,1215.2,05/02/2014,REV,REDACTED
284,CS -Oth Operating Inc & Expend,T/A Vehicle Maintenance etc,Transport-Contract Hire,J01374,Transport Related Expenditure ,Contract Hire and Op Leasing  ,CC64,HIRING TRANSPORT SEN CABS               ,1368,31/01/2014,REV,NVCAR HIRE LTD                
284,Central Services,SupS Facilities,Facilities,E02231,Employees                     ,Direct Employee Expenses      ,AA17,Agency Staff & Casual Paymts            ,1215.2,19/02/2014,REV,REDACTED
285,Central Services,SupS Facilities,Facilities,E02231,Premises Related Expenditure  ,RepairsAlterations&MtceOfBldgs,BA02,ENERGY CONSERVATION                     ,1825,06/12/2013,REV,ENERGY SAVING LIGHTING (UK) LT
285,CS -Oth Operating Inc & Expend,T/A Vehicle Maintenance etc,Transport-Contract Hire,J01374,Transport Related Expenditure ,Contract Hire and Op Leasing  ,CC64,HIRING TRANSPORT SEN CABS               ,1960,31/01/2014,REV,KINGSTON ACCESSIBILITY TRAN LT
286,Central Services,SupS Facilities,Facilities,E02231,Premises Related Expenditure  ,RepairsAlterations&MtceOfBldgs,BA02,ENERGY CONSERVATION                     ,8465,06/12/2013,REV,ENERGY SAVING LIGHTING (UK) LT
286,CS -Oth Operating Inc & Expend,T/A Vehicle Maintenance etc,Transport-Contract Hire,J01374,Transport Related Expenditure ,Contract Hire and Op Leasing  ,CC64,HIRING TRANSPORT SEN CABS               ,760,31/01/2014,REV,NVCAR HIRE LTD                
287,Central Services,SupS Facilities,Facilities,E02231,Premises Related Expenditure  ,RepairsAlterations&MtceOfBldgs,BA02,ENERGY CONSERVATION                     ,1917,04/02/2014,REV,BERGEN ENERGI                 
287,CS -Oth Operating Inc & Expend,T/A Vehicle Maintenance etc,Transport-Contract Hire,J01374,Transport Related Expenditure ,Contract Hire and Op Leasing  ,CC64,HIRING TRANSPORT SEN CABS               ,960,01/02/2014,REV,KENDALL CARS                  
288,Central Services,SupS Facilities,Facilities,E02231,Premises Related Expenditure  ,RepairsAlterations&MtceOfBldgs,BA29,Build Maint Mgt Fees                    ,18388.03,13/01/2014,REV,COMPLEMENT CONSULTING LIMITED 
288,CS -Oth Operating Inc & Expend,T/A Vehicle Maintenance etc,Transport-Contract Hire,J01374,Transport Related Expenditure ,Contract Hire and Op Leasing  ,CC64,HIRING TRANSPORT SEN CABS               ,800,31/01/2014,REV,GALPINS SERVICE               
289,CS -Oth Operating Inc & Expend,T/A Vehicle Maintenance etc,Transport-Contract Hire,J01374,Transport Related Expenditure ,Contract Hire and Op Leasing  ,CC64,HIRING TRANSPORT SEN CABS               ,1764,31/01/2014,REV,CAPITAL CARS                  
289,Central Services,SupS Facilities,Facilities,E02231,Premises Related Expenditure  ,RepairsAlterations&MtceOfBldgs,BA29,Build Maint Mgt Fees                    ,22722.51,24/02/2014,REV,COMPLEMENT CONSULTING LIMITED 
290,Central Services,SupS Facilities,Facilities,E02231,Supplies & Services           ,Services                      ,DF03,Consultants                             ,1877.97,30/01/2014,REV,COMPLEMENT CONSULTING LIMITED 
290,CS -Oth Operating Inc & Expend,T/A Vehicle Maintenance etc,Transport-Contract Hire,J01374,Transport Related Expenditure ,Contract Hire and Op Leasing  ,CC64,HIRING TRANSPORT SEN CABS               ,736.2,31/01/2014,REV,SILVERBURN FINANCE (UK) LTD   
291,CS -Oth Operating Inc & Expend,T/A Vehicle Maintenance etc,Transport-Contract Hire,J01374,Transport Related Expenditure ,Contract Hire and Op Leasing  ,CC64,HIRING TRANSPORT SEN CABS               ,2614,31/01/2014,REV,CAPITAL CARS                  
291,Central Services,SupS Facilities,Facilities,E02231,Supplies & Services           ,Services                      ,DF03,Consultants                             ,2262.65,05/02/2014,REV,COMPLEMENT CONSULTING LIMITED 
292,Central Services,SupS Facilities,Facilities,E02231,Supplies & Services           ,Services                      ,DF03,Consultants                             ,1475,03/02/2014,REV,COMPLEMENT CONSULTING LIMITED 
292,CS -Oth Operating Inc & Expend,T/A Vehicle Maintenance etc,Transport-Contract Hire,J01374,Transport Related Expenditure ,Contract Hire and Op Leasing  ,CC64,HIRING TRANSPORT SEN CABS               ,990,31/01/2014,REV,SHERWOOD TRANSPORT GROUP      
293,CS -Oth Operating Inc & Expend,T/A Vehicle Maintenance etc,Transport-Contract Hire,J01374,Transport Related Expenditure ,Contract Hire and Op Leasing  ,CC64,HIRING TRANSPORT SEN CABS               ,2380,31/01/2014,REV,BRUNSWICK CARS LTD            
293,Central Services,SupS Facilities,Facilities,E02231,Supplies & Services           ,Services                      ,DF09,Miscellaneous Fees                      ,1000,20/01/2014,REV,PRIORITY RISK LTD             
294,CS -Oth Operating Inc & Expend,T/A Vehicle Maintenance etc,Transport-Contract Hire,J01374,Transport Related Expenditure ,Contract Hire and Op Leasing  ,CC64,HIRING TRANSPORT SEN CABS               ,1400,31/01/2014,REV,CAPITAL CARS                  
294,Central Services,SupS Facilities,Corporate Services Buildings,E02240,Premises Related Expenditure  ,RepairsAlterations&MtceOfBldgs,BA01,DDM - General Building                  ,2709.84,20/02/2014,REV,SALTASH ENTERPRISES LTD       
295,Central Services,SupS Facilities,Corporate Services Buildings,E02240,Premises Related Expenditure  ,RepairsAlterations&MtceOfBldgs,BA01,DDM - General Building                  ,1420,25/11/2013,REV,COFELY LIMITED                
295,CS -Oth Operating Inc & Expend,T/A Vehicle Maintenance etc,Transport-Contract Hire,J01374,Transport Related Expenditure ,Contract Hire and Op Leasing  ,CC64,HIRING TRANSPORT SEN CABS               ,1485,31/01/2014,REV,SHERWOOD TRANSPORT GROUP      
296,CS -Oth Operating Inc & Expend,T/A Vehicle Maintenance etc,Transport-Contract Hire,J01374,Transport Related Expenditure ,Contract Hire and Op Leasing  ,CC64,HIRING TRANSPORT SEN CABS               ,2850,31/01/2014,REV,BARCLAYS ASSET & SALES FINANCE
296,Central Services,SupS Facilities,Corporate Services Buildings,E02240,Premises Related Expenditure  ,RepairsAlterations&MtceOfBldgs,BA01,DDM - General Building                  ,1236.5,31/01/2014,REV,STATUTORY SUPPORT SERV(UK) LTD
297,CS -Oth Operating Inc & Expend,T/A Vehicle Maintenance etc,Transport-Contract Hire,J01374,Transport Related Expenditure ,Contract Hire and Op Leasing  ,CC64,HIRING TRANSPORT SEN CABS               ,1359.32,31/01/2014,REV,KINGSTON ACCESSIBILITY TRAN LT
297,Central Services,SupS Facilities,Corporate Services Buildings,E02240,Premises Related Expenditure  ,RepairsAlterations&MtceOfBldgs,BA01,DDM - General Building                  ,2324.41,27/02/2014,REV,SALTASH ENTERPRISES LTD       
298,Central Services,SupS Facilities,Corporate Services Buildings,E02240,Premises Related Expenditure  ,RepairsAlterations&MtceOfBldgs,BA01,DDM - General Building                  ,1253.67,20/02/2014,REV,GILLETT&JOHNSTON (CROYDON) LTD
298,CS -Oth Operating Inc & Expend,T/A Vehicle Maintenance etc,Transport-Contract Hire,J01374,Transport Related Expenditure ,Contract Hire and Op Leasing  ,CC64,HIRING TRANSPORT SEN CABS               ,1422,31/01/2014,REV,SHERWOOD TRANSPORT GROUP      
299,Central Services,SupS Facilities,Corporate Services Buildings,E02240,Premises Related Expenditure  ,RepairsAlterations&MtceOfBldgs,BA01,DDM - General Building                  ,2463,20/02/2014,REV,GILLETT&JOHNSTON (CROYDON) LTD
299,CS -Oth Operating Inc & Expend,T/A Vehicle Maintenance etc,Transport-Contract Hire,J01374,Transport Related Expenditure ,Contract Hire and Op Leasing  ,CC64,HIRING TRANSPORT SEN CABS               ,1295,01/02/2014,REV,KENDALL CARS                  
300,CS -Oth Operating Inc & Expend,T/A Vehicle Maintenance etc,Transport-Contract Hire,J01374,Transport Related Expenditure ,Contract Hire and Op Leasing  ,CC64,HIRING TRANSPORT SEN CABS               ,2216,31/01/2014,REV,KINGSTON ACCESSIBILITY TRAN LT
300,Central Services,SupS Facilities,Corporate Services Buildings,E02240,Premises Related Expenditure  ,RepairsAlterations&MtceOfBldgs,BA01,DDM - General Building                  ,2650.59,27/02/2014,REV,SALTASH ENTERPRISES LTD       
301,Central Services,SupS Facilities,Corporate Services Buildings,E02240,Premises Related Expenditure  ,RepairsAlterations&MtceOfBldgs,BA03,DDM - Mechanical                        ,1509.42,23/01/2014,REV,COFELY LIMITED                
301,CS -Oth Operating Inc & Expend,T/A Vehicle Maintenance etc,Transport-Contract Hire,J01374,Transport Related Expenditure ,Contract Hire and Op Leasing  ,CC64,HIRING TRANSPORT SEN CABS               ,1200,31/01/2014,REV,NVCAR HIRE LTD                
302,Central Services,SupS Facilities,Corporate Services Buildings,E02240,Premises Related Expenditure  ,RepairsAlterations&MtceOfBldgs,BA03,DDM - Mechanical                        ,758.4,06/02/2014,REV,COFELY LIMITED                
302,CS -Oth Operating Inc & Expend,T/A Vehicle Maintenance etc,Transport-Contract Hire,J01374,Transport Related Expenditure ,Contract Hire and Op Leasing  ,CC64,HIRING TRANSPORT SEN CABS               ,2163.6,31/01/2014,REV,KINGSTON ACCESSIBILITY TRAN LT
303,Central Services,SupS Facilities,Corporate Services Buildings,E02240,Premises Related Expenditure  ,RepairsAlterations&MtceOfBldgs,BA05,DDM - Electrical                        ,785.05,14/02/2014,REV,COFELY LIMITED                
303,CS -Oth Operating Inc & Expend,T/A Vehicle Maintenance etc,Transport-Contract Hire,J01374,Transport Related Expenditure ,Contract Hire and Op Leasing  ,CC64,HIRING TRANSPORT SEN CABS               ,1680,31/01/2014,REV,SILVERBURN FINANCE (UK) LTD   
304,Central Services,SupS Facilities,Corporate Services Buildings,E02240,Premises Related Expenditure  ,RepairsAlterations&MtceOfBldgs,BA05,DDM - Electrical                        ,617.14,30/09/2013,REV,EDMUNDSON ELECTRICAL LTD      
304,CS -Oth Operating Inc & Expend,T/A Vehicle Maintenance etc,Transport-Contract Hire,J01374,Transport Related Expenditure ,Contract Hire and Op Leasing  ,CC64,HIRING TRANSPORT SEN CABS               ,3580,31/01/2014,REV,SILVERBURN FINANCE (UK) LTD   
305,Central Services,SupS Facilities,Corporate Services Buildings,E02240,Premises Related Expenditure  ,RepairsAlterations&MtceOfBldgs,BA05,DDM - Electrical                        ,573.64,03/02/2014,REV,AXIS ELEVATORS LTD            
305,CS -Oth Operating Inc & Expend,T/A Vehicle Maintenance etc,Transport-Contract Hire,J01374,Transport Related Expenditure ,Contract Hire and Op Leasing  ,CC64,HIRING TRANSPORT SEN CABS               ,2261,31/01/2014,REV,SHERWOOD TRANSPORT GROUP      
306,CS -Oth Operating Inc & Expend,T/A Vehicle Maintenance etc,Transport-Contract Hire,J01374,Transport Related Expenditure ,Contract Hire and Op Leasing  ,CC64,HIRING TRANSPORT SEN CABS               ,2436,31/01/2014,REV,CAPITAL CARS                  
306,Central Services,SupS Facilities,Corporate Services Buildings,E02240,Premises Related Expenditure  ,RepairsAlterations&MtceOfBldgs,BA05,DDM - Electrical                        ,640,20/03/2014,REV,SSD LIMITED                   
307,Central Services,SupS Facilities,Corporate Services Buildings,E02240,Premises Related Expenditure  ,RepairsAlterations&MtceOfBldgs,BA05,DDM - Electrical                        ,1594.5,08/04/2013,REV,FIRST CHOICE FACILITIES PLC   
307,CS -Oth Operating Inc & Expend,T/A Vehicle Maintenance etc,Transport-Contract Hire,J01374,Transport Related Expenditure ,Contract Hire and Op Leasing  ,CC64,HIRING TRANSPORT SEN CABS               ,833,31/01/2014,REV,SHERWOOD TRANSPORT GROUP      
308,Central Services,SupS Facilities,Corporate Services Buildings,E02240,Premises Related Expenditure  ,RepairsAlterations&MtceOfBldgs,BA05,DDM - Electrical                        ,1700,31/10/2013,REV,FIRST CHOICE FACILITIES PLC   
308,CS -Oth Operating Inc & Expend,T/A Vehicle Maintenance etc,Transport-Contract Hire,J01374,Transport Related Expenditure ,Contract Hire and Op Leasing  ,CC64,HIRING TRANSPORT SEN CABS               ,3000,24/01/2014,REV,WALLINGTON CARS & COURIERS LTD
309,CS -Oth Operating Inc & Expend,T/A Vehicle Maintenance etc,Transport-Contract Hire,J01374,Transport Related Expenditure ,Contract Hire and Op Leasing  ,CC64,HIRING TRANSPORT SEN CABS               ,1591.82,31/01/2014,REV,KINGSTON ACCESSIBILITY TRAN LT
309,Central Services,SupS Facilities,Corporate Services Buildings,E02240,Premises Related Expenditure  ,RepairsAlterations&MtceOfBldgs,BA05,DDM - Electrical                        ,1482,20/01/2014,REV,SSD LIMITED                   
310,Central Services,SupS Facilities,Corporate Services Buildings,E02240,Premises Related Expenditure  ,RepairsAlterations&MtceOfBldgs,BA05,DDM - Electrical                        ,-617.14,21/01/2014,REV,EDMUNDSON ELECTRICAL LTD      
310,CS -Oth Operating Inc & Expend,T/A Vehicle Maintenance etc,Transport-Contract Hire,J01374,Transport Related Expenditure ,Contract Hire and Op Leasing  ,CC64,HIRING TRANSPORT SEN CABS               ,900,31/01/2014,REV,KINGSTON ACCESSIBILITY TRAN LT
311,Central Services,SupS Facilities,Corporate Services Buildings,E02240,Premises Related Expenditure  ,RepairsAlterations&MtceOfBldgs,BA05,DDM - Electrical                        ,1720.94,31/12/2013,REV,AXIS ELEVATORS LTD            
311,CS -Oth Operating Inc & Expend,T/A Vehicle Maintenance etc,Transport-Contract Hire,J01374,Transport Related Expenditure ,Contract Hire and Op Leasing  ,CC64,HIRING TRANSPORT SEN CABS               ,836,31/01/2014,REV,NVCAR HIRE LTD                
312,Central Services,SupS Facilities,Corporate Services Buildings,E02240,Premises Related Expenditure  ,RepairsAlterations&MtceOfBldgs,BA29,Build Maint Mgt Fees                    ,533,23/02/2014,REV,KH FLOORING LTD               
312,CS -Oth Operating Inc & Expend,T/A Vehicle Maintenance etc,Transport-Contract Hire,J01374,Transport Related Expenditure ,Contract Hire and Op Leasing  ,CC64,HIRING TRANSPORT SEN CABS               ,1045,31/01/2014,REV,SHERWOOD TRANSPORT GROUP      
313,CS -Oth Operating Inc & Expend,T/A Vehicle Maintenance etc,Transport-Contract Hire,J01374,Transport Related Expenditure ,Contract Hire and Op Leasing  ,CC64,HIRING TRANSPORT SEN CABS               ,2700,31/01/2014,REV,BARCLAYS ASSET & SALES FINANCE
313,Central Services,SupS Facilities,Corporate Services Buildings,E02240,Premises Related Expenditure  ,Energy Costs                  ,BB02,Electricity                             ,15450.27,07/01/2014,REV,SCOTTISHPOWER                 
314,Central Services,SupS Facilities,Corporate Services Buildings,E02240,Premises Related Expenditure  ,Energy Costs                  ,BB02,Electricity                             ,1542.65,01/02/2014,REV,EDF                           
314,CS -Oth Operating Inc & Expend,T/A Vehicle Maintenance etc,Transport-Contract Hire,J01374,Transport Related Expenditure ,Contract Hire and Op Leasing  ,CC64,HIRING TRANSPORT SEN CABS               ,1750,31/01/2014,REV,NVCAR HIRE LTD                
315,CS -Oth Operating Inc & Expend,T/A Vehicle Maintenance etc,Transport-Contract Hire,J01374,Transport Related Expenditure ,Contract Hire and Op Leasing  ,CC64,HIRING TRANSPORT SEN CABS               ,1680,31/01/2014,REV,CAPITAL CARS                  
315,Central Services,SupS Facilities,Corporate Services Buildings,E02240,Premises Related Expenditure  ,Energy Costs                  ,BB02,Electricity                             ,3029.17,07/02/2014,REV,SCOTTISHPOWER                 
316,CS -Oth Operating Inc & Expend,T/A Vehicle Maintenance etc,Transport-Contract Hire,J01374,Transport Related Expenditure ,Contract Hire and Op Leasing  ,CC64,HIRING TRANSPORT SEN CABS               ,708,31/01/2014,REV,CAPITAL CARS                  
316,Central Services,SupS Facilities,Corporate Services Buildings,E02240,Premises Related Expenditure  ,Energy Costs                  ,BB02,Electricity                             ,15777.39,07/02/2014,REV,SCOTTISHPOWER                 
317,Central Services,SupS Facilities,Corporate Services Buildings,E02240,Premises Related Expenditure  ,Energy Costs                  ,BB03,Gas (incl. Butane)                      ,1047.74,05/02/2014,REV,GAZPROM MARKETING&TRADING LTD 
317,CS -Oth Operating Inc & Expend,T/A Vehicle Maintenance etc,Transport-Contract Hire,J01374,Transport Related Expenditure ,Contract Hire and Op Leasing  ,CC64,HIRING TRANSPORT SEN CABS               ,2800,31/01/2014,REV,KINGSTON ACCESSIBILITY TRAN LT
318,Central Services,SupS Facilities,Corporate Services Buildings,E02240,Premises Related Expenditure  ,Energy Costs                  ,BB03,Gas (incl. Butane)                      ,9283.33,09/01/2014,REV,GAZPROM MARKETING&TRADING LTD 
318,CS -Oth Operating Inc & Expend,T/A Vehicle Maintenance etc,Transport-Contract Hire,J01374,Transport Related Expenditure ,Contract Hire and Op Leasing  ,CC64,HIRING TRANSPORT SEN CABS               ,1855.6,31/01/2014,REV,KINGSTON ACCESSIBILITY TRAN LT
319,CS -Oth Operating Inc & Expend,T/A Vehicle Maintenance etc,Transport-Contract Hire,J01374,Transport Related Expenditure ,Contract Hire and Op Leasing  ,CC64,HIRING TRANSPORT SEN CABS               ,2394,31/01/2014,REV,CAPITAL CARS                  
319,Central Services,SupS Facilities,Corporate Services Buildings,E02240,Premises Related Expenditure  ,Energy Costs                  ,BB03,Gas (incl. Butane)                      ,1063.15,05/02/2014,REV,GAZPROM MARKETING&TRADING LTD 
320,Central Services,SupS Facilities,Corporate Services Buildings,E02240,Premises Related Expenditure  ,Energy Costs                  ,BB03,Gas (incl. Butane)                      ,7974.4,05/02/2014,REV,GAZPROM MARKETING&TRADING LTD 
320,CS -Oth Operating Inc & Expend,T/A Vehicle Maintenance etc,Transport-Contract Hire,J01374,Transport Related Expenditure ,Contract Hire and Op Leasing  ,CC64,HIRING TRANSPORT SEN CABS               ,1784.1,31/01/2014,REV,KINGSTON ACCESSIBILITY TRAN LT
321,Central Services,SupS Facilities,Corporate Services Buildings,E02240,Premises Related Expenditure  ,Energy Costs                  ,BB03,Gas (incl. Butane)                      ,682.42,05/02/2014,REV,GAZPROM MARKETING&TRADING LTD 
321,CS -Oth Operating Inc & Expend,T/A Vehicle Maintenance etc,Transport-Contract Hire,J01374,Transport Related Expenditure ,Contract Hire and Op Leasing  ,CC64,HIRING TRANSPORT SEN CABS               ,2862,31/01/2014,REV,KINGSTON ACCESSIBILITY TRAN LT
322,Central Services,SupS Facilities,Corporate Services Buildings,E02240,Premises Related Expenditure  ,Energy Costs                  ,BB03,Gas (incl. Butane)                      ,646.99,09/01/2014,REV,GAZPROM MARKETING&TRADING LTD 
322,CS -Oth Operating Inc & Expend,T/A Vehicle Maintenance etc,Transport-Contract Hire,J01374,Transport Related Expenditure ,Contract Hire and Op Leasing  ,CC64,HIRING TRANSPORT SEN CABS               ,791.5,31/01/2014,REV,SHERWOOD TRANSPORT GROUP      
323,CS -Oth Operating Inc & Expend,T/A Vehicle Maintenance etc,Transport-Contract Hire,J01374,Transport Related Expenditure ,Contract Hire and Op Leasing  ,CC64,HIRING TRANSPORT SEN CABS               ,2812,31/01/2014,REV,BARCLAYS ASSET & SALES FINANCE
323,Central Services,SupS Facilities,Corporate Services Buildings,E02240,Premises Related Expenditure  ,Water Services                ,BE01,Use of Water (Metered)                  ,976.66,27/01/2014,REV,SUTTON AND EAST SURREY WATER  
324,CS -Oth Operating Inc & Expend,T/A Vehicle Maintenance etc,Transport-Contract Hire,J01374,Transport Related Expenditure ,Contract Hire and Op Leasing  ,CC64,HIRING TRANSPORT SEN CABS               ,594,31/01/2014,REV,CHEAM STATION CARS            
324,Adult Social Care,PS u65 Day Care,C & H Buildings,E02345,Premises Related Expenditure  ,RepairsAlterations&MtceOfBldgs,BA01,DDM - General Building                  ,1884.97,07/02/2014,REV,NETWORK BLINDS LIMITED        
325,Adult Social Care,PS u65 Day Care,C & H Buildings,E02345,Premises Related Expenditure  ,RepairsAlterations&MtceOfBldgs,BA03,DDM - Mechanical                        ,763.5,06/11/2013,REV,CROWN SECURITY SYSTEMS LTD    
325,CS -Oth Operating Inc & Expend,T/A Vehicle Maintenance etc,Transport-Contract Hire,J01374,Transport Related Expenditure ,Contract Hire and Op Leasing  ,CC64,HIRING TRANSPORT SEN CABS               ,1163,31/01/2014,REV,NVCAR HIRE LTD                
326,Central Services,SupS DOF,BUSINESS PARTNERS,E04059,Employees                     ,Direct Employee Expenses      ,AA17,Agency Staff & Casual Paymts            ,9750,07/02/2014,REV,REDACTED
326,CS -Oth Operating Inc & Expend,T/A Vehicle Maintenance etc,Transport-Contract Hire,J01374,Transport Related Expenditure ,Contract Hire and Op Leasing  ,CC64,HIRING TRANSPORT SEN CABS               ,1424.7,31/01/2014,REV,SILVERBURN FINANCE (UK) LTD   
327,Central Services,SupS DOF,Director of Corporate Services,E04060,Supplies & Services           ,Services                      ,DF11,Counsel's Fees                          ,715,31/01/2014,REV,ALTLAW                        
327,CS -Oth Operating Inc & Expend,T/A Vehicle Maintenance etc,Transport-Contract Hire,J01374,Transport Related Expenditure ,Contract Hire and Op Leasing  ,CC64,HIRING TRANSPORT SEN CABS               ,1743.6,31/01/2014,REV,SILVERBURN FINANCE (UK) LTD   
328,CS -Oth Operating Inc & Expend,T/A Vehicle Maintenance etc,Transport-Contract Hire,J01374,Transport Related Expenditure ,Contract Hire and Op Leasing  ,CC64,HIRING TRANSPORT SEN CABS               ,2204,31/01/2014,REV,BARCLAYS ASSET & SALES FINANCE
328,Central Services,SupS DOF,AD RESOURCES,E04061,Supplies & Services           ,Services                      ,DF03,CONSULTANTS                             ,7820,03/02/2014,REV,PUBLIC SECTOR CONSULTANTS     
329,Central Services,SupS Audit and Fraud,Internal Audit&Service Review,E05101,Supplies & Services           ,Services                      ,DF58,Audit fee                               ,1395,24/01/2014,REV,BAKER TILLY                   
329,CS -Oth Operating Inc & Expend,T/A Vehicle Maintenance etc,Transport-Contract Hire,J01374,Transport Related Expenditure ,Contract Hire and Op Leasing  ,CC64,HIRING TRANSPORT SEN CABS               ,3148.8,31/01/2014,REV,SILVERBURN FINANCE (UK) LTD   
330,Central Services,SupS Audit and Fraud,Internal Audit&Service Review,E05101,Supplies & Services           ,Comms and Computing           ,DG02,Software Licences                       ,2200,01/12/2013,REV,MAGIQUE GALILEO SOFTWARE LTD  
330,CS -Oth Operating Inc & Expend,T/A Vehicle Maintenance etc,Transport-Contract Hire,J01374,Transport Related Expenditure ,Contract Hire and Op Leasing  ,CC64,HIRING TRANSPORT SEN CABS               ,864,31/01/2014,REV,NVCAR HIRE LTD                
331,Central Services,SupS Corporate Finance,Corporate Accountancy,E06209,Employees                     ,Indirect Employee Expenses    ,AB57,External Training Costs                 ,750,17/02/2014,REV,CIPFA BUSINESS LTD            
331,CS -Oth Operating Inc & Expend,T/A Vehicle Maintenance etc,Transport-Contract Hire,J01374,Transport Related Expenditure ,Contract Hire and Op Leasing  ,CC64,HIRING TRANSPORT SEN CABS               ,1619.46,31/01/2014,REV,KINGSTON ACCESSIBILITY TRAN LT
332,CS -Oth Operating Inc & Expend,T/A Vehicle Maintenance etc,Transport-Contract Hire,J01374,Transport Related Expenditure ,Contract Hire and Op Leasing  ,CC64,HIRING TRANSPORT SEN CABS               ,1007,31/01/2014,REV,BARCLAYS ASSET & SALES FINANCE
332,Central Services,SupS Strategic Finance,Treasury & Insurance,E06222,Employees                     ,Direct Employee Expenses      ,AA17,Agency Staff & Casual Paymts            ,2350,30/12/2013,REV,RANDSTAD FIN & PROF LTD.      
333,CS -Oth Operating Inc & Expend,T/A Vehicle Maintenance etc,Transport-Contract Hire,J01374,Transport Related Expenditure ,Contract Hire and Op Leasing  ,CC64,HIRING TRANSPORT SEN CABS               ,1140,31/01/2014,REV,GALPINS SERVICE               
333,Central Services,SupS Strategic Finance,Treasury & Insurance,E06222,Employees                     ,Direct Employee Expenses      ,AA17,Agency Staff & Casual Paymts            ,9400,30/10/2013,REV,RANDSTAD FIN & PROF LTD.      
334,CS -Oth Operating Inc & Expend,T/A Vehicle Maintenance etc,Transport-Contract Hire,J01374,Transport Related Expenditure ,Contract Hire and Op Leasing  ,CC64,HIRING TRANSPORT SEN CABS               ,1480,31/01/2014,REV,CAPITAL CARS                  
334,Central Services,SupS Strategic Finance,Treasury & Insurance,E06222,Employees                     ,Direct Employee Expenses      ,AA17,Agency Staff & Casual Paymts            ,2350,23/01/2014,REV,RANDSTAD FIN & PROF LTD.      
335,CS -Oth Operating Inc & Expend,T/A Vehicle Maintenance etc,Transport-Contract Hire,J01374,Transport Related Expenditure ,Contract Hire and Op Leasing  ,CC64,HIRING TRANSPORT SEN CABS               ,1976,31/01/2014,REV,KINGSTON ACCESSIBILITY TRAN LT
335,Central Services,SupS Strategic Finance,Treasury & Insurance,E06222,Employees                     ,Direct Employee Expenses      ,AA17,Agency Staff & Casual Paymts            ,2350,07/11/2013,REV,RANDSTAD FIN & PROF LTD.      
336,CS -Oth Operating Inc & Expend,T/A Vehicle Maintenance etc,Transport-Contract Hire,J01374,Transport Related Expenditure ,Contract Hire and Op Leasing  ,CC64,HIRING TRANSPORT SEN CABS               ,1254,31/01/2014,REV,NVCAR HIRE LTD                
336,Central Services,SupS Strategic Finance,Treasury & Insurance,E06222,Employees                     ,Direct Employee Expenses      ,AA17,Agency Staff & Casual Paymts            ,4700,25/11/2013,REV,RANDSTAD FIN & PROF LTD.      
337,Central Services,SupS Strategic Finance,Treasury & Insurance,E06222,Employees                     ,Direct Employee Expenses      ,AA17,Agency Staff & Casual Paymts            ,7050,18/12/2013,REV,RANDSTAD FIN & PROF LTD.      
337,CS -Oth Operating Inc & Expend,T/A Vehicle Maintenance etc,Transport-Contract Hire,J01374,Transport Related Expenditure ,Contract Hire and Op Leasing  ,CC64,HIRING TRANSPORT SEN CABS               ,2622,31/01/2014,REV,WALLINGTON CARS & COURIERS LTD
338,CS -Oth Operating Inc & Expend,T/A Vehicle Maintenance etc,Transport-Contract Hire,J01374,Transport Related Expenditure ,Contract Hire and Op Leasing  ,CC64,HIRING TRANSPORT SEN CABS               ,880,31/01/2014,REV,CAPITAL CARS                  
338,Central Services,SupS Strategic Finance,Treasury & Insurance,E06222,Employees                     ,Direct Employee Expenses      ,AA17,Agency Staff & Casual Paymts            ,5170,15/01/2014,REV,RANDSTAD FIN & PROF LTD.      
339,CS -Oth Operating Inc & Expend,T/A Vehicle Maintenance etc,Transport-Contract Hire,J01374,Transport Related Expenditure ,Contract Hire and Op Leasing  ,CC64,HIRING TRANSPORT SEN CABS               ,2100,31/01/2014,REV,BARCLAYS ASSET & SALES FINANCE
339,Central Services,SupS Strategic Finance,Treasury & Insurance,E06222,Employees                     ,Direct Employee Expenses      ,AA17,Agency Staff & Casual Paymts            ,4700,25/11/2013,REV,RANDSTAD FIN & PROF LTD.      
340,CS -Oth Operating Inc & Expend,T/A Vehicle Maintenance etc,Transport-Contract Hire,J01374,Transport Related Expenditure ,Contract Hire and Op Leasing  ,CC64,HIRING TRANSPORT SEN CABS               ,2660,31/01/2014,REV,BARCLAYS ASSET & SALES FINANCE
340,Central Services,SupS Strategic Finance,Treasury & Insurance,E06222,Employees                     ,Direct Employee Expenses      ,AA17,Agency Staff & Casual Paymts            ,4700,25/11/2013,REV,RANDSTAD FIN & PROF LTD.      
341,Central Services,GENERATED ACCOUNT,Parking Cash Collect'n Contrct,E06225,Third Party Payments          ,Private Contractors           ,EH02,Miscellaneous Hired Services            ,1116.94,31/01/2014,REV,BANKING AUTOMATION LTD        
341,CS -Oth Operating Inc & Expend,T/A Vehicle Maintenance etc,Transport-Contract Hire,J01374,Transport Related Expenditure ,Contract Hire and Op Leasing  ,CC64,HIRING TRANSPORT SEN CABS               ,1440,31/01/2014,REV,NVCAR HIRE LTD                
342,Central Services,GENERATED ACCOUNT,Parking Cash Collect'n Contrct,E06225,Third Party Payments          ,Private Contractors           ,EH02,Miscellaneous Hired Services            ,11150.8,31/01/2014,REV,BANKING AUTOMATION LTD        
342,CS -Oth Operating Inc & Expend,T/A Vehicle Maintenance etc,Transport-Contract Hire,J01374,Transport Related Expenditure ,Contract Hire and Op Leasing  ,CC64,HIRING TRANSPORT SEN CABS               ,2470,31/01/2014,REV,BARCLAYS ASSET & SALES FINANCE
343,CS -Oth Operating Inc & Expend,T/A Vehicle Maintenance etc,Transport-Contract Hire,J01374,Transport Related Expenditure ,Contract Hire and Op Leasing  ,CC64,HIRING TRANSPORT SEN CABS               ,576,31/01/2014,REV,CAPITAL CARS                  
343,Central Services,GENERATED ACCOUNT,Establishments' Cash Collect'n,E06226,Third Party Payments          ,Private Contractors           ,EH02,Miscellaneous Hired Services            ,3371.38,15/01/2014,REV,LOOMIS UK LTD                 
344,Central Services,SupS DOF,Service Accountancy,E06227,Employees                     ,Direct Employee Expenses      ,AA17,Agency Staff & Casual Paymts            ,2300,30/12/2013,REV,RANDSTAD FIN & PROF LTD.      
344,CS -Oth Operating Inc & Expend,T/A Vehicle Maintenance etc,Transport-Contract Hire,J01374,Transport Related Expenditure ,Contract Hire and Op Leasing  ,CC64,HIRING TRANSPORT SEN CABS               ,2980,31/01/2014,REV,SHERWOOD TRANSPORT GROUP      
345,Central Services,SupS DOF,Service Accountancy,E06227,Employees                     ,Direct Employee Expenses      ,AA17,Agency Staff & Casual Paymts            ,2300,25/11/2013,REV,RANDSTAD FIN & PROF LTD.      
345,CS -Oth Operating Inc & Expend,T/A Vehicle Maintenance etc,Transport-Contract Hire,J01374,Transport Related Expenditure ,Contract Hire and Op Leasing  ,CC64,HIRING TRANSPORT SEN CABS               ,1728,31/01/2014,REV,SILVERBURN FINANCE (UK) LTD   
346,CS -Oth Operating Inc & Expend,T/A Vehicle Maintenance etc,Transport-Contract Hire,J01374,Transport Related Expenditure ,Contract Hire and Op Leasing  ,CC64,HIRING TRANSPORT SEN CABS               ,1410,31/01/2014,REV,CAPITAL CARS                  
346,Central Services,SupS DOF,Service Accountancy,E06227,Employees                     ,Direct Employee Expenses      ,AA17,Agency Staff & Casual Paymts            ,1725,29/11/2013,REV,RANDSTAD FIN & PROF LTD.      
347,Central Services,SupS DOF,Service Accountancy,E06227,Employees                     ,Direct Employee Expenses      ,AA17,Agency Staff & Casual Paymts            ,5060,18/12/2013,REV,RANDSTAD FIN & PROF LTD.      
347,CS -Oth Operating Inc & Expend,T/A Vehicle Maintenance etc,Transport-Contract Hire,J01374,Transport Related Expenditure ,Contract Hire and Op Leasing  ,CC64,HIRING TRANSPORT SEN CABS               ,1839.2,31/01/2014,REV,SHERWOOD TRANSPORT GROUP      
348,CS -Oth Operating Inc & Expend,T/A Vehicle Maintenance etc,Transport-Contract Hire,J01374,Transport Related Expenditure ,Contract Hire and Op Leasing  ,CC64,HIRING TRANSPORT SEN CABS               ,1558,31/01/2014,REV,A STAR TRANSPORT LIMITED      
348,Central Services,SupS DOF,Service Accountancy,E06227,Employees                     ,Direct Employee Expenses      ,AA17,Agency Staff & Casual Paymts            ,4600,28/01/2014,REV,RANDSTAD FIN & PROF LTD.      
349,CS -Oth Operating Inc & Expend,T/A Vehicle Maintenance etc,Transport-Contract Hire,J01374,Transport Related Expenditure ,Contract Hire and Op Leasing  ,CC64,HIRING TRANSPORT SEN CABS               ,1070,31/01/2014,REV,CHEAM STATION CARS            
349,Central Services,SupS DOF,Service Accountancy,E06227,Employees                     ,Direct Employee Expenses      ,AA17,Agency Staff & Casual Paymts            ,6900,07/11/2013,REV,RANDSTAD FIN & PROF LTD.      
350,Central Services,SupS DOF,Service Accountancy,E06227,Employees                     ,Direct Employee Expenses      ,AA17,Agency Staff & Casual Paymts            ,4600,10/02/2014,REV,RANDSTAD FIN & PROF LTD.      
350,CS -Oth Operating Inc & Expend,T/A Vehicle Maintenance etc,Transport-Contract Hire,J01374,Transport Related Expenditure ,Contract Hire and Op Leasing  ,CC64,HIRING TRANSPORT SEN CABS               ,608,31/01/2014,REV,SILVERBURN FINANCE (UK) LTD   
351,CS -Oth Operating Inc & Expend,T/A Vehicle Maintenance etc,Transport-Contract Hire,J01374,Transport Related Expenditure ,Contract Hire and Op Leasing  ,CC64,HIRING TRANSPORT SEN CABS               ,1706.96,31/01/2014,REV,KINGSTON ACCESSIBILITY TRAN LT
351,Central Services,SupS DOF,Service Accountancy,E06227,Employees                     ,Direct Employee Expenses      ,AA17,Agency Staff & Casual Paymts            ,4140,13/01/2014,REV,RANDSTAD FIN & PROF LTD.      
352,Central Services,SupS DOF,Service Accountancy,E06227,Employees                     ,Direct Employee Expenses      ,AA17,Agency Staff & Casual Paymts            ,2300,25/11/2013,REV,RANDSTAD FIN & PROF LTD.      
352,CS -Oth Operating Inc & Expend,T/A Vehicle Maintenance etc,Transport-Contract Hire,J01374,Transport Related Expenditure ,Contract Hire and Op Leasing  ,CC64,HIRING TRANSPORT SEN CABS               ,1896.25,31/01/2014,REV,SHERWOOD TRANSPORT GROUP      
353,CS -Oth Operating Inc & Expend,T/A Vehicle Maintenance etc,Transport-Contract Hire,J01374,Transport Related Expenditure ,Contract Hire and Op Leasing  ,CC64,HIRING TRANSPORT SEN CABS               ,2536.12,31/01/2014,REV,KINGSTON ACCESSIBILITY TRAN LT
353,Central Services,SupS DOF,Service Accountancy,E06227,Employees                     ,Direct Employee Expenses      ,AA17,Agency Staff & Casual Paymts            ,6900,30/10/2013,REV,RANDSTAD FIN & PROF LTD.      
354,CS -Oth Operating Inc & Expend,T/A Vehicle Maintenance etc,Transport-Contract Hire,J01374,Transport Related Expenditure ,Contract Hire and Op Leasing  ,CC64,HIRING TRANSPORT SEN CABS               ,840,31/01/2014,REV,CAPITAL CARS                  
354,Central Services,SupS Legal,Legal Services,E10282,Supplies & Services           ,Services                      ,DF11,Counsel's fees                          ,520,20/01/2014,REV,REDACTED
355,CS -Oth Operating Inc & Expend,T/A Vehicle Maintenance etc,Transport-Contract Hire,J01374,Transport Related Expenditure ,Contract Hire and Op Leasing  ,CC64,HIRING TRANSPORT SEN CABS               ,2603,31/01/2014,REV,NVCAR HIRE LTD                
355,Central Services,SupS Legal,Legal Services,E10282,Supplies & Services           ,Services                      ,DF11,Counsel's fees                          ,1690,13/02/2014,REV,REDACTED
356,Central Services,SupS Legal,Legal Services,E10282,Supplies & Services           ,Services                      ,DF28,Court Fees                              ,4535,18/02/2014,REV,REDACTED
356,CS -Oth Operating Inc & Expend,T/A Vehicle Maintenance etc,Transport-Contract Hire,J01374,Transport Related Expenditure ,Contract Hire and Op Leasing  ,CC64,HIRING TRANSPORT SEN CABS               ,3180,31/01/2014,REV,SHERWOOD TRANSPORT GROUP      
357,CS -Oth Operating Inc & Expend,T/A Vehicle Maintenance etc,Transport-Contract Hire,J01374,Transport Related Expenditure ,Contract Hire and Op Leasing  ,CC64,HIRING TRANSPORT SEN CABS               ,2460,31/01/2014,REV,BARCLAYS ASSET & SALES FINANCE
357,Central Services,SupS Legal,Legal Services,E10282,Supplies & Services           ,Services                      ,DF28,Court Fees                              ,6970,20/02/2014,REV,REDACTED
358,Central Services,SupS Legal,Legal Services,E10282,Supplies & Services           ,Services                      ,DF28,Court Fees                              ,2120,18/02/2014,REV,REDACTED
358,CS -Oth Operating Inc & Expend,T/A Vehicle Maintenance etc,Transport-Contract Hire,J01374,Transport Related Expenditure ,Contract Hire and Op Leasing  ,CC64,HIRING TRANSPORT SEN CABS               ,560,31/01/2014,REV,SILVERBURN FINANCE (UK) LTD   
359,CS -Oth Operating Inc & Expend,T/A Vehicle Maintenance etc,Transport-Contract Hire,J01374,Transport Related Expenditure ,Contract Hire and Op Leasing  ,CC64,HIRING TRANSPORT SEN CABS               ,777,31/01/2014,REV,NVCAR HIRE LTD                
359,Central Services,SupS Legal,Legal Services,E10282,Supplies & Services           ,Services                      ,DF28,Court Fees                              ,2325,18/02/2014,REV,REDACTED
360,Central Services,SupS Legal,Legal Services,E10282,Supplies & Services           ,Services                      ,DF28,Court Fees                              ,2325,18/02/2014,REV,REDACTED
360,CS -Oth Operating Inc & Expend,T/A Vehicle Maintenance etc,Transport-Contract Hire,J01374,Transport Related Expenditure ,Contract Hire and Op Leasing  ,CC64,HIRING TRANSPORT SEN CABS               ,1400,31/01/2014,REV,SHERWOOD TRANSPORT GROUP      
361,CS -Oth Operating Inc & Expend,T/A Vehicle Maintenance etc,Transport-Contract Hire,J01374,Transport Related Expenditure ,Contract Hire and Op Leasing  ,CC64,HIRING TRANSPORT SEN CABS               ,2103,31/01/2014,REV,CAPITAL CARS                  
361,Central Services,SupS Legal,Legal Services,E10282,Supplies & Services           ,Services                      ,DF28,Court Fees                              ,5105,20/02/2014,REV,REDACTED
362,CS -Oth Operating Inc & Expend,T/A Vehicle Maintenance etc,Transport-Contract Hire,J01374,Transport Related Expenditure ,Contract Hire and Op Leasing  ,CC64,HIRING TRANSPORT SEN CABS               ,700,31/01/2014,REV,AERIAL CAR SERVICES LTD       
362,Central Services,SupS Legal,Legal Services,E10282,Supplies & Services           ,Services                      ,DF28,Court Fees                              ,5475,20/02/2014,REV,REDACTED
363,CS -Oth Operating Inc & Expend,T/A Vehicle Maintenance etc,Transport-Contract Hire,J01374,Transport Related Expenditure ,Contract Hire and Op Leasing  ,CC64,HIRING TRANSPORT SEN CABS               ,1291.5,31/01/2014,REV,CAPITAL CARS                  
363,Central Services,SupS Legal,Legal Services,E10282,Supplies & Services           ,Services                      ,DF28,Court Fees                              ,4585,20/02/2014,REV,REDACTED
364,CS -Oth Operating Inc & Expend,T/A Vehicle Maintenance etc,Transport-Contract Hire,J01374,Transport Related Expenditure ,Contract Hire and Op Leasing  ,CC64,HIRING TRANSPORT SEN CABS               ,2736,31/01/2014,REV,CAPITAL CARS                  
364,Central Services,Land Charges,Land Charges,E10283,Supplies & Services           ,Expenses                      ,DH16,Compensation Payments                   ,5287.82,19/02/2014,REV,TINKLER SOLICITORS            
365,CS -Oth Operating Inc & Expend,T/A Vehicle Maintenance etc,Transport-Contract Hire,J01374,Transport Related Expenditure ,Contract Hire and Op Leasing  ,CC66,HIRING TRANSPORT H&SS CAB CHILDREN      ,1608.8,31/01/2014,REV,SILVERBURN FINANCE (UK) LTD   
366,CS -Oth Operating Inc & Expend,T/A Vehicle Maintenance etc,Transport-Contract Hire,J01374,Transport Related Expenditure ,Contract Hire and Op Leasing  ,CC66,HIRING TRANSPORT H&SS CAB CHILDREN      ,720,04/02/2014,REV,NVCAR HIRE LTD                
367,CS -Oth Operating Inc & Expend,T/A Vehicle Maintenance etc,Transport-Contract Hire,J01374,Transport Related Expenditure ,Contract Hire and Op Leasing  ,CC66,HIRING TRANSPORT H&SS CAB CHILDREN      ,1683,31/01/2014,REV,KINGSTON ACCESSIBILITY TRAN LT
368,CS -Oth Operating Inc & Expend,T/A Vehicle Maintenance etc,Transport-Contract Hire,J01374,Transport Related Expenditure ,Contract Hire and Op Leasing  ,CC66,HIRING TRANSPORT H&SS CAB CHILDREN      ,660,31/01/2014,REV,NVCAR HIRE LTD                
369,CS -Oth Operating Inc & Expend,T/A Vehicle Maintenance etc,Transport-Contract Hire,J01374,Transport Related Expenditure ,Contract Hire and Op Leasing  ,CC66,HIRING TRANSPORT H&SS CAB CHILDREN      ,1440,31/01/2014,REV,NVCAR HIRE LTD                
370,CS -Oth Operating Inc & Expend,T/A Vehicle Maintenance etc,Transport-Contract Hire,J01374,Transport Related Expenditure ,Contract Hire and Op Leasing  ,CC66,HIRING TRANSPORT H&SS CAB CHILDREN      ,2279.62,31/01/2014,REV,KINGSTON ACCESSIBILITY TRAN LT
371,CS -Oth Operating Inc & Expend,T/A Vehicle Maintenance etc,Transport-Contract Hire,J01374,Transport Related Expenditure ,Contract Hire and Op Leasing  ,CC67,HIRING TRANSPORT H&SS CAB ADULTS        ,1152,31/01/2014,REV,A STAR TRANSPORT LIMITED      
372,CS -Oth Operating Inc & Expend,T/A Vehicle Maintenance etc,Transport-Contract Hire,J01374,Transport Related Expenditure ,Contract Hire and Op Leasing  ,CC67,HIRING TRANSPORT H&SS CAB ADULTS        ,1264,31/01/2014,REV,NVCAR HIRE LTD                
373,CS -Oth Operating Inc & Expend,T/A Vehicle Maintenance etc,Transport-Contract Hire,J01374,Transport Related Expenditure ,Contract Hire and Op Leasing  ,CC67,HIRING TRANSPORT H&SS CAB ADULTS        ,1559.52,31/01/2014,REV,KINGSTON ACCESSIBILITY TRAN LT
374,CS -Oth Operating Inc & Expend,T/A Vehicle Maintenance etc,Transport-Contract Hire,J01374,Transport Related Expenditure ,Contract Hire and Op Leasing  ,CC67,HIRING TRANSPORT H&SS CAB ADULTS        ,800,31/01/2014,REV,AERIAL CAR SERVICES LTD       
375,CS -Oth Operating Inc & Expend,T/A Vehicle Maintenance etc,Transport-Contract Hire,J01374,Transport Related Expenditure ,Contract Hire and Op Leasing  ,CC67,HIRING TRANSPORT H&SS CAB ADULTS        ,1360,31/01/2014,REV,BARCLAYS ASSET & SALES FINANCE
376,CS -Oth Operating Inc & Expend,T/A Vehicle Maintenance etc,Transport-Contract Hire,J01374,Transport Related Expenditure ,Contract Hire and Op Leasing  ,CC67,HIRING TRANSPORT H&SS CAB ADULTS        ,840,30/09/2013,REV,CAPITAL CARS                  
377,CS -Oth Operating Inc & Expend,T/A Vehicle Maintenance etc,Transport-Contract Hire,J01374,Transport Related Expenditure ,Contract Hire and Op Leasing  ,CC67,HIRING TRANSPORT H&SS CAB ADULTS        ,1975.16,31/01/2014,REV,KINGSTON ACCESSIBILITY TRAN LT
378,CS -Oth Operating Inc & Expend,T/A Vehicle Maintenance etc,Transport-Contract Hire,J01374,Transport Related Expenditure ,Contract Hire and Op Leasing  ,CC67,HIRING TRANSPORT H&SS CAB ADULTS        ,987,31/01/2014,REV,CAPITAL CARS                  
379,CS -Oth Operating Inc & Expend,T/A Vehicle Maintenance etc,Transport-Contract Hire,J01374,Transport Related Expenditure ,Contract Hire and Op Leasing  ,CC67,HIRING TRANSPORT H&SS CAB ADULTS        ,840,31/01/2014,REV,KINGSTON ACCESSIBILITY TRAN LT
380,CS -Oth Operating Inc & Expend,T/A Vehicle Maintenance etc,Transport-Contract Hire,J01374,Transport Related Expenditure ,Contract Hire and Op Leasing  ,CC67,HIRING TRANSPORT H&SS CAB ADULTS        ,1440,31/01/2014,REV,KINGSTON ACCESSIBILITY TRAN LT
381,CS -Oth Operating Inc & Expend,T/A Vehicle Maintenance etc,Transport-Contract Hire,J01374,Transport Related Expenditure ,Contract Hire and Op Leasing  ,CC67,HIRING TRANSPORT H&SS CAB ADULTS        ,672,31/01/2014,REV,NVCAR HIRE LTD                
382,CS -Oth Operating Inc & Expend,T/A Vehicle Maintenance etc,Transport-Contract Hire,J01374,Transport Related Expenditure ,Contract Hire and Op Leasing  ,CC67,HIRING TRANSPORT H&SS CAB ADULTS        ,608,31/01/2014,REV,NVCAR HIRE LTD                
383,CS -Oth Operating Inc & Expend,T/A Vehicle Maintenance etc,Transport-Contract Hire,J01374,Transport Related Expenditure ,Contract Hire and Op Leasing  ,CC67,HIRING TRANSPORT H&SS CAB ADULTS        ,592,31/01/2014,REV,CAPITAL CARS                  
384,CS -Oth Operating Inc & Expend,T/A Vehicle Maintenance etc,Transport-Contract Hire,J01374,Transport Related Expenditure ,Contract Hire and Op Leasing  ,CC67,HIRING TRANSPORT H&SS CAB ADULTS        ,2386.66,31/01/2014,REV,BARCLAYS ASSET & SALES FINANCE
385,CS -Oth Operating Inc & Expend,T/A Vehicle Maintenance etc,Transport-Contract Hire,J01374,Transport Related Expenditure ,Contract Hire and Op Leasing  ,CC67,HIRING TRANSPORT H&SS CAB ADULTS        ,720,31/01/2014,REV,BARCLAYS ASSET & SALES FINANCE
386,CS -Oth Operating Inc & Expend,T/A Vehicle Maintenance etc,Transport-Contract Hire,J01374,Transport Related Expenditure ,Contract Hire and Op Leasing  ,CC67,HIRING TRANSPORT H&SS CAB ADULTS        ,720,31/01/2014,REV,CAPITAL CARS                  
387,CS -Oth Operating Inc & Expend,T/A Vehicle Maintenance etc,Transport-Contract Hire,J01374,Transport Related Expenditure ,Contract Hire and Op Leasing  ,CC67,HIRING TRANSPORT H&SS CAB ADULTS        ,1360,31/01/2014,REV,SILVERBURN FINANCE (UK) LTD   
388,CS -Oth Operating Inc & Expend,T/A Vehicle Maintenance etc,Transport-Contract Hire,J01374,Transport Related Expenditure ,Contract Hire and Op Leasing  ,CC67,HIRING TRANSPORT H&SS CAB ADULTS        ,982,31/01/2014,REV,CAPITAL CARS                  
389,CS -Oth Operating Inc & Expend,T/A Vehicle Maintenance etc,Transport-Contract Hire,J01374,Transport Related Expenditure ,Contract Hire and Op Leasing  ,CC67,HIRING TRANSPORT H&SS CAB ADULTS        ,1328.8,31/01/2014,REV,KINGSTON ACCESSIBILITY TRAN LT
390,CS -Oth Operating Inc & Expend,T/A Vehicle Maintenance etc,Transport-Contract Hire,J01374,Transport Related Expenditure ,Contract Hire and Op Leasing  ,CC67,HIRING TRANSPORT H&SS CAB ADULTS        ,1080,03/02/2014,REV,CALVERTON FACTORS LTD         
391,CS -Oth Operating Inc & Expend,T/A Vehicle Maintenance etc,Transport-Contract Hire,J01374,Transport Related Expenditure ,Contract Hire and Op Leasing  ,CC67,HIRING TRANSPORT H&SS CAB ADULTS        ,2233.33,31/01/2014,REV,BARCLAYS ASSET & SALES FINANCE
392,CS -Oth Operating Inc & Expend,T/A Vehicle Maintenance etc,Transport-Contract Hire,J01374,Transport Related Expenditure ,Contract Hire and Op Leasing  ,CC67,HIRING TRANSPORT H&SS CAB ADULTS        ,779,24/01/2014,REV,WALLINGTON CARS & COURIERS LTD
393,CS -Oth Operating Inc & Expend,T/A Vehicle Maintenance etc,Transport-Contract Hire,J01374,Transport Related Expenditure ,Contract Hire and Op Leasing  ,CC67,HIRING TRANSPORT H&SS CAB ADULTS        ,1224,31/01/2014,REV,BARCLAYS ASSET & SALES FINANCE
394,CS -Oth Operating Inc & Expend,T/A Vehicle Maintenance etc,Transport-Contract Hire,J01374,Transport Related Expenditure ,Contract Hire and Op Leasing  ,CC67,HIRING TRANSPORT H&SS CAB ADULTS        ,896,31/01/2014,REV,BARCLAYS ASSET & SALES FINANCE
395,CS -Oth Operating Inc & Expend,T/A Vehicle Maintenance etc,Transport-Contract Hire,J01374,Transport Related Expenditure ,Contract Hire and Op Leasing  ,CC67,HIRING TRANSPORT H&SS CAB ADULTS        ,1062,31/01/2014,REV,CAPITAL CARS                  
396,CS -Oth Operating Inc & Expend,T/A Vehicle Maintenance etc,Transport-Contract Hire,J01374,Transport Related Expenditure ,Contract Hire and Op Leasing  ,CC67,HIRING TRANSPORT H&SS CAB ADULTS        ,720,31/01/2014,REV,CAPITAL CARS                  
397,CS -Oth Operating Inc & Expend,T/A Vehicle Maintenance etc,Transport-Contract Hire,J01374,Transport Related Expenditure ,Contract Hire and Op Leasing  ,CC67,HIRING TRANSPORT H&SS CAB ADULTS        ,800,31/01/2014,REV,NVCAR HIRE LTD                
398,CS -Oth Operating Inc & Expend,T/A Vehicle Maintenance etc,Transport-Contract Hire,J01374,Transport Related Expenditure ,Contract Hire and Op Leasing  ,CC68,HIRING TRANSPORT SEN COLLEGES CABS      ,1224,31/01/2014,REV,BARCLAYS ASSET & SALES FINANCE
399,CS -Oth Operating Inc & Expend,T/A Vehicle Maintenance etc,Transport-Contract Hire,J01374,Transport Related Expenditure ,Contract Hire and Op Leasing  ,CC68,HIRING TRANSPORT SEN COLLEGES CABS      ,720,31/01/2014,REV,CAPITAL CARS                  
400,CS -Oth Operating Inc & Expend,T/A Vehicle Maintenance etc,Transport-Contract Hire,J01374,Transport Related Expenditure ,Contract Hire and Op Leasing  ,CC68,HIRING TRANSPORT SEN COLLEGES CABS      ,664.4,31/01/2014,REV,KINGSTON ACCESSIBILITY TRAN LT
401,CS -Oth Operating Inc & Expend,T/A Vehicle Maintenance etc,Transport-Contract Hire,J01374,Transport Related Expenditure ,Contract Hire and Op Leasing  ,CC68,HIRING TRANSPORT SEN COLLEGES CABS      ,1193.34,31/01/2014,REV,BARCLAYS ASSET & SALES FINANCE
402,CS -Oth Operating Inc & Expend,T/A Vehicle Maintenance etc,Transport-Contract Hire,J01374,Transport Related Expenditure ,Contract Hire and Op Leasing  ,CC68,HIRING TRANSPORT SEN COLLEGES CABS      ,780,31/01/2014,REV,CAPITAL CARS                  
403,CS -Oth Operating Inc & Expend,T/A Vehicle Maintenance etc,Transport-Contract Hire,J01374,Transport Related Expenditure ,Contract Hire and Op Leasing  ,CC68,HIRING TRANSPORT SEN COLLEGES CABS      ,1039.68,31/01/2014,REV,KINGSTON ACCESSIBILITY TRAN LT
404,CS -Oth Operating Inc & Expend,T/A Vehicle Maintenance etc,Transport-Contract Hire,J01374,Transport Related Expenditure ,Contract Hire and Op Leasing  ,CC68,HIRING TRANSPORT SEN COLLEGES CABS      ,1248,31/01/2014,REV,CAPITAL CARS                  
405,CS -Oth Operating Inc & Expend,T/A Vehicle Maintenance etc,Transport-Contract Hire,J01374,Transport Related Expenditure ,Contract Hire and Op Leasing  ,CC68,HIRING TRANSPORT SEN COLLEGES CABS      ,1996.48,31/01/2014,REV,KINGSTON ACCESSIBILITY TRAN LT
406,CS -Oth Operating Inc & Expend,T/A Vehicle Maintenance etc,Transport-Contract Hire,J01374,Transport Related Expenditure ,Contract Hire and Op Leasing  ,CC68,HIRING TRANSPORT SEN COLLEGES CABS      ,3100.12,31/01/2014,REV,KINGSTON ACCESSIBILITY TRAN LT
407,CS -Oth Operating Inc & Expend,T/A Vehicle Maintenance etc,Transport-Workshop,J01376,Premises Related Expenditure  ,Energy Costs                  ,BB03,Gas (incl. Butane)                      ,644.8,05/02/2014,REV,GAZPROM MARKETING&TRADING LTD 
408,CS -Oth Operating Inc & Expend,T/A Vehicle Maintenance etc,Transport-Workshop,J01376,Transport Related Expenditure ,Direct Transport Costs        ,CA72,Vehicle Parts                           ,550.4,29/10/2013,REV,BOC LTD.                      
409,CS -Oth Operating Inc & Expend,T/A Vehicle Maintenance etc,Transport-Workshop,J01376,Transport Related Expenditure ,Contract Hire and Op Leasing  ,CC60,Vehicle Hire for LB Sutton              ,2660,31/01/2014,REV,BRUNSWICK CARS LTD            
410,CS -Oth Operating Inc & Expend,T/A Vehicle Maintenance etc,Transport-Workshop,J01376,Transport Related Expenditure ,Contract Hire and Op Leasing  ,CC60,Vehicle Hire for LB Sutton              ,2060,31/01/2014,REV,BRUNSWICK CARS LTD            
411,CS -Oth Operating Inc & Expend,T/A Vehicle Maintenance etc,Transport-Workshop,J01376,Transport Related Expenditure ,Contract Hire and Op Leasing  ,CC60,Vehicle Hire for LB Sutton              ,1875,03/02/2014,REV,CALVERTON FACTORS LTD         
412,CS -Oth Operating Inc & Expend,T/A Vehicle Maintenance etc,Transport-Workshop,J01376,Transport Related Expenditure ,Contract Hire and Op Leasing  ,CC60,Vehicle Hire for LB Sutton              ,539.82,31/01/2014,REV,KINGSTON ACCESSIBILITY TRAN LT
413,CS -Oth Operating Inc & Expend,T/A Vehicle Maintenance etc,Transport-Workshop,J01376,Transport Related Expenditure ,Contract Hire and Op Leasing  ,CC60,Vehicle Hire for LB Sutton              ,2520,31/01/2014,REV,CAPITAL CARS                  
414,CS -Oth Operating Inc & Expend,T/A Vehicle Maintenance etc,Transport-Workshop,J01376,Transport Related Expenditure ,Contract Hire and Op Leasing  ,CC60,Vehicle Hire for LB Sutton              ,2232,31/01/2014,REV,BARCLAYS ASSET & SALES FINANCE
415,CS -Oth Operating Inc & Expend,T/A Vehicle Maintenance etc,Transport-Workshop,J01376,Transport Related Expenditure ,Contract Hire and Op Leasing  ,CC60,Vehicle Hire for LB Sutton              ,5456,31/01/2014,REV,BARCLAYS ASSET & SALES FINANCE
416,CS -Oth Operating Inc & Expend,T/A Vehicle Maintenance etc,Transport-Workshop,J01376,Transport Related Expenditure ,Contract Hire and Op Leasing  ,CC60,Vehicle Hire for LB Sutton              ,960,03/02/2014,REV,CALVERTON FACTORS LTD         
417,CS -Oth Operating Inc & Expend,T/A Vehicle Maintenance etc,Transport-Workshop,J01376,Transport Related Expenditure ,Contract Hire and Op Leasing  ,CC60,Vehicle Hire for LB Sutton              ,555,31/12/2013,REV,CAPITAL CARS                  
418,CS -Oth Operating Inc & Expend,T/A Vehicle Maintenance etc,Transport-Workshop,J01376,Transport Related Expenditure ,Contract Hire and Op Leasing  ,CC65,Vehicle Hire for Education              ,999,31/01/2014,REV,CAPITAL CARS                  
419,CS -Oth Operating Inc & Expend,T/A Vehicle Maintenance etc,Transport-Workshop,J01376,Transport Related Expenditure ,Contract Hire and Op Leasing  ,CC65,Vehicle Hire for Education              ,2128,31/01/2014,REV,BARCLAYS ASSET & SALES FINANCE
420,CS -Oth Operating Inc & Expend,T/A Vehicle Maintenance etc,Transport-Workshop,J01376,Transport Related Expenditure ,Contract Hire and Op Leasing  ,CC65,Vehicle Hire for Education              ,2070,31/01/2014,REV,CAPITAL CARS                  
421,CS -Oth Operating Inc & Expend,T/A Vehicle Maintenance etc,Transport-Workshop,J01376,Transport Related Expenditure ,Contract Hire and Op Leasing  ,CC65,Vehicle Hire for Education              ,1682,31/01/2014,REV,BARCLAYS ASSET & SALES FINANCE
422,CS -Oth Operating Inc & Expend,T/A Vehicle Maintenance etc,Transport-Workshop,J01376,Transport Related Expenditure ,Contract Hire and Op Leasing  ,CC65,Vehicle Hire for Education              ,2100,31/01/2014,REV,BARCLAYS ASSET & SALES FINANCE
423,CS -Oth Operating Inc & Expend,T/A Vehicle Maintenance etc,Transport-Workshop,J01376,Supplies & Services           ,Equip Furniture/Materials     ,DA01,Equipment - R & M                       ,1690,13/01/2014,REV,MORDEN TYRE SERVICES LTD      
424,Cultural Env Reg&Plan Services,Mgt & Support (Env),Estates Mgt,J01420,Supplies & Services           ,Services                      ,DF03,CONSULTANTS                             ,2100,31/01/2014,REV,VALUATION OFFICE AGENCY       
425,Cultural Env Reg&Plan Services,Mgt & Support (Env),Estates Mgt,J01420,Supplies & Services           ,Services                      ,DF03,CONSULTANTS                             ,506.13,31/01/2014,REV,VALUATION OFFICE AGENCY       
426,Cultural Env Reg&Plan Services,Mgt & Support (Env),Estates Mgt,J01420,Supplies & Services           ,Grants and Subscriptions      ,DJ04,SUBSCRIPTION                            ,620,18/02/2014,REV,CIPFA BUSINESS LTD            
427,Cultural Env Reg&Plan Services,Mgt & Support (Env),Estates Mgt,J01420,Supplies & Services           ,Grants and Subscriptions      ,DJ04,SUBSCRIPTION                            ,500,19/11/2013,REV,NATIONAL BEST VALUE BENCH MARK
428,CS -Oth Operating Inc & Expend,Extraordinary Items & PY Adj.,Gdn r.o. 44 S'down Rd,J01451,Supplies & Services           ,Services                      ,DF05,Gdn r.o. 44 S'down Rd         -Surveys (,989.97,29/01/2014,REV,VALUATION OFFICE AGENCY ADMIN.
429,CS -Oth Operating Inc & Expend,Extraordinary Items & PY Adj.,Durnsford Rd Budget,J01580,Premises Related Expenditure  ,RepairsAlterations&MtceOfBldgs,BA79,SECURITY OF PREMISES                    ,1040,31/01/2014,REV,OM METROPOLITAN TOTAL SEC.LTD 
430,CS -Oth Operating Inc & Expend,Extraordinary Items & PY Adj.,Durnsford Rd Budget,J01580,Premises Related Expenditure  ,RepairsAlterations&MtceOfBldgs,BA79,SECURITY OF PREMISES                    ,1196,31/12/2013,REV,OM METROPOLITAN TOTAL SEC.LTD 
431,CS -Oth Operating Inc & Expend,Extraordinary Items & PY Adj.,Batsworth Rd Budget,J01689,Premises Related Expenditure  ,RepairsAlterations&MtceOfBldgs,BA06,REPAIRS & MAINTENANCE GENERAL           ,785,22/01/2014,REV,SYMES GARDEN SERVICES         
432,Childrens & Education Services,Statutory & Regulatory Duties,Senior Mngt & Support Services,K01005,Supplies & Services           ,Services                      ,DF11,Counsel's Fees                          ,670,16/01/2014,REV,REDACTED
433,Childrens & Education Services,Statutory & Regulatory Duties,Senior Mngt & Support Services,K01005,Supplies & Services           ,Services                      ,DF11,Counsel's Fees                          ,1001.3,08/01/2014,REV,REDACTED
434,Childrens & Education Services,Statutory & Regulatory Duties,Senior Mngt & Support Services,K01005,Supplies & Services           ,Services                      ,DF11,Counsel's Fees                          ,1285,07/01/2014,REV,REDACTED
435,Childrens & Education Services,Statutory & Regulatory Duties,Senior Mngt & Support Services,K01005,Supplies & Services           ,Services                      ,DF11,Counsel's Fees                          ,1375,14/11/2013,REV,REDACTED
436,Childrens & Education Services,Statutory & Regulatory Duties,Senior Mngt & Support Services,K01005,Supplies & Services           ,Services                      ,DF11,Counsel's Fees                          ,1110,14/11/2013,REV,REDACTED
437,Childrens & Education Services,Statutory & Regulatory Duties,Senior Mngt & Support Services,K01005,Supplies & Services           ,Services                      ,DF11,Counsel's Fees                          ,3150,14/11/2013,REV,REDACTED
438,Childrens & Education Services,Statutory & Regulatory Duties,Senior Mngt & Support Services,K01005,Supplies & Services           ,Services                      ,DF11,Counsel's Fees                          ,910,21/01/2014,REV,REDACTED
439,Childrens & Education Services,Statutory & Regulatory Duties,Senior Mngt & Support Services,K01005,Supplies & Services           ,Services                      ,DF11,Counsel's Fees                          ,790,12/11/2013,REV,REDACTED
440,Childrens & Education Services,Statutory & Regulatory Duties,Senior Mngt & Support Services,K01005,Supplies & Services           ,Services                      ,DF11,Counsel's Fees                          ,880,14/10/2013,REV,REDACTED
441,Childrens & Education Services,Statutory & Regulatory Duties,Senior Mngt & Support Services,K01005,Supplies & Services           ,Services                      ,DF11,Counsel's Fees                          ,840,08/01/2014,REV,REDACTED
442,Childrens & Education Services,Statutory & Regulatory Duties,Senior Mngt & Support Services,K01005,Supplies & Services           ,Services                      ,DF11,Counsel's Fees                          ,2010,07/01/2014,REV,REDACTED
443,Childrens & Education Services,Statutory & Regulatory Duties,Central Administration,K01008,Supplies & Services           ,Comms and Computing           ,DG04,Postage - General                       ,510,12/02/2014,REV,TRAVELCARE                    
444,Childrens & Education Services,Statutory & Regulatory Duties,Central Administration,K01008,Supplies & Services           ,Grants and Subscriptions      ,DJ04,Subscriptions                           ,2000,27/01/2014,REV,L. B. OF HAMMERSMITH & FULHAM 
445,Childrens & Education Services,Statutory & Regulatory Duties,Schools IT Support,K02008,Supplies & Services           ,Equip Furniture/Materials     ,DA58,Education Materials                     ,624,30/01/2014,REV,STORMFRONT RETAIL LTD         
446,Childrens & Education Services,Statutory & Regulatory Duties,Schools IT Support,K02008,Supplies & Services           ,Comms and Computing           ,DG50,Other IT Expenditure                    ,-2137.5,09/01/2014,REV,LONDON GRID FOR LEARNING TRUST
447,Childrens & Education Services,Statutory & Regulatory Duties,Commissioning Manager,K03001,Employees                     ,Indirect Employee Expenses    ,AB57,External Training Costs                 ,6800,10/02/2014,REV,CWP RESOURCES                 
448,Childrens & Education Services,Statutory & Regulatory Duties,Commissioning Manager,K03001,Employees                     ,Indirect Employee Expenses    ,AB57,External Training Costs                 ,2000,17/02/2014,REV,CWP RESOURCES                 
449,Childrens & Education Services,Statutory & Regulatory Duties,Commissioning Manager,K03001,Supplies & Services           ,Services                      ,DF02,Misc Advertising/Publicity              ,1000,21/01/2014,REV,CBS OUTDOOR LIMITED           
450,Childrens & Education Services,Statutory & Regulatory Duties,Commissioning Manager,K03001,Supplies & Services           ,Services                      ,DF02,Misc Advertising/Publicity              ,2164.5,21/01/2014,REV,CBS OUTDOOR LIMITED           
451,Childrens & Education Services,Statutory & Regulatory Duties,Commissioning Manager,K03001,Supplies & Services           ,Services                      ,DF35,Graphic Design                          ,1525.4,29/01/2014,REV,THE CREATIVE TEAM             
452,Childrens & Education Services,Statutory & Regulatory Duties,Head of Special Educatn Needs,K04017,Supplies & Services           ,Services                      ,DF03,Consultants                             ,1300,01/02/2014,REV,REDACTED
453,Childrens & Education Services,Statutory & Regulatory Duties,Head of Special Educatn Needs,K04017,Supplies & Services           ,Services                      ,DF03,Consultants                             ,4400,01/02/2014,REV,REDACTED
454,Childrens & Education Services,Statutory & Regulatory Duties,Head of Special Educatn Needs,K04017,Supplies & Services           ,Services                      ,DF03,Consultants                             ,900,23/12/2013,REV,ANAIRO SOLUTIONS LIMITED      
455,Childrens & Education Services,Statutory & Regulatory Duties,Head of Special Educatn Needs,K04017,Supplies & Services           ,Services                      ,DF03,Consultants                             ,3400,06/01/2014,REV,MERTON MENCAP                 
456,Childrens & Education Services,Statutory & Regulatory Duties,Head of Special Educatn Needs,K04017,Supplies & Services           ,Services                      ,DF03,Consultants                             ,2250,27/01/2014,REV,ANAIRO SOLUTIONS LIMITED      
457,Childrens & Education Services,Education Psychology Service,Education Psychology.,K04018,Employees                     ,Direct Employee Expenses      ,AA17,Agency Staff & Casual Paymts            ,4125,15/01/2014,REV,REDACTED
458,Childrens & Education Services,Education Psychology Service,Education Psychology.,K04018,Employees                     ,Direct Employee Expenses      ,AA17,Agency Staff & Casual Paymts            ,2625,31/01/2014,REV,REDACTED
459,Childrens & Education Services,Education Psychology Service,Education Psychology.,K04018,Employees                     ,Direct Employee Expenses      ,AA17,Agency Staff & Casual Paymts            ,562.5,24/02/2014,REV,REDACTED
460,Childrens & Education Services,Education Psychology Service,Education Psychology.,K04018,Employees                     ,Direct Employee Expenses      ,AA17,Agency Staff & Casual Paymts            ,4875,17/02/2014,REV,REDACTED
461,Childrens & Education Services,Education Psychology Service,Education Psychology.,K04018,Employees                     ,Direct Employee Expenses      ,AA17,Agency Staff & Casual Paymts            ,2800,07/02/2014,REV,REDACTED
462,Childrens & Education Services,Education Psychology Service,Education Psychology.,K04018,Employees                     ,Direct Employee Expenses      ,AA17,Agency Staff & Casual Paymts            ,937.5,22/01/2014,REV,REDACTED
463,Childrens & Education Services,Support for SEN Pupils,Statementing-Transport,K04023,Transport Related Expenditure ,Public Transport              ,CD50,Home Sch/Coll Trans(Trav Exps)          ,759.99,10/02/2014,REV,LONDON BOROUGH OF CROYDON     
464,Childrens & Education Services,Support for SEN Pupils,Statementing-Transport,K04023,Transport Related Expenditure ,Public Transport              ,CD50,Home Sch/Coll Trans(Trav Exps)          ,735,14/02/2014,REV,LONDON BOROUGH OF CROYDON     
465,Childrens & Education Services,Support for SEN Pupils,Statementing-Transport,K04023,Transport Related Expenditure ,Public Transport              ,CD50,Home Sch/Coll Trans(Trav Exps)          ,720,16/01/2014,REV,REDACTED
466,Childrens & Education Services,Behavioural Support,Statement Support Team,K04034,Employees                     ,Direct Employee Expenses      ,AA17,Agency Staff & Casual Paymts            ,850,02/02/2014,REV,REDACTED
467,Childrens & Education Services,Behavioural Support,Statement Support Team,K04034,Employees                     ,Direct Employee Expenses      ,AA17,Agency Staff & Casual Paymts            ,850,18/02/2014,REV,REDACTED
468,Childrens & Education Services,Oth U5s Provn Not Prim or Spec,Provider Support,K05078,Supplies & Services           ,Comms and Computing           ,DG09,Computer Purchases - Misc               ,1200,05/02/2014,REV,ATOMWIDE LTD                  
469,Childrens & Education Services,Oth U5s Provn Not Prim or Spec,Provider Support,K05078,Supplies & Services           ,Comms and Computing           ,DG09,Computer Purchases - Misc               ,12000,05/02/2014,REV,ATOMWIDE LTD                  
470,Childrens & Education Services,Oth U5s Provn Not Prim or Spec,GSSG Workforce Development,K05111,Employees                     ,Indirect Employee Expenses    ,AB56,Internal Training Costs                 ,500,03/02/2014,REV,REDACTED
471,Childrens & Education Services,Oth U5s Provn Not Prim or Spec,GSSG Workforce Development,K05111,Employees                     ,Indirect Employee Expenses    ,AB56,Internal Training Costs                 ,600,05/02/2014,REV,ACTUAL FIRST AID LTD          
472,Childrens & Education Services,Nursery schools,GSSG Central Administration,K05400,Supplies & Services           ,Expenses                      ,DH50,Special Projects                        ,3762.79,04/02/2014,REV,P J HARVEY & CO LTD           
473,Childrens & Education Services,Oth U5s Provn Not Prim or Spec,Every Child A Talker,K05405,Supplies & Services           ,Equip Furniture/Materials     ,DA09,Equip-Purchases                         ,2269.95,04/12/2013,REV,THE CONSORTIUM                
474,Childrens & Education Services,GENERATED ACCOUNT,Lavender Children's Centre,K05410,Premises Related Expenditure  ,Energy Costs                  ,BB03,Gas (incl. Butane)                      ,631.95,05/02/2014,REV,GAZPROM MARKETING&TRADING LTD 
475,Childrens & Education Services,GENERATED ACCOUNT,Mitcham MAT,K05411,Employees                     ,Indirect Employee Expenses    ,AB57,External Training Costs                 ,569.61,30/01/2014,REV,KIN SUPPORT SERVICES          
476,Childrens & Education Services,GENERATED ACCOUNT,Mitcham MAT,K05411,Supplies & Services           ,Equip Furniture/Materials     ,DA04,Materials                               ,2641.04,28/01/2014,REV,INCREDIBLE YEARS              
477,Childrens & Education Services,GENERATED ACCOUNT,Mitcham MAT,K05411,Supplies & Services           ,Services                      ,DF09,Miscellaneous Fees                      ,557.05,31/01/2014,REV,ROOMS & STUDIOS MANAGEMENT    
478,Childrens & Education Services,GENERATED ACCOUNT,Mitcham MAT,K05411,Supplies & Services           ,Services                      ,DF09,Miscellaneous Fees                      ,557.05,30/09/2013,REV,ADMINLAND LTD                 
479,Childrens & Education Services,GENERATED ACCOUNT,Mitcham MAT (Premises),K05412,Premises Related Expenditure  ,Cleaning and Domestic Supplies,BH03,Cleaning Services                       ,1186.24,31/01/2014,REV,BIRKIN CLEANING SERVICES LTD  
480,Childrens & Education Services,GENERATED ACCOUNT,Morden MAT,K05413,Premises Related Expenditure  ,RepairsAlterations&MtceOfBldgs,BA01,DDM - General Building                  ,2745.08,04/02/2014,REV,P J HARVEY & CO LTD           
481,Childrens & Education Services,GENERATED ACCOUNT,Morden MAT,K05413,Premises Related Expenditure  ,RepairsAlterations&MtceOfBldgs,BA06,Repairs & Maintenance General           ,4500,24/01/2014,REV,STOP SLIP LTD                 
482,Childrens & Education Services,Nursery schools,Lavender CC Non Childcare,K05415,Premises Related Expenditure  ,Cleaning and Domestic Supplies,BH03,Cleaning Services                       ,1189.54,31/01/2014,REV,BIRKIN CLEANING SERVICES LTD  
483,Childrens & Education Services,Nursery schools,Lavender CC Non Childcare,K05415,Supplies & Services           ,Expenses                      ,DH02,Conferences                             ,500,31/01/2014,REV,SKILLS FOR LOCAL AUTHORITIES  
484,Childrens & Education Services,Nursery schools,E.Years-Intergenerational Cntr,K05416,Premises Related Expenditure  ,RepairsAlterations&MtceOfBldgs,BA06,Repairs & Maintenance General           ,895,30/01/2014,REV,FIRE COMPLIANCE MANAGM'T SERV 
485,Childrens & Education Services,Nursery schools,E.Years-Intergenerational Cntr,K05416,Premises Related Expenditure  ,RepairsAlterations&MtceOfBldgs,BA06,Repairs & Maintenance General           ,2152,10/02/2014,REV,SSD LIMITED                   
486,Childrens & Education Services,Nursery schools,E.Years-Intergenerational Cntr,K05416,Premises Related Expenditure  ,Energy Costs                  ,BB02,Electricity                             ,841.15,07/02/2014,REV,SCOTTISHPOWER                 
487,Childrens & Education Services,Nursery schools,E.Years-Intergenerational Cntr,K05416,Premises Related Expenditure  ,Cleaning and Domestic Supplies,BH03,Cleaning Services                       ,796.82,31/01/2014,REV,BIRKIN CLEANING SERVICES LTD  
488,Childrens & Education Services,Nursery schools,E.Years-Intergenerational Cntr,K05416,Supplies & Services           ,Services                      ,DF03,Consultants                             ,2606.8,02/02/2014,REV,REDACTED
489,Childrens & Education Services,Vocational - Adult Education,AE-additional learner SF,K06046,Supplies & Services           ,Services                      ,DF27,Examination Fees                        ,900,31/01/2014,REV,ITEC                          
490,Childrens & Education Services,Vocational - Adult Education,AE-Business Responsive FE,K06047,Customer and client receipts  ,Fees                          ,RB41,Tuition and Training Fee E              ,672,18/02/2014,REV,REDACTED
491,Childrens & Education Services,Vocational - Adult Education,AE-Adult Education Main,K06049,Premises Related Expenditure  ,Energy Costs                  ,BB03,Gas (incl. Butane)                      ,3175.78,05/02/2014,REV,GAZPROM MARKETING&TRADING LTD 
492,Childrens & Education Services,Vocational - Adult Education,AE-Adult Education Main,K06049,Premises Related Expenditure  ,Water Services                ,BE01,Use of Water (Metered)                  ,1600,30/01/2014,REV,THAMES WATER UTILITIES LTD.   
493,Childrens & Education Services,Vocational - Adult Education,AE-Adult Education Main,K06049,Premises Related Expenditure  ,Cleaning and Domestic Supplies,BH03,Cleaning Services                       ,2773.59,31/01/2014,REV,JULIUS RUTHERFOORD & CO LTD   
494,Childrens & Education Services,Vocational - Adult Education,AE-Adult Education Main,K06049,Supplies & Services           ,Services                      ,DF02,Misc Advertising/Publicity              ,1500,10/01/2014,REV,NEWSQUEST (LONDON)LTD         
495,Childrens & Education Services,Vocational - Adult Education,AE-Adult Education Main,K06049,Supplies & Services           ,Services                      ,DF27,Examination Fees                        ,552,07/02/2014,REV,CACHE                         
496,Childrens & Education Services,Vocational - Adult Education,AE-Learner Support Fund-Access,K06050,Supplies & Services           ,Services                      ,DF09,Miscellaneous Fees                      ,556,16/01/2014,REV,DICKY BIRDS (PEPYS RD)        
497,Childrens & Education Services,Youth Centres (Residential),Youth Service,K06053,Employees                     ,Indirect Employee Expenses    ,AB57,External Training Costs                 ,1000,04/12/2013,REV,RMC CONSULTANTS               
498,Childrens & Education Services,Youth Centres (Residential),Youth Service,K06053,Supplies & Services           ,Expenses                      ,DH12,Young Peoples Expenses                  ,5380,23/01/2014,REV,THE AWARD SCHEME LTD          
499,Childrens & Education Services,Youth Centres (Residential),PAYP Moving Forward in Life,K06092,Supplies & Services           ,Grants and Subscriptions      ,DJ04,Subscriptions                           ,1000,04/02/2014,REV,UCAS MEDIA                    
500,Childrens & Education Services,Pupil Support,Careers Educ IAG Contracts,K06097,Supplies & Services           ,Grants and Subscriptions      ,DJ01,Grants                                  ,25000,03/01/2014,REV,GRENFELL HOUSING ASSOCIATION  
501,Childrens & Education Services,Pupil Support,Careers Educ IAG Contracts,K06097,Third Party Payments          ,Private Contractors           ,EH01,Miscellaneous Agency Services           ,33084,04/02/2014,REV,ROYAL BOR'GH KINGSTON U THAMES
502,Childrens & Education Services,Pupil Support,Careers Educ IAG Contracts,K06097,Third Party Payments          ,Private Contractors           ,EH01,Miscellaneous Agency Services           ,1192.25,10/02/2014,REV,ROYAL BOR'GH KINGSTON U THAMES
503,Childrens & Education Services,Pupil Support,CONX - VOL. GROUP & OTHERS,K06113,Supplies & Services           ,Grants and Subscriptions      ,DJ01,Grants                                  ,2500,03/02/2014,REV,VOLUNTEER CENTRE MERTON       
504,Childrens & Education Services,Pupil Support,CONX - VOL. GROUP & OTHERS,K06113,Supplies & Services           ,Grants and Subscriptions      ,DJ01,Grants                                  ,800,04/02/2014,REV,COLLIERS WOOD WOODCRAFT FOLK  
505,Childrens & Education Services,Pupil Support,Young Person Substance Misuse,K06114,Third Party Payments          ,Private Contractors           ,EH01,Miscellaneous Agency Services           ,3655.73,30/01/2014,REV,SW LONDON ST GEORGES NHS TRUST
506,Childrens & Education Services,Asset Management,S106 Bid,K08077,Premises Related Expenditure  ,RepairsAlterations&MtceOfBldgs,BA06,Repairs & Maintenance General           ,28130,29/01/2014,REV,MANSELL CONSTRUCTION SERVICES 
507,Childrens & Education Services,Asset Management,S106 Bid,K08077,Premises Related Expenditure  ,RepairsAlterations&MtceOfBldgs,BA06,Repairs & Maintenance General           ,8311.87,27/01/2014,REV,SODEXO                        
508,Childrens & Education Services,Asset Management,S106 Bid,K08077,Premises Related Expenditure  ,RepairsAlterations&MtceOfBldgs,BA79,Security of Premises                    ,1160,04/02/2014,REV,SIGHT & SOUND                 
509,Childrens & Education Services,Asset Management,S106 Bid,K08077,Premises Related Expenditure  ,Rents                         ,BC01,Miscellaneous Rents                     ,3714.23,03/02/2014,REV,BOSHIRE LTD                   
510,Childrens & Education Services,Asset Management,S106 Bid,K08077,Premises Related Expenditure  ,Rents                         ,BC03,Room/venue rental hire                  ,680.34,01/02/2014,REV,PORTAKABIN LIMITED            
511,Childrens & Education Services,Asset Management,S106 Bid,K08077,Supplies & Services           ,Services                      ,DF09,Miscellaneous Fees                      ,19000,31/01/2014,REV,ATKINS LIMITED                
512,Childrens & Education Services,Asset Management,Centre Commissioned Servs,K08078,Supplies & Services           ,Grants and Subscriptions      ,DJ01,Grants                                  ,10000,28/01/2014,REV,BARNARDOS                     
513,Childrens & Education Services,Asset Management,Centre Commissioned Servs,K08078,Supplies & Services           ,Grants and Subscriptions      ,DJ01,Grants                                  ,7750,05/02/2014,REV,VOLUNTEER CENTRE MERTON       
514,Childrens & Education Services,Asset Management,Centre Commissioned Servs,K08078,Supplies & Services           ,Grants and Subscriptions      ,DJ01,Grants                                  ,6250,17/01/2014,REV,SOUTH LONDON TAMIL WELFARE GRP
515,Childrens & Education Services,Asset Management,Centre Commissioned Servs,K08078,Supplies & Services           ,Grants and Subscriptions      ,DJ01,Grants                                  ,6250,13/02/2014,REV,JIGSAW4U                      
516,Childrens & Education Services,Asset Management,Centre Commissioned Servs,K08078,Supplies & Services           ,Grants and Subscriptions      ,DJ01,Grants                                  ,18742.24,28/01/2014,REV,ST MARKS FAMILY CENTRE        
517,Childrens & Education Services,Asset Management,Centre Commissioned Servs,K08078,Supplies & Services           ,Grants and Subscriptions      ,DJ01,Grants                                  ,30459,04/02/2014,REV,JIGSAW4U                      
518,Childrens & Education Services,Asset Management,Centre Commissioned Servs,K08078,Supplies & Services           ,Grants and Subscriptions      ,DJ01,Grants                                  ,6250,28/01/2014,REV,PRE SCHOOL LEARNING ALLIANCE  
519,Childrens & Education Services,Asset Management,Centre Commissioned Servs,K08078,Supplies & Services           ,Grants and Subscriptions      ,DJ01,Grants                                  ,24623.5,21/01/2014,REV,HOME-START MERTON             
520,Childrens & Education Services,Facilitating School Improvemnt,SSQ,K09077,Supplies & Services           ,Services                      ,DF03,Consultants                             ,580,30/01/2014,REV,HAPSFORD ASSOCIATES           
521,Childrens & Education Services,Facilitating School Improvemnt,SSQ,K09077,Supplies & Services           ,Services                      ,DF03,Consultants                             ,900,30/11/2013,REV,REDACTED
522,Childrens & Education Services,Facilitating School Improvemnt,SSQ,K09077,Supplies & Services           ,Expenses                      ,DH02,Conferences                             ,950,13/02/2014,REV,CHESTERTON PRIMARY SCHOOL     
523,Childrens & Education Services,Asset Management,Stouthall,K09082,Premises Related Expenditure  ,Ground Maintenance Costs      ,BL03,Maintenance of Grounds                  ,3600,29/01/2014,REV,A Y LANDSCAPES LTD            
524,Childrens & Education Services,Statutory & Regulatory Duties,Profess Develop Cntre,K09084,Premises Related Expenditure  ,Energy Costs                  ,BB03,Gas (incl. Butane)                      ,1333.76,09/01/2014,REV,GAZPROM MARKETING&TRADING LTD 
525,Childrens & Education Services,Statutory & Regulatory Duties,Profess Develop Cntre,K09084,Premises Related Expenditure  ,Cleaning and Domestic Supplies,BH03,Cleaning Services                       ,2718.68,31/01/2014,REV,JULIUS RUTHERFOORD & CO LTD   
526,Childrens & Education Services,Sch Meals & Milk-Not Delegated,Free School Meals,K90002,Premises Related Expenditure  ,RepairsAlterations&MtceOfBldgs,BA01,DDM - General Building                  ,1287,31/01/2014,REV,DF20 LTD                      
527,Childrens & Education Services,Pupil Referral Units,Hospital Tuition,K90008,Third Party Payments          ,Other Local Authorities       ,EB54,Hospital Tuition                        ,6344.8,03/01/2014,REV,WANDSWORTH COUNCIL            
528,Childrens & Education Services,Pupil Referral Units,Hospital Tuition,K90008,Third Party Payments          ,Other Local Authorities       ,EB54,Hospital Tuition                        ,7507,11/02/2014,REV,SURREY COUNTY COUNCIL         
529,Childrens & Education Services,Pupil Referral Units,Hospital Tuition,K90008,Third Party Payments          ,Other Local Authorities       ,EB54,Hospital Tuition                        ,11680.2,15/01/2014,REV,WANDSWORTH COUNCIL            
530,Childrens & Education Services,Facilitating School Improvemnt,Refugees Education Service,K90012,Supplies & Services           ,Equip Furniture/Materials     ,DA58,Education Materials                     ,719.2,04/02/2014,REV,HEATH BOOKS LTD               
531,Childrens & Education Services,Facilitating School Improvemnt,Virtual Schools - Home Tutors,K90015,Employees                     ,Direct Employee Expenses      ,AA17,Agency Staff & Casual Paymts            ,544,14/01/2014,REV,HA TUTORS LTD                 
532,Childrens & Education Services,Facilitating School Improvemnt,Virtual Schools - Home Tutors,K90015,Employees                     ,Direct Employee Expenses      ,AA17,Agency Staff & Casual Paymts            ,880.43,31/01/2014,REV,REDACTED
533,Childrens & Education Services,Support for SEN Pupils,Non-Delegated Statements,K90024,Employees                     ,Direct Employee Expenses      ,AA17,Agency Staff & Casual Paymts            ,800,17/02/2014,REV,REDACTED
534,Childrens & Education Services,Support for SEN Pupils,Non-Delegated Statements,K90024,Employees                     ,Direct Employee Expenses      ,AA17,Agency Staff & Casual Paymts            ,800,09/02/2014,REV,REDACTED
535,Childrens & Education Services,Support for SEN Pupils,Non-Delegated Statements,K90024,Employees                     ,Direct Employee Expenses      ,AA17,Agency Staff & Casual Paymts            ,1511.52,31/01/2014,REV,REDACTED
536,Childrens & Education Services,Support for SEN Pupils,Non-Delegated Statements,K90024,Employees                     ,Direct Employee Expenses      ,AA17,Agency Staff & Casual Paymts            ,2600,24/01/2014,REV,REDACTED
537,Childrens & Education Services,Support for SEN Pupils,Non-Delegated Statements,K90024,Employees                     ,Direct Employee Expenses      ,AA17,Agency Staff & Casual Paymts            ,2730,17/02/2014,REV,REDACTED
